﻿Department Family,Entity,Date,Expense Type,Expense Area,Supplier,Transaction Number,Amount,Item Description
BEIS,UKRI - AHRC,02/12/2020,Fees (Including College Members),GCRF - Programme Delivery,Non Employee Expenses Supplier,98856194,170.00,Fees (Including College Members)
BEIS,UKRI - AHRC,02/12/2020,Fees (Including College Members),GCRF - Programme Delivery,Non Employee Expenses Supplier,98856195,170.00,Fees (Including College Members)
BEIS,UKRI - AHRC,02/12/2020,Fees (Including College Members),Cultural Value EDI,Non Employee Expenses Supplier,98856196,340.00,Fees (Including College Members)
BEIS,UKRI - AHRC,02/12/2020,Fees (Including College Members),GCRF - Programme Delivery,Non Employee Expenses Supplier,98856197,170.00,Fees (Including College Members)
BEIS,UKRI - AHRC,02/12/2020,Fees (Including College Members),Executive Office,Non Employee Expenses Supplier,98856198,500.00,Fees (Including College Members)
BEIS,UKRI - AHRC,02/12/2020,Fees (Including College Members),New Programme Development,Non Employee Expenses Supplier,98856199,170.00,Fees (Including College Members)
BEIS,UKRI - AHRC,02/12/2020,Health & Safety (inc. Medicals & Opticians),"History, Heritage, Languages and Literature",Unspecified,98858529,12.99,Health & Safety (inc. Medicals & Opticians)
BEIS,UKRI - AHRC,03/12/2020,Non-staff travel and subsistance,Executive Office,Non Employee Expenses Supplier,98857491,83.25,Non-staff travel and subsistance
BEIS,UKRI - AHRC,03/12/2020,Fees (Including College Members),Executive Office,Non Employee Expenses Supplier,98857492,500.00,Fees (Including College Members)
BEIS,UKRI - AHRC,03/12/2020,Fees (Including College Members),DEDEFI Capital Grants,Non Employee Expenses Supplier,98857694,340.00,Fees (Including College Members)
BEIS,UKRI - AHRC,03/12/2020,Fees (Including College Members),DEDEFI Capital Grants,Non Employee Expenses Supplier,98857695,340.00,Fees (Including College Members)
BEIS,UKRI - AHRC,03/12/2020,Fees (Including College Members),DEDEFI Capital Grants,Non Employee Expenses Supplier,98861506,340.00,Fees (Including College Members)
BEIS,UKRI - AHRC,03/12/2020,Fees (Including College Members),DEDEFI Capital Grants,Non Employee Expenses Supplier,98861507,340.00,Fees (Including College Members)
BEIS,UKRI - AHRC,03/12/2020,Fees (Including College Members),DEDEFI Capital Grants,Non Employee Expenses Supplier,98861508,340.00,Fees (Including College Members)
BEIS,UKRI - AHRC,03/12/2020,Fees (Including College Members),DEDEFI Capital Grants,Non Employee Expenses Supplier,98861509,460.00,Fees (Including College Members)
BEIS,UKRI - AHRC,03/12/2020,Fees (Including College Members),DEDEFI Capital Grants,Non Employee Expenses Supplier,98861510,340.00,Fees (Including College Members)
BEIS,UKRI - AHRC,04/12/2020,Unspecified,Industrial Strategy Challenge Fund (ISCF) - Creative Clusters,FRONTIER ECONOMICS LTD,98861969,30000.00,Legal & Professional Services
BEIS,UKRI - AHRC,04/12/2020,Unspecified,Industrial Strategy Challenge Fund (ISCF) - Creative Clusters,FRONTIER ECONOMICS LTD,98861970,24000.00,Legal & Professional Services
BEIS,UKRI - AHRC,07/12/2020,Recruitment Costs,Corporate Services,Warwick University Services Ltd,98862187,250.00,Recruitment Costs
BEIS,UKRI - AHRC,07/12/2020,T&S UK - Other Charges,Digital Arts and Humanities and Creative Industries,Unspecified,98864762,178.94,T&S UK - Other Charges
BEIS,UKRI - AHRC,09/12/2020,Fees (Including College Members),New Programme Development,Non Employee Expenses Supplier,98867695,170.00,Fees (Including College Members)
BEIS,UKRI - AHRC,09/12/2020,Fees (Including College Members),GCRF - Programme Delivery,Non Employee Expenses Supplier,98867696,170.00,Fees (Including College Members)
BEIS,UKRI - AHRC,09/12/2020,Fees (Including College Members),GCRF - Programme Delivery,Non Employee Expenses Supplier,98867697,170.00,Fees (Including College Members)
BEIS,UKRI - AHRC,09/12/2020,Fees (Including College Members),Cultural Value EDI,Non Employee Expenses Supplier,98867698,460.00,Fees (Including College Members)
BEIS,UKRI - AHRC,09/12/2020,Non-staff travel and subsistance,SMT,Non Employee Expenses Supplier,98867815,43.00,Non-staff travel and subsistance
BEIS,UKRI - AHRC,09/12/2020,Fees (Including College Members),JPI Cultural Heritage Project,Non Employee Expenses Supplier,98867816,340.00,Fees (Including College Members)
BEIS,UKRI - AHRC,09/12/2020,Health & Safety (inc. Medicals & Opticians),Executive Office,Unspecified,98867945,100.00,Health & Safety (inc. Medicals & Opticians)
BEIS,UKRI - AHRC,09/12/2020,T&S UK - Other Charges,Digital Arts and Humanities and Creative Industries,Unspecified,98867946,141.99,T&S UK - Other Charges
BEIS,UKRI - AHRC,10/12/2020,Conferences & Seminars,Public and Stakeholder Engagement,Unspecified,98861866,144.00,Conferences & Seminars
BEIS,UKRI - AHRC,10/12/2020,Health & Safety (inc. Medicals & Opticians),"History, Heritage, Languages and Literature",Unspecified,98870193,13.99,Health & Safety (inc. Medicals & Opticians)
BEIS,UKRI - AHRC,10/12/2020,Fees (Including College Members),JPI Cultural Heritage Project,Non Employee Expenses Supplier,98871446,340.00,Fees (Including College Members)
BEIS,UKRI - AHRC,10/12/2020,Non-staff travel and subsistance,Executive Office,Non Employee Expenses Supplier,98871447,393.37,Non-staff travel and subsistance
BEIS,UKRI - AHRC,10/12/2020,Fees (Including College Members),Executive Office,Non Employee Expenses Supplier,98871448,500.00,Fees (Including College Members)
BEIS,UKRI - AHRC,10/12/2020,Fees (Including College Members),New Programme Development,Non Employee Expenses Supplier,98871449,170.00,Fees (Including College Members)
BEIS,UKRI - AHRC,10/12/2020,Fees (Including College Members),FIC- China,Non Employee Expenses Supplier,98871450,170.00,Fees (Including College Members)
BEIS,UKRI - AHRC,14/12/2020,Unspecified,Balance Sheet,HM Revenue & Customs,98867844,61410.80,NI Payable Salaries
BEIS,UKRI - AHRC,14/12/2020,Unspecified,Balance Sheet,HM Revenue & Customs,98867845,44536.27,PAYE Payable Salaries
BEIS,UKRI - AHRC,14/12/2020,Unspecified,Balance Sheet,HM Revenue & Customs,98867846,5394.00,Student Loans
BEIS,UKRI - AHRC,14/12/2020,Unspecified,Corporate Services,HM Revenue & Customs,98867847,1668.00,Apprenticeship Levy
BEIS,UKRI - AHRC,14/12/2020,Fees (Including College Members),Cultural Value EDI,Non Employee Expenses Supplier,98873006,340.00,Fees (Including College Members)
BEIS,UKRI - AHRC,15/12/2020,Unspecified,Skills Strategy,Careers Research and Advisory Centre (CRAC Ltd),98855219,21600.00,Legal & Professional Services
BEIS,UKRI - AHRC,15/12/2020,Union Deductions,Balance Sheet,PCS Union,98867849,67.43,Union Deductions
BEIS,UKRI - AHRC,15/12/2020,Unspecified,Balance Sheet,RCPS Pension,98867850,10047.44,Ees Pension Deductions - JSS
BEIS,UKRI - AHRC,15/12/2020,Unspecified,Balance Sheet,RCPS Pension,98867851,47316.05,Ers Pension Deductions - JSS
BEIS,UKRI - AHRC,15/12/2020,Unspecified,Balance Sheet,Scottish Widows,98867852,376.28,Partnership Pension Deductions
BEIS,UKRI - AHRC,15/12/2020,Unspecified,Balance Sheet,Cabinet Office RM Shared Services,98867853,13.06,Ers Pension Deductions - JSS
BEIS,UKRI - AHRC,15/12/2020,Unspecified,Balance Sheet,Cabinet Office RM Shared Services,98867854,8479.53,Ees Pension Deductions - MyCSP
BEIS,UKRI - AHRC,15/12/2020,Unspecified,Balance Sheet,Cabinet Office RM Shared Services,98867855,42101.87,Ers Pension Deductions - MyCSP
BEIS,UKRI - AHRC,15/12/2020,Ees Pension Deductions - MRC,Balance Sheet,UKRI - Medical Research Council,98867856,153.16,Ees Pension Deductions - MRC
BEIS,UKRI - AHRC,15/12/2020,Ers Pension Deductions - MRC,Balance Sheet,UKRI - Medical Research Council,98867857,353.45,Ers Pension Deductions - MRC
BEIS,UKRI - AHRC,15/12/2020,Nursery Deductions,Balance Sheet,UKRI - Engineering & Physical Sciences Research Council,98867858,253.00,Nursery Deductions
BEIS,UKRI - AHRC,15/12/2020,Research Grant Expenditure,GCRF - Programme Delivery,UKRI - Economic & Social Research Council,98872085,29303.97,Research Grant Expenditure
BEIS,UKRI - AHRC,15/12/2020,Fees (Including College Members),Cultural Value EDI,Non Employee Expenses Supplier,98873849,680.00,Fees (Including College Members)
BEIS,UKRI - AHRC,15/12/2020,T&S UK - Other Charges,Operations,Unspecified,98874122,150.98,T&S UK - Other Charges
BEIS,UKRI - AHRC,15/12/2020,Other Programme Costs,Funds for International Collaboration (FIC 20 US),UKRI - Engineering & Physical Sciences Research Council,98874385,1521.06,Other Programme Costs
BEIS,UKRI - AHRC,16/12/2020,T&S UK - Other Charges,International,Unspecified,98858528,236.22,T&S UK - Other Charges
BEIS,UKRI - AHRC,16/12/2020,Fellowships,Research Fellowships,Historic Buildings and Monuments Commission for England T/A Historic England,98872250,35953.76,Fellowships
BEIS,UKRI - AHRC,16/12/2020,Fees (Including College Members),New Programme Development,Non Employee Expenses Supplier,98874669,170.00,Fees (Including College Members)
BEIS,UKRI - AHRC,16/12/2020,Fees (Including College Members),New Programme Development,Non Employee Expenses Supplier,98874670,170.00,Fees (Including College Members)
BEIS,UKRI - AHRC,16/12/2020,Fees (Including College Members),New Programme Development,Non Employee Expenses Supplier,98874671,170.00,Fees (Including College Members)
BEIS,UKRI - AHRC,16/12/2020,Fees (Including College Members),New Programme Development,Non Employee Expenses Supplier,98874672,170.00,Fees (Including College Members)
BEIS,UKRI - AHRC,16/12/2020,Fees (Including College Members),GCRF - Programme Delivery,Non Employee Expenses Supplier,98874673,170.00,Fees (Including College Members)
BEIS,UKRI - AHRC,16/12/2020,T&S UK - Other Charges,Operations,Unspecified,98874941,53.27,T&S UK - Other Charges
BEIS,UKRI - AHRC,18/12/2020,Non-staff travel and subsistance,Public Engagement,Non Employee Expenses Supplier,98875950,5000.00,Non-staff travel and subsistance
BEIS,UKRI - AHRC,18/12/2020,Non-staff travel and subsistance,Public Engagement,Non Employee Expenses Supplier,98875951,5000.00,Non-staff travel and subsistance
BEIS,UKRI - AHRC,18/12/2020,Non-staff travel and subsistance,Public Engagement,Non Employee Expenses Supplier,98875952,5000.00,Non-staff travel and subsistance
BEIS,UKRI - AHRC,18/12/2020,Non-staff travel and subsistance,Public Engagement,Non Employee Expenses Supplier,98875953,5000.00,Non-staff travel and subsistance
BEIS,UKRI - AHRC,18/12/2020,Non-staff travel and subsistance,Public Engagement,Non Employee Expenses Supplier,98875954,5000.00,Non-staff travel and subsistance
BEIS,UKRI - AHRC,21/12/2020,Fellowships,Research Fellowships,University of Durham,98870227,26871.10,Fellowships
BEIS,UKRI - AHRC,21/12/2020,Fellowships,Research Fellowships,University of St Andrews,98870228,25298.51,Fellowships
BEIS,UKRI - AHRC,21/12/2020,Fellowships,Research Fellowships,Queen Mary University of London,98870229,26287.38,Fellowships
BEIS,UKRI - AHRC,21/12/2020,Fellowships,Research Fellowships,University of Cambridge,98870230,25026.81,Fellowships
BEIS,UKRI - AHRC,21/12/2020,Fellowships,NPIF Research Talent (RCUK Innovation Fellowships),Loughborough University,98870231,20699.53,Fellowships
BEIS,UKRI - AHRC,21/12/2020,Fellowships,NPIF Research Talent (RCUK Innovation Fellowships),University of Bristol GRANT,98870232,23982.21,Fellowships
BEIS,UKRI - AHRC,21/12/2020,Fellowships,Research Fellowships,Queen's University Belfast GRANT,98870233,28811.77,Fellowships
BEIS,UKRI - AHRC,21/12/2020,Fellowships,Commissioned Research,University of Sussex,98870234,17339.43,Fellowships
BEIS,UKRI - AHRC,21/12/2020,Fellowships,Research Fellowships,University of Surrey,98870235,34058.75,Fellowships
BEIS,UKRI - AHRC,21/12/2020,Fellowships,Research Fellowships,University of Leicester,98870236,24093.77,Fellowships
BEIS,UKRI - AHRC,21/12/2020,Fellowships,Research Fellowships,University of East Anglia,98871707,14009.91,Fellowships
BEIS,UKRI - AHRC,21/12/2020,Fellowships,Research Fellowships,University of Edinburgh,98871708,17994.36,Fellowships
BEIS,UKRI - AHRC,21/12/2020,Fellowships,Research Fellowships,University of Surrey,98871709,22074.24,Fellowships
BEIS,UKRI - AHRC,21/12/2020,Fellowships,Research Fellowships,Liverpool John Moores University,98871710,23969.88,Fellowships
BEIS,UKRI - AHRC,21/12/2020,Fellowships,Research Fellowships,University of Exeter,98871711,25705.59,Fellowships
BEIS,UKRI - AHRC,21/12/2020,Fellowships,NPIF Research Talent (RCUK Innovation Fellowships),University of Leicester,98871712,-41936.12,Fellowships
BEIS,UKRI - AHRC,21/12/2020,Fellowships,Research Fellowships,University of Oxford,98871713,8241.29,Fellowships
BEIS,UKRI - AHRC,21/12/2020,Research Grant Expenditure,Research Grants,University of Oxford,98871730,31797.18,Research Grant Expenditure
BEIS,UKRI - AHRC,21/12/2020,Research Grant Expenditure,Research Grants,Historic Environment Scotland (GRANT),98871731,36152.45,Research Grant Expenditure
BEIS,UKRI - AHRC,21/12/2020,Research Grant Expenditure,Research Grants,University of Southampton GRANT,98871732,44844.69,Research Grant Expenditure
BEIS,UKRI - AHRC,21/12/2020,Research Grant Expenditure,Research Grants,University of Liverpool,98871733,40449.77,Research Grant Expenditure
BEIS,UKRI - AHRC,21/12/2020,Research Grant Expenditure,Research Grants,University of Glasgow,98871734,41074.17,Research Grant Expenditure
BEIS,UKRI - AHRC,21/12/2020,Research Grant Expenditure,Research Grants,University of Leicester,98871735,51598.22,Research Grant Expenditure
BEIS,UKRI - AHRC,21/12/2020,Research Grant Expenditure,Research Grants,University of Sussex,98871736,43858.85,Research Grant Expenditure
BEIS,UKRI - AHRC,21/12/2020,Research Grant Expenditure,Open World Research Initiative (OWRI).,Queen's University Belfast GRANT,98871737,24967.40,Research Grant Expenditure
BEIS,UKRI - AHRC,21/12/2020,Research Grant Expenditure,Research Grants,Aberystwyth University,98871738,49215.76,Research Grant Expenditure
BEIS,UKRI - AHRC,21/12/2020,Research Grant Expenditure,Research Grants,Birmingham City University,98871739,43250.52,Research Grant Expenditure
BEIS,UKRI - AHRC,21/12/2020,Research Grant Expenditure,Research Grants,University of Nottingham,98871740,54009.36,Research Grant Expenditure
BEIS,UKRI - AHRC,21/12/2020,Research Grant Expenditure,Research Grants,Cardiff University,98871741,24457.18,Research Grant Expenditure
BEIS,UKRI - AHRC,21/12/2020,Research Grant Expenditure,Research Grants,University of Glasgow,98871742,48050.85,Research Grant Expenditure
BEIS,UKRI - AHRC,21/12/2020,Research Grant Expenditure,Global Challenges Research Fund (GCRF),University of Leeds,98871743,219908.26,Research Grant Expenditure
BEIS,UKRI - AHRC,21/12/2020,Research Grant Expenditure,Global Challenges Research Fund (GCRF),University College London,98871744,117212.63,Research Grant Expenditure
BEIS,UKRI - AHRC,21/12/2020,Research Grant Expenditure,Global Challenges Research Fund (GCRF),University of Liverpool,98871745,116222.88,Research Grant Expenditure
BEIS,UKRI - AHRC,21/12/2020,Research Grant Expenditure,RCUK Global Challenges Research Fund (RCUK GCRF),Goldsmiths College University of London,98871746,207167.00,Research Grant Expenditure
BEIS,UKRI - AHRC,21/12/2020,Research Grant Expenditure,RCUK Global Challenges Research Fund (RCUK GCRF),University of Huddersfield,98871747,242749.00,Research Grant Expenditure
BEIS,UKRI - AHRC,21/12/2020,Research Grant Expenditure,Research Grants,Goldsmiths College University of London,98871748,63128.10,Research Grant Expenditure
BEIS,UKRI - AHRC,21/12/2020,Research Grant Expenditure,Research Grants,University College London,98871749,34375.74,Research Grant Expenditure
BEIS,UKRI - AHRC,21/12/2020,Research Grant Expenditure,Research Grants,London School of Economics and Political Science,98871750,51876.59,Research Grant Expenditure
BEIS,UKRI - AHRC,21/12/2020,Research Grant Expenditure,Research Grants,Oxford Brookes University,98871751,53665.17,Research Grant Expenditure
BEIS,UKRI - AHRC,21/12/2020,Research Grant Expenditure,Research Grants,University of Surrey,98871752,34888.44,Research Grant Expenditure
BEIS,UKRI - AHRC,21/12/2020,Research Grant Expenditure,Research Grants,University of Glasgow,98871753,56977.45,Research Grant Expenditure
BEIS,UKRI - AHRC,21/12/2020,Research Grant Expenditure,Research Grants,University of Newcastle Upon Tyne,98871754,54430.39,Research Grant Expenditure
BEIS,UKRI - AHRC,21/12/2020,Research Grant Expenditure,Care for the Future,University of Exeter,98871755,23676.32,Research Grant Expenditure
BEIS,UKRI - AHRC,21/12/2020,Research Grant Expenditure,JPI Cultural Heritage,University College London,98871756,8195.70,Research Grant Expenditure
BEIS,UKRI - AHRC,21/12/2020,Research Grant Expenditure,JPI Cultural Heritage,University of Oxford,98871757,11182.82,Research Grant Expenditure
BEIS,UKRI - AHRC,21/12/2020,Research Grant Expenditure,JPI Cultural Heritage,De Montfort University,98871758,13437.11,Research Grant Expenditure
BEIS,UKRI - AHRC,21/12/2020,Research Grant Expenditure,Research Grants,University of Strathclyde,98871759,55428.87,Research Grant Expenditure
BEIS,UKRI - AHRC,21/12/2020,Research Grant Expenditure,Research Grants,"Royal Holloway, University of London",98871760,33316.02,Research Grant Expenditure
BEIS,UKRI - AHRC,21/12/2020,Research Grant Expenditure,Research Grants,University of Westminster,98871761,40335.40,Research Grant Expenditure
BEIS,UKRI - AHRC,21/12/2020,Research Grant Expenditure,Research Grants,University of the Arts London,98871762,45607.13,Research Grant Expenditure
BEIS,UKRI - AHRC,21/12/2020,Research Grant Expenditure,Research Grants,The University of Manchester,98871763,58862.46,Research Grant Expenditure
BEIS,UKRI - AHRC,21/12/2020,Research Grant Expenditure,JPI Cultural Heritage,The Open University,98871764,13364.58,Research Grant Expenditure
BEIS,UKRI - AHRC,21/12/2020,Research Grant Expenditure,Research Grants,University of Reading,98871765,59163.18,Research Grant Expenditure
BEIS,UKRI - AHRC,21/12/2020,Research Grant Expenditure,JPI Cultural Heritage,University of Warwick,98871766,18447.70,Research Grant Expenditure
BEIS,UKRI - AHRC,21/12/2020,Research Grant Expenditure,Networks & Workshops,Arts University Bournemouth,98871767,3029.89,Research Grant Expenditure
BEIS,UKRI - AHRC,21/12/2020,Research Grant Expenditure,Networks & Workshops,Queen's University Belfast GRANT,98871768,6037.65,Research Grant Expenditure
BEIS,UKRI - AHRC,21/12/2020,Research Grant Expenditure,Networks & Workshops,Birmingham City University,98871769,4123.82,Research Grant Expenditure
BEIS,UKRI - AHRC,21/12/2020,Research Grant Expenditure,Research Grants,The University of Manchester,98871770,67401.19,Research Grant Expenditure
BEIS,UKRI - AHRC,21/12/2020,Research Grant Expenditure,Research Grants,University of Warwick,98871771,57990.53,Research Grant Expenditure
BEIS,UKRI - AHRC,21/12/2020,Research Grant Expenditure,Research Grants,The Royal Central School of Speech and Drama,98871772,48348.28,Research Grant Expenditure
BEIS,UKRI - AHRC,21/12/2020,Research Grant Expenditure,Research Grants,Queen's University Belfast GRANT,98871773,12109.25,Research Grant Expenditure
BEIS,UKRI - AHRC,21/12/2020,Research Grant Expenditure,Research Grants,University of Newcastle Upon Tyne,98871774,71727.09,Research Grant Expenditure
BEIS,UKRI - AHRC,21/12/2020,Research Grant Expenditure,Research Grants,University of Liverpool,98871775,13236.12,Research Grant Expenditure
BEIS,UKRI - AHRC,21/12/2020,Research Grant Expenditure,Research Grants,King's College London,98871776,66335.93,Research Grant Expenditure
BEIS,UKRI - AHRC,21/12/2020,Research Grant Expenditure,Research Grants,University of Sussex,98871777,50401.11,Research Grant Expenditure
BEIS,UKRI - AHRC,21/12/2020,Research Grant Expenditure,Research Grants,University of Southampton GRANT,98871778,67352.67,Research Grant Expenditure
BEIS,UKRI - AHRC,21/12/2020,Research Grant Expenditure,Research Grants,University of Reading,98871779,56629.03,Research Grant Expenditure
BEIS,UKRI - AHRC,21/12/2020,Research Grant Expenditure,Research Grants,Birkbeck College,98871780,67433.77,Research Grant Expenditure
BEIS,UKRI - AHRC,21/12/2020,Research Grant Expenditure,Research Grants,University of East Anglia,98871781,35008.05,Research Grant Expenditure
BEIS,UKRI - AHRC,21/12/2020,Research Grant Expenditure,Research Grants,University of Chester,98871782,38228.23,Research Grant Expenditure
BEIS,UKRI - AHRC,21/12/2020,Research Grant Expenditure,Newton Programme,Lancaster University,98871783,16711.67,Research Grant Expenditure
BEIS,UKRI - AHRC,21/12/2020,Research Grant Expenditure,Newton Programme,Brunel University London,98871784,14602.70,Research Grant Expenditure
BEIS,UKRI - AHRC,21/12/2020,Research Grant Expenditure,Newton Programme,Liverpool John Moores University,98871785,16753.57,Research Grant Expenditure
BEIS,UKRI - AHRC,21/12/2020,Research Grant Expenditure,Research Grants,The University of Manchester,98871786,45614.39,Research Grant Expenditure
BEIS,UKRI - AHRC,21/12/2020,Research Grant Expenditure,Research Grants,University of Kent,98871787,54702.56,Research Grant Expenditure
BEIS,UKRI - AHRC,21/12/2020,Research Grant Expenditure,Research Grants,University of Wales Trinity St David,98871788,63328.35,Research Grant Expenditure
BEIS,UKRI - AHRC,21/12/2020,Research Grant Expenditure,Research Grants,University of Oxford,98871789,72593.18,Research Grant Expenditure
BEIS,UKRI - AHRC,21/12/2020,Research Grant Expenditure,Industrial Strategy Challenge Fund (ISCF) - Creative Clusters,NESTA,98871790,435076.10,Research Grant Expenditure
BEIS,UKRI - AHRC,21/12/2020,Research Grant Expenditure,Research Grants,The University of Manchester,98871791,49639.04,Research Grant Expenditure
BEIS,UKRI - AHRC,21/12/2020,Research Grant Expenditure,Research Grants,University of Oxford,98871792,50852.86,Research Grant Expenditure
BEIS,UKRI - AHRC,21/12/2020,Research Grant Expenditure,Research Grants,University of the Arts London,98871793,32186.54,Research Grant Expenditure
BEIS,UKRI - AHRC,21/12/2020,Research Grant Expenditure,Research Grants,University of Oxford,98871794,57288.97,Research Grant Expenditure
BEIS,UKRI - AHRC,21/12/2020,Research Grant Expenditure,Research Grants,University of Newcastle Upon Tyne,98871795,65097.00,Research Grant Expenditure
BEIS,UKRI - AHRC,21/12/2020,Research Grant Expenditure,Research Grants,University of Exeter,98871796,52868.86,Research Grant Expenditure
BEIS,UKRI - AHRC,21/12/2020,Research Grant Expenditure,Newton Programme,University of Leeds,98871797,16815.19,Research Grant Expenditure
BEIS,UKRI - AHRC,21/12/2020,Research Grant Expenditure,JPI Cultural Heritage,University of Hull,98871798,11373.95,Research Grant Expenditure
BEIS,UKRI - AHRC,21/12/2020,Research Grant Expenditure,JPI Cultural Heritage,University of Lincoln,98871799,9822.08,Research Grant Expenditure
BEIS,UKRI - AHRC,21/12/2020,Research Grant Expenditure,Newton Programme,University of Salford,98871800,15755.32,Research Grant Expenditure
BEIS,UKRI - AHRC,21/12/2020,Research Grant Expenditure,JPI Cultural Heritage,University of Bradford,98871801,20367.91,Research Grant Expenditure
BEIS,UKRI - AHRC,21/12/2020,Research Grant Expenditure,Audience of the Future (ISCF 2),The National Film & Television School,98871802,482614.98,Research Grant Expenditure
BEIS,UKRI - AHRC,21/12/2020,Research Grant Expenditure,Industrial Strategy Challenge Fund (ISCF) - Creative Clusters,University of Edinburgh,98871803,419514.01,Research Grant Expenditure
BEIS,UKRI - AHRC,21/12/2020,Research Grant Expenditure,Industrial Strategy Challenge Fund (ISCF) - Creative Clusters,University of Leeds,98871804,412598.62,Research Grant Expenditure
BEIS,UKRI - AHRC,21/12/2020,Research Grant Expenditure,Industrial Strategy Challenge Fund (ISCF) - Creative Clusters,University of the Arts London,98871805,417100.88,Research Grant Expenditure
BEIS,UKRI - AHRC,21/12/2020,Research Grant Expenditure,Industrial Strategy Challenge Fund (ISCF) - Creative Clusters,UNIVERSITY OF ULSTER,98871806,419691.49,Research Grant Expenditure
BEIS,UKRI - AHRC,21/12/2020,Research Grant Expenditure,Industrial Strategy Challenge Fund (ISCF) - Creative Clusters,Abertay University,98871807,392132.42,Research Grant Expenditure
BEIS,UKRI - AHRC,21/12/2020,Research Grant Expenditure,Industrial Strategy Challenge Fund (ISCF) - Creative Clusters,University of the West of England,98871808,421321.24,Research Grant Expenditure
BEIS,UKRI - AHRC,21/12/2020,Research Grant Expenditure,Industrial Strategy Challenge Fund (ISCF) - Creative Clusters,University of York,98871809,663191.71,Research Grant Expenditure
BEIS,UKRI - AHRC,21/12/2020,Research Grant Expenditure,Industrial Strategy Challenge Fund (ISCF) - Creative Clusters,Cardiff University,98871810,402834.25,Research Grant Expenditure
BEIS,UKRI - AHRC,21/12/2020,Research Grant Expenditure,Industrial Strategy Challenge Fund (ISCF) - Creative Clusters,"Royal Holloway, University of London",98871811,419979.02,Research Grant Expenditure
BEIS,UKRI - AHRC,21/12/2020,Research Grant Expenditure,Newton Programme,Nottingham Trent University,98871812,15030.01,Research Grant Expenditure
BEIS,UKRI - AHRC,21/12/2020,Research Grant Expenditure,Global Challenges Research Fund (GCRF),University of St Andrews,98871813,16797.19,Research Grant Expenditure
BEIS,UKRI - AHRC,21/12/2020,Research Grant Expenditure,Global Challenges Research Fund (GCRF),Goldsmiths College University of London,98871814,15999.07,Research Grant Expenditure
BEIS,UKRI - AHRC,21/12/2020,Research Grant Expenditure,Global Challenges Research Fund (GCRF),University of Glasgow,98871815,16148.25,Research Grant Expenditure
BEIS,UKRI - AHRC,21/12/2020,Research Grant Expenditure,Networks & Workshops,Coventry University,98871816,3882.08,Research Grant Expenditure
BEIS,UKRI - AHRC,21/12/2020,Research Grant Expenditure,Newton Programme,University of Durham,98871817,19219.86,Research Grant Expenditure
BEIS,UKRI - AHRC,21/12/2020,Research Grant Expenditure,Newton Programme,University of Durham,98871818,24214.18,Research Grant Expenditure
BEIS,UKRI - AHRC,21/12/2020,Research Grant Expenditure,Research Grants,University of Stirling,98871819,35232.77,Research Grant Expenditure
BEIS,UKRI - AHRC,21/12/2020,Research Grant Expenditure,Research Grants,University of Oxford,98871820,25403.00,Research Grant Expenditure
BEIS,UKRI - AHRC,21/12/2020,Research Grant Expenditure,Research Grants,University of the Arts London,98871821,63810.77,Research Grant Expenditure
BEIS,UKRI - AHRC,21/12/2020,Research Grant Expenditure,Research Grants,University of Exeter,98871822,39876.73,Research Grant Expenditure
BEIS,UKRI - AHRC,21/12/2020,Research Grant Expenditure,Newton Programme,Oxford Brookes University,98871823,16864.38,Research Grant Expenditure
BEIS,UKRI - AHRC,21/12/2020,Research Grant Expenditure,Research Grants,University of Newcastle Upon Tyne,98871824,50562.45,Research Grant Expenditure
BEIS,UKRI - AHRC,21/12/2020,Research Grant Expenditure,Research Grants,University of Kent,98871825,60496.60,Research Grant Expenditure
BEIS,UKRI - AHRC,21/12/2020,Research Grant Expenditure,Research Grants,University of York,98871826,74889.88,Research Grant Expenditure
BEIS,UKRI - AHRC,21/12/2020,Research Grant Expenditure,Research Grants,Northumbria University,98871827,25406.14,Research Grant Expenditure
BEIS,UKRI - AHRC,21/12/2020,Research Grant Expenditure,Newton Programme,University of Liverpool,98871828,21649.23,Research Grant Expenditure
BEIS,UKRI - AHRC,21/12/2020,Research Grant Expenditure,Research Grants,Bournemouth University GRANT,98871829,23368.96,Research Grant Expenditure
BEIS,UKRI - AHRC,21/12/2020,Research Grant Expenditure,Living with Machines (SPF),The Alan Turing Institute,98871830,507957.62,Research Grant Expenditure
BEIS,UKRI - AHRC,21/12/2020,Research Grant Expenditure,Newton Programme,Imperial College London,98871831,16882.13,Research Grant Expenditure
BEIS,UKRI - AHRC,21/12/2020,Research Grant Expenditure,Networks & Workshops,Loughborough University,98871832,4768.84,Research Grant Expenditure
BEIS,UKRI - AHRC,21/12/2020,Research Grant Expenditure,Networks & Workshops,University of Southampton GRANT,98871833,4489.45,Research Grant Expenditure
BEIS,UKRI - AHRC,21/12/2020,Research Grant Expenditure,Networks & Workshops,University of Kent,98871834,4569.88,Research Grant Expenditure
BEIS,UKRI - AHRC,21/12/2020,Research Grant Expenditure,RCUK Global Challenges Research Fund (RCUK GCRF),London School of Economics and Political Science,98871835,755339.10,Research Grant Expenditure
BEIS,UKRI - AHRC,21/12/2020,Research Grant Expenditure,Research Grants,Lancaster University,98871836,54723.42,Research Grant Expenditure
BEIS,UKRI - AHRC,21/12/2020,Research Grant Expenditure,Newton Programme,King's College London,98871837,27896.44,Research Grant Expenditure
BEIS,UKRI - AHRC,21/12/2020,Research Grant Expenditure,Newton Programme,University of Leeds,98871838,26739.63,Research Grant Expenditure
BEIS,UKRI - AHRC,21/12/2020,Research Grant Expenditure,Newton Programme,University of Reading,98871839,24007.85,Research Grant Expenditure
BEIS,UKRI - AHRC,21/12/2020,Research Grant Expenditure,JPI Cultural Heritage,University of Leeds,98871840,13833.53,Research Grant Expenditure
BEIS,UKRI - AHRC,21/12/2020,Research Grant Expenditure,Audience of the Future (ISCF 2),Digital Catapult Services Ltd,98871841,408349.04,Research Grant Expenditure
BEIS,UKRI - AHRC,21/12/2020,Research Grant Expenditure,Research Grants,Lancaster University,98871842,51246.91,Research Grant Expenditure
BEIS,UKRI - AHRC,21/12/2020,Research Grant Expenditure,Research Grants,University College London,98871843,60900.28,Research Grant Expenditure
BEIS,UKRI - AHRC,21/12/2020,Research Grant Expenditure,Research Grants,Museum of London Archaeology,98871844,18627.24,Research Grant Expenditure
BEIS,UKRI - AHRC,21/12/2020,Research Grant Expenditure,RCUK Global Challenges Research Fund (RCUK GCRF),University of Sussex,98871845,63492.10,Research Grant Expenditure
BEIS,UKRI - AHRC,21/12/2020,Research Grant Expenditure,Research Grants,Manchester Metropolitan University,98871846,51982.25,Research Grant Expenditure
BEIS,UKRI - AHRC,21/12/2020,Research Grant Expenditure,Research Grants,University of Oxford,98871847,72301.30,Research Grant Expenditure
BEIS,UKRI - AHRC,21/12/2020,Research Grant Expenditure,Research Grants,University of Leeds,98871848,68684.16,Research Grant Expenditure
BEIS,UKRI - AHRC,21/12/2020,Research Grant Expenditure,Research Grants,Birmingham City University,98871849,16017.47,Research Grant Expenditure
BEIS,UKRI - AHRC,21/12/2020,Research Grant Expenditure,Research Grants,Cardiff University,98871850,57063.67,Research Grant Expenditure
BEIS,UKRI - AHRC,21/12/2020,Research Grant Expenditure,Research Grants,University of Exeter,98871851,30928.90,Research Grant Expenditure
BEIS,UKRI - AHRC,21/12/2020,Research Grant Expenditure,Research Grants,King's College London,98871852,67071.64,Research Grant Expenditure
BEIS,UKRI - AHRC,21/12/2020,Research Grant Expenditure,Research Grants,University of Oxford,98871853,55475.76,Research Grant Expenditure
BEIS,UKRI - AHRC,21/12/2020,Research Grant Expenditure,Networks & Workshops,University of Northampton,98871854,4050.89,Research Grant Expenditure
BEIS,UKRI - AHRC,21/12/2020,Research Grant Expenditure,Research Grants,University of Oxford,98871855,71990.78,Research Grant Expenditure
BEIS,UKRI - AHRC,21/12/2020,Research Grant Expenditure,Research Grants,University of Bristol GRANT,98871856,65067.67,Research Grant Expenditure
BEIS,UKRI - AHRC,21/12/2020,Research Grant Expenditure,Research Grants,University of Reading,98871857,66583.86,Research Grant Expenditure
BEIS,UKRI - AHRC,21/12/2020,Research Grant Expenditure,Networks & Workshops,University of Exeter,98871858,3806.37,Research Grant Expenditure
BEIS,UKRI - AHRC,21/12/2020,Research Grant Expenditure,Newton Programme,"City, University of London",98871859,17555.33,Research Grant Expenditure
BEIS,UKRI - AHRC,21/12/2020,Research Grant Expenditure,Networks & Workshops,University of Edinburgh,98871860,4501.94,Research Grant Expenditure
BEIS,UKRI - AHRC,21/12/2020,Research Grant Expenditure,Networks & Workshops,University of Warwick,98871861,4558.56,Research Grant Expenditure
BEIS,UKRI - AHRC,21/12/2020,Research Grant Expenditure,Networks & Workshops,University of Reading,98871862,6086.83,Research Grant Expenditure
BEIS,UKRI - AHRC,21/12/2020,Research Grant Expenditure,Networks & Workshops,University of Westminster,98871863,10768.21,Research Grant Expenditure
BEIS,UKRI - AHRC,21/12/2020,Research Grant Expenditure,Networks & Workshops,University of Hull,98871864,5475.34,Research Grant Expenditure
BEIS,UKRI - AHRC,21/12/2020,Research Grant Expenditure,Networks & Workshops,Nottingham Trent University,98871865,4570.60,Research Grant Expenditure
BEIS,UKRI - AHRC,21/12/2020,Research Grant Expenditure,Networks & Workshops,University of Liverpool,98871866,5894.37,Research Grant Expenditure
BEIS,UKRI - AHRC,21/12/2020,Research Grant Expenditure,Networks & Workshops,University College London,98871867,4898.50,Research Grant Expenditure
BEIS,UKRI - AHRC,21/12/2020,Research Grant Expenditure,Networks & Workshops,University of Warwick,98871868,6041.73,Research Grant Expenditure
BEIS,UKRI - AHRC,21/12/2020,Research Grant Expenditure,Networks & Workshops,University of Warwick,98871869,4571.96,Research Grant Expenditure
BEIS,UKRI - AHRC,21/12/2020,Research Grant Expenditure,Networks & Workshops,University of Hull,98871870,4958.08,Research Grant Expenditure
BEIS,UKRI - AHRC,21/12/2020,Research Grant Expenditure,Research Grants,Anglia Ruskin University,98871871,29020.59,Research Grant Expenditure
BEIS,UKRI - AHRC,21/12/2020,Research Grant Expenditure,Research Grants,Guildhall School of Music & Drama,98871872,69428.54,Research Grant Expenditure
BEIS,UKRI - AHRC,21/12/2020,Research Grant Expenditure,Research Grants,The University of Manchester,98871873,75616.77,Research Grant Expenditure
BEIS,UKRI - AHRC,21/12/2020,Research Grant Expenditure,Cultural Values Project,University of Leeds,98871874,101626.42,Research Grant Expenditure
BEIS,UKRI - AHRC,21/12/2020,Research Grant Expenditure,Research Grants,University of York,98871875,63719.19,Research Grant Expenditure
BEIS,UKRI - AHRC,21/12/2020,Research Grant Expenditure,Research Grants,University of Oxford,98871876,31574.90,Research Grant Expenditure
BEIS,UKRI - AHRC,21/12/2020,Research Grant Expenditure,Research Grants,The University of Manchester,98871877,16792.03,Research Grant Expenditure
BEIS,UKRI - AHRC,21/12/2020,Research Grant Expenditure,Research Grants,University of Liverpool,98871878,44212.25,Research Grant Expenditure
BEIS,UKRI - AHRC,21/12/2020,Research Grant Expenditure,Research Grants,The University of Manchester,98871879,77522.72,Research Grant Expenditure
BEIS,UKRI - AHRC,21/12/2020,Research Grant Expenditure,Research Grants,University of Southampton GRANT,98871880,55136.32,Research Grant Expenditure
BEIS,UKRI - AHRC,21/12/2020,Research Grant Expenditure,Research Grants,University of Liverpool,98871881,70224.18,Research Grant Expenditure
BEIS,UKRI - AHRC,21/12/2020,Research Grant Expenditure,Newton Programme,University of Bedfordshire,98871882,17318.53,Research Grant Expenditure
BEIS,UKRI - AHRC,21/12/2020,Research Grant Expenditure,Research Grants,University of Durham,98871883,28214.80,Research Grant Expenditure
BEIS,UKRI - AHRC,21/12/2020,Research Grant Expenditure,Networks & Workshops,University of Leeds,98871884,6990.39,Research Grant Expenditure
BEIS,UKRI - AHRC,21/12/2020,Research Grant Expenditure,Research Grants,The Open University,98871885,33736.59,Research Grant Expenditure
BEIS,UKRI - AHRC,21/12/2020,Research Grant Expenditure,Research Grants,University of Reading,98871886,64759.36,Research Grant Expenditure
BEIS,UKRI - AHRC,21/12/2020,Research Grant Expenditure,Research Grants,The University of Manchester,98871887,30311.54,Research Grant Expenditure
BEIS,UKRI - AHRC,21/12/2020,Research Grant Expenditure,Research Grants,Queen Mary University of London,98871888,38148.89,Research Grant Expenditure
BEIS,UKRI - AHRC,21/12/2020,Research Grant Expenditure,Networks & Workshops,Oxford Brookes University,98871889,5396.79,Research Grant Expenditure
BEIS,UKRI - AHRC,21/12/2020,Research Grant Expenditure,Research Grants,University of York,98871890,45446.91,Research Grant Expenditure
BEIS,UKRI - AHRC,21/12/2020,Research Grant Expenditure,Research Grants,University of Newcastle Upon Tyne,98871891,69702.78,Research Grant Expenditure
BEIS,UKRI - AHRC,21/12/2020,Research Grant Expenditure,Research Grants,Cardiff University,98871892,25195.40,Research Grant Expenditure
BEIS,UKRI - AHRC,21/12/2020,Research Grant Expenditure,Research Grants,Cardiff University,98871893,58387.45,Research Grant Expenditure
BEIS,UKRI - AHRC,21/12/2020,Research Grant Expenditure,Networks & Workshops,"Royal Holloway, University of London",98871894,3073.89,Research Grant Expenditure
BEIS,UKRI - AHRC,21/12/2020,Research Grant Expenditure,Research Grants,University of Newcastle Upon Tyne,98871895,66052.32,Research Grant Expenditure
BEIS,UKRI - AHRC,21/12/2020,Research Grant Expenditure,Research Grants,University of Cambridge,98871896,55703.88,Research Grant Expenditure
BEIS,UKRI - AHRC,21/12/2020,Research Grant Expenditure,Research Grants,University of Oxford,98871897,45453.12,Research Grant Expenditure
BEIS,UKRI - AHRC,21/12/2020,Research Grant Expenditure,Research Grants,University of Glasgow,98871898,57712.93,Research Grant Expenditure
BEIS,UKRI - AHRC,21/12/2020,Research Grant Expenditure,Research Grants,University of Birmingham GRANT,98871899,29408.22,Research Grant Expenditure
BEIS,UKRI - AHRC,21/12/2020,Research Grant Expenditure,Research Grants,University of South Wales,98871900,32176.51,Research Grant Expenditure
BEIS,UKRI - AHRC,21/12/2020,Research Grant Expenditure,Research Grants,University of Leicester,98871901,76017.70,Research Grant Expenditure
BEIS,UKRI - AHRC,21/12/2020,Research Grant Expenditure,Research Grants,University of Leeds,98871902,49183.07,Research Grant Expenditure
BEIS,UKRI - AHRC,21/12/2020,Research Grant Expenditure,Research Grants,University of Oxford,98871903,52425.59,Research Grant Expenditure
BEIS,UKRI - AHRC,21/12/2020,Research Grant Expenditure,RCUK Global Challenges Research Fund (RCUK GCRF),University of Sheffield,98871904,333.21,Research Grant Expenditure
BEIS,UKRI - AHRC,21/12/2020,Research Grant Expenditure,RCUK Global Challenges Research Fund (RCUK GCRF),University of Nottingham,98871905,469.70,Research Grant Expenditure
BEIS,UKRI - AHRC,21/12/2020,Research Grant Expenditure,Commissioned Research,University of Nottingham,98871906,83714.76,Research Grant Expenditure
BEIS,UKRI - AHRC,21/12/2020,Research Grant Expenditure,RCUK Global Challenges Research Fund (RCUK GCRF),University of Birmingham GRANT,98871907,107351.82,Research Grant Expenditure
BEIS,UKRI - AHRC,21/12/2020,Research Grant Expenditure,RCUK Global Challenges Research Fund (RCUK GCRF),Aberystwyth University,98871908,115602.02,Research Grant Expenditure
BEIS,UKRI - AHRC,21/12/2020,Research Grant Expenditure,RCUK Global Challenges Research Fund (RCUK GCRF),University of Glasgow,98871909,134717.54,Research Grant Expenditure
BEIS,UKRI - AHRC,21/12/2020,Research Grant Expenditure,RCUK Global Challenges Research Fund (RCUK GCRF),Keele University,98871910,115567.96,Research Grant Expenditure
BEIS,UKRI - AHRC,21/12/2020,Research Grant Expenditure,RCUK Global Challenges Research Fund (RCUK GCRF),UNIVERSITY OF ULSTER,98871911,130423.69,Research Grant Expenditure
BEIS,UKRI - AHRC,21/12/2020,Research Grant Expenditure,RCUK Global Challenges Research Fund (RCUK GCRF),University of Birmingham GRANT,98871912,115318.03,Research Grant Expenditure
BEIS,UKRI - AHRC,21/12/2020,Research Grant Expenditure,Networks & Workshops,University of Leeds,98871913,4626.38,Research Grant Expenditure
BEIS,UKRI - AHRC,21/12/2020,Research Grant Expenditure,Global Challenges Research Fund (GCRF),University of Essex,98871914,32483.78,Research Grant Expenditure
BEIS,UKRI - AHRC,21/12/2020,Research Grant Expenditure,RCUK Global Challenges Research Fund (RCUK GCRF),University of Lincoln,98871915,116879.65,Research Grant Expenditure
BEIS,UKRI - AHRC,21/12/2020,Research Grant Expenditure,Follow-on Fund,The Open University,98871916,19595.61,Research Grant Expenditure
BEIS,UKRI - AHRC,21/12/2020,Research Grant Expenditure,RCUK Global Challenges Research Fund (RCUK GCRF),University of Bath,98871917,113681.32,Research Grant Expenditure
BEIS,UKRI - AHRC,21/12/2020,Research Grant Expenditure,RCUK Global Challenges Research Fund (RCUK GCRF),The Open University,98871918,69471.46,Research Grant Expenditure
BEIS,UKRI - AHRC,21/12/2020,Research Grant Expenditure,RCUK Global Challenges Research Fund (RCUK GCRF),University of Exeter,98871919,116683.55,Research Grant Expenditure
BEIS,UKRI - AHRC,21/12/2020,Research Grant Expenditure,RCUK Global Challenges Research Fund (RCUK GCRF),International Institute For Environment And Development,98871920,468.95,Research Grant Expenditure
BEIS,UKRI - AHRC,21/12/2020,Research Grant Expenditure,Global Challenges Research Fund (GCRF),Cardiff University,98871921,25491.47,Research Grant Expenditure
BEIS,UKRI - AHRC,21/12/2020,Research Grant Expenditure,Networks & Workshops,University of Leeds,98871922,6024.63,Research Grant Expenditure
BEIS,UKRI - AHRC,21/12/2020,Research Grant Expenditure,Networks & Workshops,University of Exeter,98871923,3961.55,Research Grant Expenditure
BEIS,UKRI - AHRC,21/12/2020,Research Grant Expenditure,Follow-on Fund,University of Leicester,98871924,19840.96,Research Grant Expenditure
BEIS,UKRI - AHRC,21/12/2020,Research Grant Expenditure,Landscape Decisions (SPF),University of Central Lancashire,98871925,160.47,Research Grant Expenditure
BEIS,UKRI - AHRC,21/12/2020,Research Grant Expenditure,Global Challenges Research Fund (GCRF),Lancaster University,98871926,27308.51,Research Grant Expenditure
BEIS,UKRI - AHRC,21/12/2020,Research Grant Expenditure,Global Challenges Research Fund (GCRF),University of Sheffield,98871927,22793.12,Research Grant Expenditure
BEIS,UKRI - AHRC,21/12/2020,Research Grant Expenditure,Global Challenges Research Fund (GCRF),University of Sheffield,98871927,22793.12,Research Grant Expenditure
BEIS,UKRI - AHRC,21/12/2020,Research Grant Expenditure,Global Challenges Research Fund (GCRF),Leeds Beckett University,98871928,31751.85,Research Grant Expenditure
BEIS,UKRI - AHRC,21/12/2020,Research Grant Expenditure,Global Challenges Research Fund (GCRF),Sheffield Hallam University,98871929,32448.85,Research Grant Expenditure
BEIS,UKRI - AHRC,21/12/2020,Research Grant Expenditure,Global Challenges Research Fund (GCRF),University of Sheffield,98871930,29489.43,Research Grant Expenditure
BEIS,UKRI - AHRC,21/12/2020,Research Grant Expenditure,Research Grants,University of Kent,98871931,22046.37,Research Grant Expenditure
BEIS,UKRI - AHRC,21/12/2020,Research Grant Expenditure,Research Grants,University of Leicester,98871932,43058.65,Research Grant Expenditure
BEIS,UKRI - AHRC,21/12/2020,Research Grant Expenditure,Research Grants,Loughborough University,98871933,27206.27,Research Grant Expenditure
BEIS,UKRI - AHRC,21/12/2020,Research Grant Expenditure,Research Grants,Loughborough University,98871934,33436.18,Research Grant Expenditure
BEIS,UKRI - AHRC,21/12/2020,Research Grant Expenditure,Research Grants,University of Sheffield,98871935,65645.90,Research Grant Expenditure
BEIS,UKRI - AHRC,21/12/2020,Research Grant Expenditure,Research Grants,University of Durham,98871936,62621.96,Research Grant Expenditure
BEIS,UKRI - AHRC,21/12/2020,Research Grant Expenditure,Research Grants,University of Stirling,98871937,63480.79,Research Grant Expenditure
BEIS,UKRI - AHRC,21/12/2020,Research Grant Expenditure,Research Grants,University of Sussex,98871938,65588.32,Research Grant Expenditure
BEIS,UKRI - AHRC,21/12/2020,Research Grant Expenditure,Towards a National Collection (SPF),Science Museum Group,98871939,20137.70,Research Grant Expenditure
BEIS,UKRI - AHRC,21/12/2020,Research Grant Expenditure,Towards a National Collection (SPF),The National Gallery,98871940,25208.80,Research Grant Expenditure
BEIS,UKRI - AHRC,21/12/2020,Research Grant Expenditure,Research Grants,Manchester Metropolitan University,98871941,62601.22,Research Grant Expenditure
BEIS,UKRI - AHRC,21/12/2020,Research Grant Expenditure,Research Grants,University of Leeds,98871942,41610.53,Research Grant Expenditure
BEIS,UKRI - AHRC,21/12/2020,Research Grant Expenditure,Research Grants,The British Museum,98871943,50848.61,Research Grant Expenditure
BEIS,UKRI - AHRC,21/12/2020,Research Grant Expenditure,Research Grants,University of Newcastle Upon Tyne,98871944,61728.58,Research Grant Expenditure
BEIS,UKRI - AHRC,21/12/2020,Research Grant Expenditure,Follow-on Fund,University of Nottingham,98871945,20038.00,Research Grant Expenditure
BEIS,UKRI - AHRC,21/12/2020,Research Grant Expenditure,Follow-on Fund,University College London,98871946,19998.47,Research Grant Expenditure
BEIS,UKRI - AHRC,21/12/2020,Research Grant Expenditure,Research Grants,University of Stirling,98871947,60982.99,Research Grant Expenditure
BEIS,UKRI - AHRC,21/12/2020,Research Grant Expenditure,Research Grants,University of Southampton GRANT,98871948,38285.74,Research Grant Expenditure
BEIS,UKRI - AHRC,21/12/2020,Research Grant Expenditure,Research Grants,University of Sussex,98871949,12362.15,Research Grant Expenditure
BEIS,UKRI - AHRC,21/12/2020,Research Grant Expenditure,Research Grants,University of Birmingham GRANT,98871950,24221.26,Research Grant Expenditure
BEIS,UKRI - AHRC,21/12/2020,Research Grant Expenditure,Towards a National Collection (SPF),The British Library,98871951,20981.12,Research Grant Expenditure
BEIS,UKRI - AHRC,21/12/2020,Research Grant Expenditure,Research Grants,Liverpool John Moores University,98871952,24453.96,Research Grant Expenditure
BEIS,UKRI - AHRC,21/12/2020,Research Grant Expenditure,Global Challenges Research Fund (GCRF),University of Newcastle Upon Tyne,98871953,32640.83,Research Grant Expenditure
BEIS,UKRI - AHRC,21/12/2020,Research Grant Expenditure,Towards a National Collection (SPF),Tate Galleries,98871954,26751.85,Research Grant Expenditure
BEIS,UKRI - AHRC,21/12/2020,Research Grant Expenditure,Towards a National Collection (SPF),The National Archives,98871955,21990.38,Research Grant Expenditure
BEIS,UKRI - AHRC,21/12/2020,Research Grant Expenditure,Networks & Workshops,University of Hull,98871956,4478.46,Research Grant Expenditure
BEIS,UKRI - AHRC,21/12/2020,Capital Grants & Equipment to HEIs,Modern Slavery and Human Rights (SPF),British Institute Of International And Comparative Law,98871957,1250.00,Capital Grants & Equipment to HEIs
BEIS,UKRI - AHRC,21/12/2020,Research Grant Expenditure,Modern Slavery and Human Rights (SPF),British Institute Of International And Comparative Law,98871957,274932.64,Research Grant Expenditure
BEIS,UKRI - AHRC,21/12/2020,Research Grant Expenditure,Creative Economy,Loughborough University,98871958,67488.82,Research Grant Expenditure
BEIS,UKRI - AHRC,21/12/2020,Research Grant Expenditure,Funds for International Collaboration (FIC 20 US),University of Nottingham,98871959,61861.75,Research Grant Expenditure
BEIS,UKRI - AHRC,21/12/2020,Research Grant Expenditure,Towards a National Collection (SPF),Victoria and Albert Museum,98871960,27001.95,Research Grant Expenditure
BEIS,UKRI - AHRC,21/12/2020,Research Grant Expenditure,Funds for International Collaboration (FIC 20 US),Abertay University,98871961,59924.98,Research Grant Expenditure
BEIS,UKRI - AHRC,21/12/2020,Research Grant Expenditure,Funds for International Collaboration (FIC 20 US),The British Library,98871962,13543.46,Research Grant Expenditure
BEIS,UKRI - AHRC,21/12/2020,Research Grant Expenditure,Funds for International Collaboration (FIC 20 US),University of Oxford,98871963,16851.77,Research Grant Expenditure
BEIS,UKRI - AHRC,21/12/2020,Research Grant Expenditure,Funds for International Collaboration (FIC 20 US),King's College London,98871964,16029.63,Research Grant Expenditure
BEIS,UKRI - AHRC,21/12/2020,Research Grant Expenditure,Funds for International Collaboration (FIC 20 US),University of the Arts London,98871965,16840.48,Research Grant Expenditure
BEIS,UKRI - AHRC,21/12/2020,Research Grant Expenditure,Towards a National Collection (SPF),Historic Environment Scotland (GRANT),98871966,89586.60,Research Grant Expenditure
BEIS,UKRI - AHRC,21/12/2020,Research Grant Expenditure,Funds for International Collaboration (FIC 20 US),Nottingham Trent University,98871967,16847.93,Research Grant Expenditure
BEIS,UKRI - AHRC,21/12/2020,Research Grant Expenditure,JPI Cultural Heritage,University of York,98871968,16514.90,Research Grant Expenditure
BEIS,UKRI - AHRC,21/12/2020,Research Grant Expenditure,Global Challenges Research Fund (GCRF),University of York,98871969,31822.90,Research Grant Expenditure
BEIS,UKRI - AHRC,21/12/2020,Research Grant Expenditure,Towards a National Collection (SPF),The British Library,98871970,22660.87,Research Grant Expenditure
BEIS,UKRI - AHRC,21/12/2020,Research Grant Expenditure,Networks & Workshops,Bath Spa University,98871971,4622.73,Research Grant Expenditure
BEIS,UKRI - AHRC,21/12/2020,Research Grant Expenditure,Networks & Workshops,De Montfort University,98871972,6031.90,Research Grant Expenditure
BEIS,UKRI - AHRC,21/12/2020,Research Grant Expenditure,Funds for International Collaboration (FIC 20 US),University of Liverpool,98871973,59976.79,Research Grant Expenditure
BEIS,UKRI - AHRC,21/12/2020,Research Grant Expenditure,Towards a National Collection (SPF),The National Archives,98871974,32257.11,Research Grant Expenditure
BEIS,UKRI - AHRC,21/12/2020,Research Grant Expenditure,Funds for International Collaboration (FIC 20 US),University of Bristol GRANT,98871975,16796.63,Research Grant Expenditure
BEIS,UKRI - AHRC,21/12/2020,Research Grant Expenditure,Funds for International Collaboration (FIC 20 US),University of Cambridge,98871976,16852.29,Research Grant Expenditure
BEIS,UKRI - AHRC,21/12/2020,Research Grant Expenditure,RCUK Global Challenges Research Fund (RCUK GCRF),University of Bristol GRANT,98871977,114626.54,Research Grant Expenditure
BEIS,UKRI - AHRC,21/12/2020,Research Grant Expenditure,Funds for International Collaboration (FIC 20 US),University of Sussex,98871978,16845.84,Research Grant Expenditure
BEIS,UKRI - AHRC,21/12/2020,Research Grant Expenditure,Research Grants,University of Bristol GRANT,98871979,64998.01,Research Grant Expenditure
BEIS,UKRI - AHRC,21/12/2020,Research Grant Expenditure,Research Grants,Bangor University,98871980,24853.11,Research Grant Expenditure
BEIS,UKRI - AHRC,21/12/2020,Research Grant Expenditure,Research Grants,Keele University,98871981,36121.97,Research Grant Expenditure
BEIS,UKRI - AHRC,21/12/2020,Research Grant Expenditure,Commissioned Research,University of Newcastle Upon Tyne,98871982,60439.86,Research Grant Expenditure
BEIS,UKRI - AHRC,21/12/2020,Research Grant Expenditure,Research Grants,University of Nottingham,98871983,61118.82,Research Grant Expenditure
BEIS,UKRI - AHRC,21/12/2020,Research Grant Expenditure,Climate Resilience (SPF w1),University of Liverpool,98871984,40325.12,Research Grant Expenditure
BEIS,UKRI - AHRC,21/12/2020,Research Grant Expenditure,Research Grants,University of East Anglia,98871985,35798.94,Research Grant Expenditure
BEIS,UKRI - AHRC,21/12/2020,Research Grant Expenditure,Global Challenges Research Fund (GCRF),University of the West of England,98871986,44374.17,Research Grant Expenditure
BEIS,UKRI - AHRC,21/12/2020,Research Grant Expenditure,Global Challenges Research Fund (GCRF),University of Newcastle Upon Tyne,98871987,34062.46,Research Grant Expenditure
BEIS,UKRI - AHRC,21/12/2020,Research Grant Expenditure,Newton Programme,University of Bristol GRANT,98871988,11439.94,Research Grant Expenditure
BEIS,UKRI - AHRC,21/12/2020,Research Grant Expenditure,Climate Resilience (SPF w1),The University of Manchester,98871989,39630.05,Research Grant Expenditure
BEIS,UKRI - AHRC,21/12/2020,Research Grant Expenditure,DFID Collaborative Humanitarian Protection Research Programme (CHPRP),University of Portsmouth,98871990,64538.89,Research Grant Expenditure
BEIS,UKRI - AHRC,21/12/2020,Research Grant Expenditure,DFID Collaborative Humanitarian Protection Research Programme (CHPRP),University of Durham,98871991,49904.09,Research Grant Expenditure
BEIS,UKRI - AHRC,21/12/2020,Research Grant Expenditure,DFID Collaborative Humanitarian Protection Research Programme (CHPRP),Institute of Development Studies,98871992,65049.55,Research Grant Expenditure
BEIS,UKRI - AHRC,21/12/2020,Research Grant Expenditure,Research Grants,University of Huddersfield,98871993,16524.16,Research Grant Expenditure
BEIS,UKRI - AHRC,21/12/2020,Research Grant Expenditure,JPI Cultural Heritage,University of Durham,98871994,10741.72,Research Grant Expenditure
BEIS,UKRI - AHRC,21/12/2020,Research Grant Expenditure,DFID Collaborative Humanitarian Protection Research Programme (CHPRP),University of Bath,98871995,88081.91,Research Grant Expenditure
BEIS,UKRI - AHRC,21/12/2020,Research Grant Expenditure,DFID Collaborative Humanitarian Protection Research Programme (CHPRP),Queen's University Belfast GRANT,98871996,56271.45,Research Grant Expenditure
BEIS,UKRI - AHRC,21/12/2020,Research Grant Expenditure,DFID Collaborative Humanitarian Protection Research Programme (CHPRP),London School of Economics and Political Science,98871997,61037.41,Research Grant Expenditure
BEIS,UKRI - AHRC,21/12/2020,Research Grant Expenditure,Follow-on Fund,University of Cambridge,98871998,29282.70,Research Grant Expenditure
BEIS,UKRI - AHRC,21/12/2020,Research Grant Expenditure,JPI Cultural Heritage,University College London,98871999,11102.19,Research Grant Expenditure
BEIS,UKRI - AHRC,21/12/2020,Research Grant Expenditure,JPI Cultural Heritage,University College London,98871999,15831.39,Research Grant Expenditure
BEIS,UKRI - AHRC,21/12/2020,Research Grant Expenditure,Global Challenges Research Fund (GCRF),Coventry University,98872000,33671.12,Research Grant Expenditure
BEIS,UKRI - AHRC,21/12/2020,Research Grant Expenditure,Climate Resilience (SPF w1),University of Hull,98872001,35547.57,Research Grant Expenditure
BEIS,UKRI - AHRC,21/12/2020,Research Grant Expenditure,DFID Collaborative Humanitarian Protection Research Programme (CHPRP),University of Oxford,98872003,73917.63,Research Grant Expenditure
BEIS,UKRI - AHRC,21/12/2020,Research Grant Expenditure,Newton Programme,Royal College of Art,98872004,12070.96,Research Grant Expenditure
BEIS,UKRI - AHRC,21/12/2020,Research Grant Expenditure,Global Challenges Research Fund (GCRF),"City, University of London",98872005,30207.37,Research Grant Expenditure
BEIS,UKRI - AHRC,21/12/2020,Research Grant Expenditure,Networks & Workshops,University of Leeds,98872007,6521.63,Research Grant Expenditure
BEIS,UKRI - AHRC,21/12/2020,Research Grant Expenditure,Networks & Workshops,Coventry University,98872008,2968.06,Research Grant Expenditure
BEIS,UKRI - AHRC,21/12/2020,Research Grant Expenditure,Global Challenges Research Fund (GCRF),University of Leeds,98872009,47402.49,Research Grant Expenditure
BEIS,UKRI - AHRC,21/12/2020,Research Grant Expenditure,Global Challenges Research Fund (GCRF),Royal Botanic Gardens Edinburgh,98872011,35885.13,Research Grant Expenditure
BEIS,UKRI - AHRC,21/12/2020,Research Grant Expenditure,DFID Collaborative Humanitarian Protection Research Programme (CHPRP),University of Warwick,98872012,61340.04,Research Grant Expenditure
BEIS,UKRI - AHRC,21/12/2020,Research Grant Expenditure,Networks & Workshops,Leeds Beckett University,98872013,3015.48,Research Grant Expenditure
BEIS,UKRI - AHRC,21/12/2020,Research Grant Expenditure,Networks & Workshops,University of Edinburgh,98872014,4943.43,Research Grant Expenditure
BEIS,UKRI - AHRC,21/12/2020,Research Grant Expenditure,Global Challenges Research Fund (GCRF),University of Durham,98872015,37787.41,Research Grant Expenditure
BEIS,UKRI - AHRC,21/12/2020,Research Grant Expenditure,Networks & Workshops,"Royal Holloway, University of London",98872016,5694.75,Research Grant Expenditure
BEIS,UKRI - AHRC,21/12/2020,Research Grant Expenditure,Networks & Workshops,University of York,98872017,3985.14,Research Grant Expenditure
BEIS,UKRI - AHRC,21/12/2020,Research Grant Expenditure,Global Challenges Research Fund (GCRF),Queen Mary University of London,98872018,43199.95,Research Grant Expenditure
BEIS,UKRI - AHRC,21/12/2020,Research Grant Expenditure,Global Challenges Research Fund (GCRF),University of Edinburgh,98872019,26225.17,Research Grant Expenditure
BEIS,UKRI - AHRC,21/12/2020,Research Grant Expenditure,Global Challenges Research Fund (GCRF),University of Warwick,98872020,33922.29,Research Grant Expenditure
BEIS,UKRI - AHRC,21/12/2020,Research Grant Expenditure,The Newton Fund Impact Scheme (NFIS),Coventry University,98872021,12434.65,Research Grant Expenditure
BEIS,UKRI - AHRC,21/12/2020,Research Grant Expenditure,Research Grants,Loughborough University,98872022,28878.57,Research Grant Expenditure
BEIS,UKRI - AHRC,21/12/2020,Research Grant Expenditure,Research Grants,University of Edinburgh,98872023,24943.72,Research Grant Expenditure
BEIS,UKRI - AHRC,21/12/2020,Research Grant Expenditure,COVID-19,University of West London,98872024,56140.75,Research Grant Expenditure
BEIS,UKRI - AHRC,21/12/2020,Research Grant Expenditure,COVID-19,Robert Gordon University,98872025,7651.48,Research Grant Expenditure
BEIS,UKRI - AHRC,21/12/2020,Research Grant Expenditure,Global Challenges Research Fund (GCRF),University of Glasgow,98872026,34761.80,Research Grant Expenditure
BEIS,UKRI - AHRC,21/12/2020,Research Grant Expenditure,Funds for International Collaboration (FIC 20 US),University of Oxford,98872027,17984.91,Research Grant Expenditure
BEIS,UKRI - AHRC,21/12/2020,Research Grant Expenditure,Funds for International Collaboration (FIC 20 US),University of Glasgow,98872028,18055.73,Research Grant Expenditure
BEIS,UKRI - AHRC,21/12/2020,Research Grant Expenditure,Funds for International Collaboration (FIC 20 US),Queen's University Belfast GRANT,98872029,8776.95,Research Grant Expenditure
BEIS,UKRI - AHRC,21/12/2020,Research Grant Expenditure,Funds for International Collaboration (FIC 20 US),University of Glasgow,98872030,13505.99,Research Grant Expenditure
BEIS,UKRI - AHRC,21/12/2020,Research Grant Expenditure,Funds for International Collaboration (FIC 20 US),University of Bradford,98872031,17976.29,Research Grant Expenditure
BEIS,UKRI - AHRC,21/12/2020,Research Grant Expenditure,Global Challenges Research Fund (GCRF),University of Edinburgh,98872032,23264.43,Research Grant Expenditure
BEIS,UKRI - AHRC,21/12/2020,Research Grant Expenditure,Global Challenges Research Fund (GCRF),University of Leicester,98872033,33881.50,Research Grant Expenditure
BEIS,UKRI - AHRC,21/12/2020,Research Grant Expenditure,COVID-19,University of Plymouth,98872034,22424.66,Research Grant Expenditure
BEIS,UKRI - AHRC,21/12/2020,Research Grant Expenditure,Research Grants,Birmingham City University,98872035,45279.38,Research Grant Expenditure
BEIS,UKRI - AHRC,21/12/2020,Research Grant Expenditure,Global Challenges Research Fund (GCRF),Heriot Watt University,98872036,31314.88,Research Grant Expenditure
BEIS,UKRI - AHRC,21/12/2020,Research Grant Expenditure,Research Grants,University of Glasgow,98872037,65978.53,Research Grant Expenditure
BEIS,UKRI - AHRC,21/12/2020,Research Grant Expenditure,COVID-19,Keele University,98872038,29519.04,Research Grant Expenditure
BEIS,UKRI - AHRC,21/12/2020,Research Grant Expenditure,Global Challenges Research Fund (GCRF),Cardiff University,98872039,66824.29,Research Grant Expenditure
BEIS,UKRI - AHRC,21/12/2020,Research Grant Expenditure,Funds for International Collaboration (FIC 20 US),University of Oxford,98872040,18059.26,Research Grant Expenditure
BEIS,UKRI - AHRC,21/12/2020,Research Grant Expenditure,Funds for International Collaboration (FIC 20 US),University of London,98872041,6047.95,Research Grant Expenditure
BEIS,UKRI - AHRC,21/12/2020,Research Grant Expenditure,Funds for International Collaboration (FIC 20 US),Coventry University,98872042,12028.75,Research Grant Expenditure
BEIS,UKRI - AHRC,21/12/2020,Research Grant Expenditure,Global Challenges Research Fund (GCRF),London School of Hygiene & Tropical Medicine,98872043,33617.25,Research Grant Expenditure
BEIS,UKRI - AHRC,21/12/2020,Research Grant Expenditure,Funds for International Collaboration (FIC 20 US),Loughborough University,98872044,10368.95,Research Grant Expenditure
BEIS,UKRI - AHRC,21/12/2020,Research Grant Expenditure,COVID-19,University of Liverpool,98872045,64703.15,Research Grant Expenditure
BEIS,UKRI - AHRC,21/12/2020,Research Grant Expenditure,Modern Slavery and Human Rights (SPF),Keele University,98872046,31598.63,Research Grant Expenditure
BEIS,UKRI - AHRC,21/12/2020,Research Grant Expenditure,COVID-19,Sheffield Hallam University,98872047,45773.22,Research Grant Expenditure
BEIS,UKRI - AHRC,21/12/2020,Research Grant Expenditure,COVID-19 (AHRC funded),The University of Manchester,98872048,55582.69,Research Grant Expenditure
BEIS,UKRI - AHRC,21/12/2020,Research Grant Expenditure,COVID-19 (AHRC funded),The University of Manchester,98872048,55582.69,Research Grant Expenditure
BEIS,UKRI - AHRC,21/12/2020,Research Grant Expenditure,COVID-19 (AHRC funded),Manchester Metropolitan University,98872049,55754.45,Research Grant Expenditure
BEIS,UKRI - AHRC,21/12/2020,Research Grant Expenditure,COVID-19 (AHRC funded),Manchester Metropolitan University,98872049,58383.58,Research Grant Expenditure
BEIS,UKRI - AHRC,21/12/2020,Research Grant Expenditure,Follow-on Fund,The University of Manchester,98872050,19239.76,Research Grant Expenditure
BEIS,UKRI - AHRC,21/12/2020,Research Grant Expenditure,Follow-on Fund,University of Birmingham GRANT,98872051,24742.96,Research Grant Expenditure
BEIS,UKRI - AHRC,21/12/2020,Research Grant Expenditure,COVID-19 (AHRC funded),University of the Arts London,98872052,93298.42,Research Grant Expenditure
BEIS,UKRI - AHRC,21/12/2020,Research Grant Expenditure,Research Grants,University of Newcastle Upon Tyne,98872055,52669.79,Research Grant Expenditure
BEIS,UKRI - AHRC,21/12/2020,Research Grant Expenditure,Funds for International Collaboration (FIC 20 US),Kingston University,98872056,17886.69,Research Grant Expenditure
BEIS,UKRI - AHRC,21/12/2020,Research Grant Expenditure,Modern Slavery and Human Rights (SPF),Nottingham Trent University,98872057,88427.43,Research Grant Expenditure
BEIS,UKRI - AHRC,21/12/2020,Research Grant Expenditure,Networks & Workshops,Nottingham Trent University,98872058,5649.17,Research Grant Expenditure
BEIS,UKRI - AHRC,21/12/2020,Research Grant Expenditure,Networks & Workshops,Nottingham Trent University,98872058,5649.17,Research Grant Expenditure
BEIS,UKRI - AHRC,21/12/2020,Research Grant Expenditure,Networks & Workshops,Nottingham Trent University,98872058,5649.17,Research Grant Expenditure
BEIS,UKRI - AHRC,21/12/2020,Research Grant Expenditure,COVID-19,University College London,98872059,54259.62,Research Grant Expenditure
BEIS,UKRI - AHRC,21/12/2020,Research Grant Expenditure,COVID-19 (AHRC funded),University of Sheffield,98872060,95147.79,Research Grant Expenditure
BEIS,UKRI - AHRC,21/12/2020,Research Grant Expenditure,COVID-19 (AHRC funded),University of Sheffield,98872060,95147.79,Research Grant Expenditure
BEIS,UKRI - AHRC,21/12/2020,Research Grant Expenditure,Funds for International Collaboration (FIC 20 US),University of Cambridge,98872061,11902.32,Research Grant Expenditure
BEIS,UKRI - AHRC,21/12/2020,Research Grant Expenditure,Modern Slavery and Human Rights (SPF),University of Newcastle Upon Tyne,98872062,64006.85,Research Grant Expenditure
BEIS,UKRI - AHRC,21/12/2020,Research Grant Expenditure,Follow-on Fund,University of Huddersfield,98872063,20148.16,Research Grant Expenditure
BEIS,UKRI - AHRC,21/12/2020,Research Grant Expenditure,COVID-19,The University of Manchester,98872064,153995.01,Research Grant Expenditure
BEIS,UKRI - AHRC,21/12/2020,Research Grant Expenditure,COVID-19,University of Oxford,98872065,64600.22,Research Grant Expenditure
BEIS,UKRI - AHRC,21/12/2020,Research Grant Expenditure,COVID-19,University of Oxford,98872065,64600.22,Research Grant Expenditure
BEIS,UKRI - AHRC,21/12/2020,Research Grant Expenditure,Funds for International Collaboration (FIC 20 US),National Trust,98872066,11999.67,Research Grant Expenditure
BEIS,UKRI - AHRC,21/12/2020,Research Grant Expenditure,COVID-19 (AHRC funded),University of Liverpool,98872067,30895.10,Research Grant Expenditure
BEIS,UKRI - AHRC,21/12/2020,Research Grant Expenditure,Modern Slavery and Human Rights (SPF),University of Edinburgh,98872068,48796.52,Research Grant Expenditure
BEIS,UKRI - AHRC,21/12/2020,Research Grant Expenditure,Modern Slavery and Human Rights (SPF),University of Leeds,98872069,108571.49,Research Grant Expenditure
BEIS,UKRI - AHRC,21/12/2020,Research Grant Expenditure,COVID-19 (AHRC funded),Goldsmiths College University of London,98872070,13941.83,Research Grant Expenditure
BEIS,UKRI - AHRC,21/12/2020,Research Grant Expenditure,Commissioned Research,University of Oxford,98872071,36120.01,Research Grant Expenditure
BEIS,UKRI - AHRC,21/12/2020,Research Grant Expenditure,Modern Slavery and Human Rights (SPF),University of Aberdeen,98872072,123312.50,Research Grant Expenditure
BEIS,UKRI - AHRC,21/12/2020,Research Grant Expenditure,COVID-19 (AHRC funded),University of Leeds,98872073,167100.07,Research Grant Expenditure
BEIS,UKRI - AHRC,21/12/2020,Research Grant Expenditure,Global Challenges Research Fund (GCRF),Nottingham Trent University,98872074,38045.46,Research Grant Expenditure
BEIS,UKRI - AHRC,21/12/2020,Research Grant Expenditure,Follow-on Fund,University of Sheffield,98872075,19781.50,Research Grant Expenditure
BEIS,UKRI - AHRC,21/12/2020,Research Grant Expenditure,COVID-19,University of Glasgow,98872076,44188.67,Research Grant Expenditure
BEIS,UKRI - AHRC,21/12/2020,Research Grant Expenditure,Follow-on Fund,UNIVERSITY OF ULSTER,98872077,20113.90,Research Grant Expenditure
BEIS,UKRI - AHRC,21/12/2020,Research Grant Expenditure,Follow-on Fund,University of Newcastle Upon Tyne,98872078,19940.55,Research Grant Expenditure
BEIS,UKRI - AHRC,21/12/2020,Research Grant Expenditure,COVID-19 (AHRC funded),University of Strathclyde,98872079,25769.11,Research Grant Expenditure
BEIS,UKRI - AHRC,21/12/2020,Fellowships,Research Fellowships,University of Leeds,98872237,26465.12,Fellowships
BEIS,UKRI - AHRC,21/12/2020,Fellowships,Research Fellowships,University of Leeds,98872238,27666.77,Fellowships
BEIS,UKRI - AHRC,21/12/2020,Fellowships,Research Fellowships,University of Leicester,98872239,28664.81,Fellowships
BEIS,UKRI - AHRC,21/12/2020,Fellowships,Research Fellowships,The Royal Central School of Speech and Drama,98872240,35065.59,Fellowships
BEIS,UKRI - AHRC,21/12/2020,Fellowships,Commissioned Research,University of Liverpool,98872241,26831.06,Fellowships
BEIS,UKRI - AHRC,21/12/2020,Fellowships,Research Fellowships,The University of Manchester,98872242,36398.12,Fellowships
BEIS,UKRI - AHRC,21/12/2020,Fellowships,Research Fellowships,University of Edinburgh,98872243,23037.41,Fellowships
BEIS,UKRI - AHRC,21/12/2020,Fellowships,Research Fellowships,University of Exeter,98872244,27459.29,Fellowships
BEIS,UKRI - AHRC,21/12/2020,Fellowships,Research Fellowships,University of Durham,98872245,28185.07,Fellowships
BEIS,UKRI - AHRC,21/12/2020,Fellowships,Research Fellowships,University of Durham,98872245,28185.07,Fellowships
BEIS,UKRI - AHRC,21/12/2020,Fellowships,Research Fellowships,University of Exeter,98872246,34235.65,Fellowships
BEIS,UKRI - AHRC,21/12/2020,Fellowships,Research Fellowships,The University of Manchester,98872247,22577.52,Fellowships
BEIS,UKRI - AHRC,21/12/2020,Fellowships,Research Fellowships,Queen Mary University of London,98872248,25405.13,Fellowships
BEIS,UKRI - AHRC,21/12/2020,Fellowships,Research Fellowships,Bath Spa University,98872249,28246.63,Fellowships
BEIS,UKRI - AHRC,21/12/2020,Fellowships,Research Fellowships,Royal Conservatoire of Scotland,98872251,37211.48,Fellowships
BEIS,UKRI - AHRC,21/12/2020,Fellowships,Research Fellowships,University of Birmingham GRANT,98872252,23110.49,Fellowships
BEIS,UKRI - AHRC,21/12/2020,Fellowships,Research Fellowships,University of Sheffield,98872253,24956.27,Fellowships
BEIS,UKRI - AHRC,21/12/2020,Fellowships,Research Fellowships,University of Dundee,98872254,34359.40,Fellowships
BEIS,UKRI - AHRC,21/12/2020,Fellowships,Research Fellowships,University of Nottingham,98872255,30524.26,Fellowships
BEIS,UKRI - AHRC,21/12/2020,Fellowships,Research Fellowships,University of Exeter,98872256,25156.50,Fellowships
BEIS,UKRI - AHRC,21/12/2020,Fellowships,Commissioned Research,University of St Andrews,98872257,25865.73,Fellowships
BEIS,UKRI - AHRC,21/12/2020,Fellowships,Research Fellowships,University of Nottingham,98872258,23538.83,Fellowships
BEIS,UKRI - AHRC,21/12/2020,Fellowships,Research Fellowships,University of Newcastle Upon Tyne,98872259,23686.05,Fellowships
BEIS,UKRI - AHRC,21/12/2020,Fellowships,Research Fellowships,Edge Hill University College,98872260,29802.36,Fellowships
BEIS,UKRI - AHRC,21/12/2020,Fellowships,Research Fellowships,University of Leeds,98872261,22142.56,Fellowships
BEIS,UKRI - AHRC,21/12/2020,Fellowships,Research Fellowships,University of Leeds,98872262,37907.11,Fellowships
BEIS,UKRI - AHRC,21/12/2020,Fellowships,Research Fellowships,University of East Anglia,98872263,32979.66,Fellowships
BEIS,UKRI - AHRC,21/12/2020,Fellowships,Research Fellowships,University of Central Lancashire,98872264,11543.35,Fellowships
BEIS,UKRI - AHRC,21/12/2020,Fellowships,Research Fellowships,Bangor University,98872265,28257.44,Fellowships
BEIS,UKRI - AHRC,21/12/2020,Fellowships,Research Fellowships,University of the Arts London,98872266,21337.87,Fellowships
BEIS,UKRI - AHRC,21/12/2020,Fellowships,Research Fellowships,University of Durham,98872267,32661.91,Fellowships
BEIS,UKRI - AHRC,21/12/2020,Fellowships,Research Fellowships,University of Edinburgh,98872268,27202.16,Fellowships
BEIS,UKRI - AHRC,21/12/2020,Fellowships,Research Fellowships,University of Sheffield,98872269,21398.09,Fellowships
BEIS,UKRI - AHRC,21/12/2020,Fellowships,Research Fellowships,University of Sheffield,98872269,21398.09,Fellowships
BEIS,UKRI - AHRC,21/12/2020,Fellowships,Research Fellowships,Cardiff University,98872270,33485.33,Fellowships
BEIS,UKRI - AHRC,21/12/2020,Fellowships,Research Fellowships,Goldsmiths College University of London,98872271,24294.21,Fellowships
BEIS,UKRI - AHRC,21/12/2020,Fellowships,Research Fellowships,University of Southampton GRANT,98872272,28784.74,Fellowships
BEIS,UKRI - AHRC,21/12/2020,Research Grant Expenditure,Research Grants,University of Nottingham,98872310,36490.22,Research Grant Expenditure
BEIS,UKRI - AHRC,21/12/2020,Research Grant Expenditure,Research Grants,The University of Manchester,98872311,41072.33,Research Grant Expenditure
BEIS,UKRI - AHRC,21/12/2020,Research Grant Expenditure,Research Grants,University of Oxford,98872312,38974.64,Research Grant Expenditure
BEIS,UKRI - AHRC,21/12/2020,Research Grant Expenditure,Research Grants,The University of Manchester,98872313,40037.32,Research Grant Expenditure
BEIS,UKRI - AHRC,21/12/2020,Research Grant Expenditure,Connected Communities Programme,Brunel University London,98872314,101993.54,Research Grant Expenditure
BEIS,UKRI - AHRC,21/12/2020,Research Grant Expenditure,Research Grants,University of Sheffield,98872315,1307.93,Research Grant Expenditure
BEIS,UKRI - AHRC,21/12/2020,Research Grant Expenditure,Open World Research Initiative (OWRI).,University of Oxford,98872316,155228.58,Research Grant Expenditure
BEIS,UKRI - AHRC,21/12/2020,Research Grant Expenditure,Research Grants,University of Warwick,98872317,20732.42,Research Grant Expenditure
BEIS,UKRI - AHRC,21/12/2020,Research Grant Expenditure,Care for the Future,Queen's University Belfast GRANT,98872318,8730.77,Research Grant Expenditure
BEIS,UKRI - AHRC,21/12/2020,Research Grant Expenditure,Connected Communities Programme,Queen's University Belfast GRANT,98872318,8730.75,Research Grant Expenditure
BEIS,UKRI - AHRC,21/12/2020,Research Grant Expenditure,Care for the Future,University of Hertfordshire,98872319,1676.81,Research Grant Expenditure
BEIS,UKRI - AHRC,21/12/2020,Research Grant Expenditure,Connected Communities Programme,University of Hertfordshire,98872319,1676.79,Research Grant Expenditure
BEIS,UKRI - AHRC,21/12/2020,Research Grant Expenditure,Research Grants,The University of Manchester,98872320,60451.34,Research Grant Expenditure
BEIS,UKRI - AHRC,21/12/2020,Research Grant Expenditure,Research Grants,Cardiff University,98872321,16839.31,Research Grant Expenditure
BEIS,UKRI - AHRC,21/12/2020,Research Grant Expenditure,Research Grants,University of Cambridge,98872322,46429.98,Research Grant Expenditure
BEIS,UKRI - AHRC,21/12/2020,Research Grant Expenditure,Research Grants,University of the Arts London,98872323,37552.18,Research Grant Expenditure
BEIS,UKRI - AHRC,21/12/2020,Research Grant Expenditure,Anti-microbial Resistance (AMR),University of Exeter,98872324,13511.30,Research Grant Expenditure
BEIS,UKRI - AHRC,21/12/2020,Research Grant Expenditure,Networks & Workshops,Northumbria University,98872325,-0.02,Research Grant Expenditure
BEIS,UKRI - AHRC,21/12/2020,Research Grant Expenditure,Networks & Workshops,University of Glasgow,98872326,-5585.40,Research Grant Expenditure
BEIS,UKRI - AHRC,21/12/2020,Research Grant Expenditure,Networks & Workshops,Cardiff University,98872327,-5883.84,Research Grant Expenditure
BEIS,UKRI - AHRC,21/12/2020,Research Grant Expenditure,Newton Programme,University of Liverpool,98872328,-9411.37,Research Grant Expenditure
BEIS,UKRI - AHRC,21/12/2020,Research Grant Expenditure,Networks & Workshops,Northumbria University,98872329,-368.82,Research Grant Expenditure
BEIS,UKRI - AHRC,21/12/2020,Research Grant Expenditure,Global Challenges Research Fund (GCRF),University of Sussex,98872330,-2976.84,Research Grant Expenditure
BEIS,UKRI - AHRC,21/12/2020,Research Grant Expenditure,Global Challenges Research Fund (GCRF),University of Bristol GRANT,98872331,-2749.21,Research Grant Expenditure
BEIS,UKRI - AHRC,21/12/2020,Research Grant Expenditure,Global Challenges Research Fund (GCRF),University of Portsmouth,98872332,14882.21,Research Grant Expenditure
BEIS,UKRI - AHRC,21/12/2020,Research Grant Expenditure,Global Challenges Research Fund (GCRF),The Open University,98872333,-216.82,Research Grant Expenditure
BEIS,UKRI - AHRC,21/12/2020,Research Grant Expenditure,Networks & Workshops,University of the Arts London,98872334,-3302.25,Research Grant Expenditure
BEIS,UKRI - AHRC,21/12/2020,Research Grant Expenditure,Networks & Workshops,The Royal Central School of Speech and Drama,98872335,-641.27,Research Grant Expenditure
BEIS,UKRI - AHRC,21/12/2020,Research Grant Expenditure,Follow-on Fund,London School of Economics and Political Science,98872336,-6586.88,Research Grant Expenditure
BEIS,UKRI - AHRC,21/12/2020,Research Grant Expenditure,Follow-on Fund,University of Glasgow,98872337,26051.27,Research Grant Expenditure
BEIS,UKRI - AHRC,21/12/2020,Research Grant Expenditure,Newton Programme,University of Nottingham,98872338,-21836.09,Research Grant Expenditure
BEIS,UKRI - AHRC,21/12/2020,Research Grant Expenditure,Global Challenges Research Fund (GCRF),Coventry University,98872339,-3812.18,Research Grant Expenditure
BEIS,UKRI - AHRC,21/12/2020,Research Grant Expenditure,Global Challenges Research Fund (GCRF),University of East Anglia,98872340,-13855.90,Research Grant Expenditure
BEIS,UKRI - AHRC,21/12/2020,Capital Grants & Equipment to HEIs,Research Grants,University of Lincoln,98872341,73.39,Capital Grants & Equipment to HEIs
BEIS,UKRI - AHRC,21/12/2020,Research Grant Expenditure,Research Grants,University of Lincoln,98872341,-20382.14,Research Grant Expenditure
BEIS,UKRI - AHRC,21/12/2020,Research Grant Expenditure,Global Challenges Research Fund (GCRF),University of Leeds,98872342,-12506.12,Research Grant Expenditure
BEIS,UKRI - AHRC,21/12/2020,Research Grant Expenditure,Follow-on Fund,University of Nottingham,98872343,-6139.13,Research Grant Expenditure
BEIS,UKRI - AHRC,21/12/2020,Research Grant Expenditure,Networks & Workshops,University of Cambridge,98872344,-5667.75,Research Grant Expenditure
BEIS,UKRI - AHRC,21/12/2020,Research Grant Expenditure,Funds for International Collaboration (FIC 20 US),University of Sussex,98872345,-88808.52,Research Grant Expenditure
BEIS,UKRI - AHRC,21/12/2020,Research Grant Expenditure,Networks & Workshops,University of Leeds,98872346,6795.43,Research Grant Expenditure
BEIS,UKRI - AHRC,22/12/2020,Research Grant Expenditure,DFID Collaborative Humanitarian Protection Research Programme (CHPRP),American University of Beirut,98872002,60449.66,Research Grant Expenditure
BEIS,UKRI - AHRC,22/12/2020,Research Grant Expenditure,DFID Collaborative Humanitarian Protection Research Programme (CHPRP),SIPRI,98872006,69726.53,Research Grant Expenditure
BEIS,UKRI - AHRC,22/12/2020,Research Grant Expenditure,Global Challenges Research Fund (GCRF),University of Lagos,98872010,71909.90,Research Grant Expenditure
BEIS,UKRI - AHRC,22/12/2020,Research Grant Expenditure,DFID Collaborative Humanitarian Protection Research Programme (CHPRP),Geneva Academy of International Humanitarian Law and Human Rights,98872053,60397.99,Research Grant Expenditure
BEIS,UKRI - AHRC,22/12/2020,Research Grant Expenditure,DFID Collaborative Humanitarian Protection Research Programme (CHPRP),Geneva Academy of International Humanitarian Law and Human Rights,98872053,105397.99,Research Grant Expenditure
BEIS,UKRI - AHRC,22/12/2020,Research Grant Expenditure,DFID Collaborative Humanitarian Protection Research Programme (CHPRP),Geneva Academy of International Humanitarian Law and Human Rights,98872053,60397.99,Research Grant Expenditure
BEIS,UKRI - AHRC,22/12/2020,Research Grant Expenditure,DFID Collaborative Humanitarian Protection Research Programme (CHPRP),Global Public Policy Institute,98872054,72929.18,Research Grant Expenditure
BEIS,UKRI - AHRC,22/12/2020,Reward & Recognition Team Advances,Balance Sheet,UKRI - Engineering & Physical Sciences Research Council,98875050,893.18,Reward & Recognition Team Advances
BEIS,UKRI - AHRC,22/12/2020,Research Grant Expenditure,RCUK Global Challenges Research Fund (RCUK GCRF),UKRI - Medical Research Council,98875744,16622.44,Research Grant Expenditure
BEIS,UKRI - AHRC,22/12/2020,Research Grant Expenditure,NPIF Research Talent (RCUK Innovation Fellowships),UKRI - Engineering & Physical Sciences Research Council,98875798,12545.86,Research Grant Expenditure
BEIS,UKRI - AHRC,22/12/2020,Research Grant Expenditure,NPIF Research Talent (RCUK Innovation Fellowships),UKRI - Engineering & Physical Sciences Research Council,98875818,14050.85,Research Grant Expenditure
BEIS,UKRI - AHRC,22/12/2020,Research Grant Expenditure,NPIF Research Talent (RCUK Innovation Fellowships),UKRI - Engineering & Physical Sciences Research Council,98875823,21866.34,Research Grant Expenditure
BEIS,UKRI - AHRC,22/12/2020,Research Grant Expenditure,NPIF Research Talent (RCUK Innovation Fellowships),UKRI - Engineering & Physical Sciences Research Council,98875826,7120.57,Research Grant Expenditure
BEIS,UKRI - AHRC,22/12/2020,Research Grant Expenditure,Commissioned Research,UKRI - Economic & Social Research Council,98877766,6056.17,Research Grant Expenditure
BEIS,UKRI - AHRC,22/12/2020,Research Grant Expenditure,RCUK Global Challenges Research Fund (RCUK GCRF),UKRI - Economic & Social Research Council,98877794,39457.00,Research Grant Expenditure
BEIS,UKRI - AHRC,22/12/2020,Research Grant Expenditure,RCUK Global Challenges Research Fund (RCUK GCRF),UKRI - Economic & Social Research Council,98877796,18651.25,Research Grant Expenditure
BEIS,UKRI - AHRC,22/12/2020,Research Grant Expenditure,RCUK Global Challenges Research Fund (RCUK GCRF),UKRI - Economic & Social Research Council,98877799,47039.70,Research Grant Expenditure
BEIS,UKRI - AHRC,22/12/2020,Research Grant Expenditure,Commissioned Research,UKRI - Economic & Social Research Council,98877800,6796.50,Research Grant Expenditure
BEIS,UKRI - AHRC,22/12/2020,Research Grant Expenditure,Commissioned Research,UKRI - Economic & Social Research Council,98877803,9105.40,Research Grant Expenditure
BEIS,UKRI - AHRC,22/12/2020,Research Grant Expenditure,Commissioned Research,UKRI - Economic & Social Research Council,98877805,7453.83,Research Grant Expenditure
BEIS,UKRI - AHRC,22/12/2020,Research Grant Expenditure,Global Challenges Research Fund (GCRF),UKRI - Economic & Social Research Council,98877809,35610.98,Research Grant Expenditure
BEIS,UKRI - AHRC,22/12/2020,Research Grant Expenditure,Commissioned Research,UKRI - Economic & Social Research Council,98877811,6836.95,Research Grant Expenditure
BEIS,UKRI - AHRC,22/12/2020,Research Grant Expenditure,Global Challenges Research Fund (GCRF),UKRI - Economic & Social Research Council,98877812,14160.59,Research Grant Expenditure
BEIS,UKRI - AHRC,22/12/2020,Research Grant Expenditure,RCUK Global Challenges Research Fund (RCUK GCRF),UKRI - Economic & Social Research Council,98877813,44085.90,Research Grant Expenditure
BEIS,UKRI - AHRC,22/12/2020,Research Grant Expenditure,Global Challenges Research Fund (GCRF),UKRI - Economic & Social Research Council,98877814,17548.85,Research Grant Expenditure
BEIS,UKRI - AHRC,22/12/2020,Research Grant Expenditure,Global Challenges Research Fund (GCRF),UKRI - Economic & Social Research Council,98877815,17512.90,Research Grant Expenditure
BEIS,UKRI - AHRC,22/12/2020,Research Grant Expenditure,RCUK Global Challenges Research Fund (HUBS),UKRI - Economic & Social Research Council,98877816,183823.00,Research Grant Expenditure
BEIS,UKRI - AHRC,22/12/2020,Research Grant Expenditure,RCUK Global Challenges Research Fund (HUBS),UKRI - Economic & Social Research Council,98877817,90435.40,Research Grant Expenditure
BEIS,UKRI - AHRC,22/12/2020,Research Grant Expenditure,RCUK Global Challenges Research Fund (HUBS),UKRI - Economic & Social Research Council,98877818,372288.86,Research Grant Expenditure
BEIS,UKRI - AHRC,22/12/2020,Research Grant Expenditure,Cross Council Responsive Mode Awards,UKRI - Economic & Social Research Council,98877819,7137.46,Research Grant Expenditure
BEIS,UKRI - AHRC,22/12/2020,Research Grant Expenditure,Commissioned Research,UKRI - Economic & Social Research Council,98877823,11656.72,Research Grant Expenditure
BEIS,UKRI - AHRC,22/12/2020,Research Grant Expenditure,Cross Council Responsive Mode Awards,UKRI - Economic & Social Research Council,98877828,22627.39,Research Grant Expenditure
BEIS,UKRI - AHRC,22/12/2020,Fees (Including College Members),Cultural Value EDI,Non Employee Expenses Supplier,98878595,340.00,Fees (Including College Members)
BEIS,UKRI - AHRC,22/12/2020,Research Grant Expenditure,Urban Living,UKRI - Economic & Social Research Council,98878850,2818.99,Research Grant Expenditure
BEIS,UKRI - AHRC,22/12/2020,Research Grant Expenditure,Digital Transformations,UKRI - Economic & Social Research Council,98878852,7175.56,Research Grant Expenditure
BEIS,UKRI - AHRC,22/12/2020,Research Grant Expenditure,Digital Transformations,UKRI - Economic & Social Research Council,98878853,5133.66,Research Grant Expenditure
BEIS,UKRI - AHRC,22/12/2020,Research Grant Expenditure,RCUK Global Challenges Research Fund (RCUK GCRF),UKRI - Economic & Social Research Council,98878864,22182.50,Research Grant Expenditure
BEIS,UKRI - AHRC,22/12/2020,Research Grant Expenditure,RCUK Global Challenges Research Fund (RCUK GCRF),UKRI - Economic & Social Research Council,98878865,48050.30,Research Grant Expenditure
BEIS,UKRI - AHRC,22/12/2020,Research Grant Expenditure,RCUK Global Challenges Research Fund (RCUK GCRF),UKRI - Economic & Social Research Council,98878867,22197.40,Research Grant Expenditure
BEIS,UKRI - AHRC,22/12/2020,Research Grant Expenditure,RCUK Global Challenges Research Fund (RCUK GCRF),UKRI - Economic & Social Research Council,98878868,37340.40,Research Grant Expenditure
BEIS,UKRI - AHRC,22/12/2020,Research Grant Expenditure,Global Uncertainties Programme,UKRI - Economic & Social Research Council,98878887,2041.70,Research Grant Expenditure
BEIS,UKRI - AHRC,22/12/2020,Research Grant Expenditure,Commissioned Research,UKRI - Economic & Social Research Council,98878889,7230.09,Research Grant Expenditure
BEIS,UKRI - AHRC,22/12/2020,Fellowships,Public Policy,UKRI - Economic & Social Research Council,98878893,6133.70,Fellowships
BEIS,UKRI - AHRC,22/12/2020,Research Grant Expenditure,Cross Council Responsive Mode Awards,UKRI - Economic & Social Research Council,98878894,6645.21,Research Grant Expenditure
BEIS,UKRI - AHRC,22/12/2020,Research Grant Expenditure,Cross Council Responsive Mode Awards,UKRI - Economic & Social Research Council,98878901,8176.62,Research Grant Expenditure
BEIS,UKRI - AHRC,22/12/2020,Research Grant Expenditure,Cross Council Responsive Mode Awards,UKRI - Economic & Social Research Council,98878904,16148.50,Research Grant Expenditure
BEIS,UKRI - AHRC,22/12/2020,Research Grant Expenditure,Urban Living,UKRI - Economic & Social Research Council,98878906,3985.68,Research Grant Expenditure
BEIS,UKRI - AHRC,22/12/2020,Research Grant Expenditure,Urban Living,UKRI - Economic & Social Research Council,98878908,3390.34,Research Grant Expenditure
BEIS,UKRI - AHRC,22/12/2020,Research Grant Expenditure,Urban Living,UKRI - Economic & Social Research Council,98878909,3693.83,Research Grant Expenditure
BEIS,UKRI - AHRC,22/12/2020,Research Grant Expenditure,Urban Living,UKRI - Economic & Social Research Council,98878910,5128.31,Research Grant Expenditure
BEIS,UKRI - AHRC,22/12/2020,Research Grant Expenditure,Cross Council Responsive Mode Awards,UKRI - Economic & Social Research Council,98878912,14369.75,Research Grant Expenditure
BEIS,UKRI - AHRC,22/12/2020,Research Grant Expenditure,Urban Living,UKRI - Economic & Social Research Council,98878913,5107.97,Research Grant Expenditure
BEIS,UKRI - AHRC,22/12/2020,Research Grant Expenditure,Urban Living,UKRI - Economic & Social Research Council,98878914,4598.68,Research Grant Expenditure
BEIS,UKRI - AHRC,22/12/2020,Research Grant Expenditure,Digital Transformations,UKRI - Economic & Social Research Council,98878915,5055.11,Research Grant Expenditure
BEIS,UKRI - AHRC,22/12/2020,Non-staff travel and subsistance,Operations,Non Employee Expenses Supplier,98879179,-74.70,Non-staff travel and subsistance
BEIS,UKRI - AHRC,23/12/2020,Voluntary Deductions,Balance Sheet,Swindon Office Sports and Social Club,98867848,32.00,Voluntary Deductions
BEIS,UKRI - AHRC,24/12/2020,Fees (Including College Members),FIC- China,Non Employee Expenses Supplier,98879299,170.00,Fees (Including College Members)
BEIS,UKRI - AHRC,24/12/2020,Fees (Including College Members),New Programme Development,Non Employee Expenses Supplier,98879300,170.00,Fees (Including College Members)
BEIS,UKRI - AHRC,24/12/2020,Fees (Including College Members),New Programme Development,Non Employee Expenses Supplier,98879301,170.00,Fees (Including College Members)
BEIS,UKRI - AHRC,24/12/2020,Fees (Including College Members),New Programme Development,Non Employee Expenses Supplier,98879302,170.00,Fees (Including College Members)
BEIS,UKRI - AHRC,24/12/2020,Fees (Including College Members),New Programme Development,Non Employee Expenses Supplier,98879303,170.00,Fees (Including College Members)
BEIS,UKRI - AHRC,24/12/2020,Fees (Including College Members),New Programme Development,Non Employee Expenses Supplier,98879304,170.00,Fees (Including College Members)
BEIS,UKRI - AHRC,24/12/2020,Fees (Including College Members),New Programme Development,Non Employee Expenses Supplier,98880203,230.00,Fees (Including College Members)
BEIS,UKRI - BBSRC,01/12/2020,Recruitment Costs,PDG - Director,UK Shared Business Services Ltd,98855959,32.43,Recruitment Costs
BEIS,UKRI - BBSRC,02/12/2020,Other Programme Costs,Science Group,AnimalhealthEurope,98856293,6251.12,Other Programme Costs
BEIS,UKRI - BBSRC,02/12/2020,Fees (Including College Members),Innovation and Skills Group CDSU,Non Employee Expenses Supplier,98857173,230.00,Fees (Including College Members)
BEIS,UKRI - BBSRC,02/12/2020,Fees (Including College Members),Innovation and Skills Group CDSU,Non Employee Expenses Supplier,98857174,340.00,Fees (Including College Members)
BEIS,UKRI - BBSRC,02/12/2020,Fees (Including College Members),Innovation and Skills Group CDSU,Non Employee Expenses Supplier,98857175,230.00,Fees (Including College Members)
BEIS,UKRI - BBSRC,02/12/2020,Fees (Including College Members),Innovation and Skills Group CDSU,Non Employee Expenses Supplier,98857176,170.00,Fees (Including College Members)
BEIS,UKRI - BBSRC,02/12/2020,Fees (Including College Members),Innovation and Skills Group CDSU,Non Employee Expenses Supplier,98857177,170.00,Fees (Including College Members)
BEIS,UKRI - BBSRC,02/12/2020,Fees (Including College Members),Innovation and Skills Group CDSU,Non Employee Expenses Supplier,98857178,170.00,Fees (Including College Members)
BEIS,UKRI - BBSRC,02/12/2020,Fees (Including College Members),Science Group – Admin Function,Non Employee Expenses Supplier,98857179,230.00,Fees (Including College Members)
BEIS,UKRI - BBSRC,02/12/2020,Fees (Including College Members),Science Group – Admin Function,Non Employee Expenses Supplier,98857180,170.00,Fees (Including College Members)
BEIS,UKRI - BBSRC,02/12/2020,Fees (Including College Members),Science Group – Admin Function,Non Employee Expenses Supplier,98857181,170.00,Fees (Including College Members)
BEIS,UKRI - BBSRC,02/12/2020,Fees (Including College Members),Science Group – Admin Function,Non Employee Expenses Supplier,98857182,230.00,Fees (Including College Members)
BEIS,UKRI - BBSRC,02/12/2020,Fees (Including College Members),Science Group – Admin Function,Non Employee Expenses Supplier,98857183,170.00,Fees (Including College Members)
BEIS,UKRI - BBSRC,02/12/2020,Fees (Including College Members),Science Group – Admin Function,Non Employee Expenses Supplier,98857184,170.00,Fees (Including College Members)
BEIS,UKRI - BBSRC,02/12/2020,Fees (Including College Members),Science Group – Admin Function,Non Employee Expenses Supplier,98857185,170.00,Fees (Including College Members)
BEIS,UKRI - BBSRC,02/12/2020,Fees (Including College Members),Science Group – Admin Function,Non Employee Expenses Supplier,98857186,340.00,Fees (Including College Members)
BEIS,UKRI - BBSRC,02/12/2020,Fees (Including College Members),Science Group – Admin Function,Non Employee Expenses Supplier,98857187,340.00,Fees (Including College Members)
BEIS,UKRI - BBSRC,02/12/2020,Research Grant Expenditure,SPF W1 EMBL EBI,EMBL (European Molecular Biology Laboratory),98857237,3280.39,Research Grant Expenditure
BEIS,UKRI - BBSRC,02/12/2020,Research Grant Expenditure,CE - CPS,Unspecified,98857372,600.00,Research Grant Expenditure
BEIS,UKRI - BBSRC,03/12/2020,T&S Overseas - Flights,European Initiatives,Corporate Travel Management (North) Ltd,98857992,4.50,T&S Overseas - Flights
BEIS,UKRI - BBSRC,03/12/2020,T&S Overseas - Flights,European Initiatives,Corporate Travel Management (North) Ltd,98857992,234.00,T&S Overseas - Flights
BEIS,UKRI - BBSRC,03/12/2020,T&S Overseas - Public Transport,CE - IRU,Corporate Travel Management (North) Ltd,98857992,4.50,T&S Overseas - Public Transport
BEIS,UKRI - BBSRC,03/12/2020,T&S Overseas - Public Transport,CE - IRU,Corporate Travel Management (North) Ltd,98857992,86.00,T&S Overseas - Public Transport
BEIS,UKRI - BBSRC,03/12/2020,Research Institutes - Capital Grants: Minor Works,Babraham Institute,Babraham Institute,98858048,159562.00,Research Institutes - Capital Grants: Minor Works
BEIS,UKRI - BBSRC,03/12/2020,Research Institutes - Capital Grants: Minor Works,Babraham Institute,Babraham Institute,98858057,32489.00,Research Institutes - Capital Grants: Minor Works
BEIS,UKRI - BBSRC,03/12/2020,Research Institutes - Capital Grants: Minor Works,Babraham Institute,Babraham Institute,98858062,12449.00,Research Institutes - Capital Grants: Minor Works
BEIS,UKRI - BBSRC,03/12/2020,Research Institutes - Capital Grants: Minor Works,Babraham Institute,Babraham Institute,98858066,1810.00,Research Institutes - Capital Grants: Minor Works
BEIS,UKRI - BBSRC,03/12/2020,Research Institutes - Capital Grants: Minor Works,Babraham Institute,Babraham Institute,98858070,14755.00,Research Institutes - Capital Grants: Minor Works
BEIS,UKRI - BBSRC,03/12/2020,Research Institutes - Capital Grants: Minor Works,Babraham Institute,Babraham Institute,98858081,27210.00,Research Institutes - Capital Grants: Minor Works
BEIS,UKRI - BBSRC,03/12/2020,Fees (Including College Members),Science Group – Admin Function,Non Employee Expenses Supplier,98861513,340.00,Fees (Including College Members)
BEIS,UKRI - BBSRC,03/12/2020,Fees (Including College Members),Science Group – Admin Function,Non Employee Expenses Supplier,98861514,340.00,Fees (Including College Members)
BEIS,UKRI - BBSRC,04/12/2020,Printing & Stationery,JBOS - Administration,Banner Group Ltd,98801322,3.31,Printing & Stationery
BEIS,UKRI - BBSRC,04/12/2020,Printing & Stationery,JBOS - Administration,Banner Group Ltd,98801322,9.26,Printing & Stationery
BEIS,UKRI - BBSRC,04/12/2020,Printing & Stationery,JBOS - Administration,Banner Group Ltd,98801322,6.34,Printing & Stationery
BEIS,UKRI - BBSRC,04/12/2020,Printing & Stationery,JBOS - Administration,Banner Group Ltd,98801322,1.85,Printing & Stationery
BEIS,UKRI - BBSRC,04/12/2020,Printing & Stationery,JBOS - Administration,Banner Group Ltd,98801326,-3.31,Printing & Stationery
BEIS,UKRI - BBSRC,04/12/2020,Printing & Stationery,JBOS - Administration,Banner Group Ltd,98801326,-6.34,Printing & Stationery
BEIS,UKRI - BBSRC,04/12/2020,Printing & Stationery,JBOS - Administration,Banner Group Ltd,98801326,-11.11,Printing & Stationery
BEIS,UKRI - BBSRC,04/12/2020,T&S UK - Other Charges,CE - IRU,Unspecified,98863148,26.95,T&S UK - Other Charges
BEIS,UKRI - BBSRC,04/12/2020,Unspecified,FG - Estates,CUSHMAN & WAKEFIELD DEBENHAM TIE LEUNG LTD,98863323,30200.84,Legal & Professional Services
BEIS,UKRI - BBSRC,04/12/2020,Research Institutes - Capital Grants: Major Works,Pirbright,The Pirbright Institute,98863418,2700.09,Research Institutes - Capital Grants: Major Works
BEIS,UKRI - BBSRC,04/12/2020,Unspecified,FG - Estates,Womble Bond Dickinson LLP,98863421,2400.00,Legal & Professional Services
BEIS,UKRI - BBSRC,04/12/2020,Research Institutes - Capital Grants: Major Works,Pirbright,The Pirbright Institute,98863422,11098.00,Research Institutes - Capital Grants: Major Works
BEIS,UKRI - BBSRC,04/12/2020,Research Institutes - Capital Grants: Minor Works,Pirbright,The Pirbright Institute,98863424,41311.00,Research Institutes - Capital Grants: Minor Works
BEIS,UKRI - BBSRC,04/12/2020,Research Institutes - Capital Grants: Minor Works,Pirbright,The Pirbright Institute,98863429,63099.65,Research Institutes - Capital Grants: Minor Works
BEIS,UKRI - BBSRC,04/12/2020,Research Institutes - Capital Grants: Minor Works,Pirbright,The Pirbright Institute,98863430,5412.00,Research Institutes - Capital Grants: Minor Works
BEIS,UKRI - BBSRC,04/12/2020,Rates,JBOS - Maintenance,Swindon Borough Council,98864553,64000.00,Rates
BEIS,UKRI - BBSRC,07/12/2020,Health & Safety (inc. Medicals & Opticians),Innovation and Skills Group CDSU,Unspecified,98865686,13.99,Health & Safety (inc. Medicals & Opticians)
BEIS,UKRI - BBSRC,08/12/2020,Recruitment Costs,PDG - Director,Agenda Resource Management Ltd,98865439,153.91,Recruitment Costs
BEIS,UKRI - BBSRC,08/12/2020,Recruitment Costs,PDG - Director,Agenda Resource Management Ltd,98865441,153.91,Recruitment Costs
BEIS,UKRI - BBSRC,09/12/2020,T&S UK - Other Charges,Innovation and Skills Group CDSU,Unspecified,98851947,182.00,T&S UK - Other Charges
BEIS,UKRI - BBSRC,09/12/2020,Health & Safety (inc. Medicals & Opticians),CE - CPS,Unspecified,98856706,100.00,Health & Safety (inc. Medicals & Opticians)
BEIS,UKRI - BBSRC,09/12/2020,Research Grant Expenditure,CE - IRU,Unspecified,98862183,3471.88,Research Grant Expenditure
BEIS,UKRI - BBSRC,09/12/2020,International Subscriptions,CE - IRU,The International Human Frontier Science Programme Organization - HFSP,98865879,410216.00,International Subscriptions
BEIS,UKRI - BBSRC,09/12/2020,Unspecified,FG - Estates,Womble Bond Dickinson LLP,98867511,658.22,Legal & Professional Services
BEIS,UKRI - BBSRC,09/12/2020,Unspecified,FG - Estates,Womble Bond Dickinson LLP,98867518,438.83,Legal & Professional Services
BEIS,UKRI - BBSRC,09/12/2020,Unspecified,FG - Estates,Womble Bond Dickinson LLP,98867526,160.92,Legal & Professional Services
BEIS,UKRI - BBSRC,09/12/2020,Unspecified,FG - Estates,Womble Bond Dickinson LLP,98867531,627.36,Legal & Professional Services
BEIS,UKRI - BBSRC,09/12/2020,Health & Safety (inc. Medicals & Opticians),CIMG - Information Management,Unspecified,98867947,13.99,Health & Safety (inc. Medicals & Opticians)
BEIS,UKRI - BBSRC,09/12/2020,T&S UK - Other Charges,Innovation and Skills Group CDSU,Unspecified,98867949,407.58,T&S UK - Other Charges
BEIS,UKRI - BBSRC,09/12/2020,Fees (Including College Members),Science Group – Admin Function,Non Employee Expenses Supplier,98868297,340.00,Fees (Including College Members)
BEIS,UKRI - BBSRC,09/12/2020,Fees (Including College Members),Innovation and Skills Group CDSU,Non Employee Expenses Supplier,98868298,170.00,Fees (Including College Members)
BEIS,UKRI - BBSRC,09/12/2020,Fees (Including College Members),Innovation and Skills Group CDSU,Non Employee Expenses Supplier,98868299,170.00,Fees (Including College Members)
BEIS,UKRI - BBSRC,09/12/2020,Fees (Including College Members),Innovation and Skills Group CDSU,Non Employee Expenses Supplier,98868300,170.00,Fees (Including College Members)
BEIS,UKRI - BBSRC,09/12/2020,Fees (Including College Members),Innovation and Skills Group CDSU,Non Employee Expenses Supplier,98868301,170.00,Fees (Including College Members)
BEIS,UKRI - BBSRC,09/12/2020,Fees (Including College Members),Innovation and Skills Group CDSU,Non Employee Expenses Supplier,98868302,170.00,Fees (Including College Members)
BEIS,UKRI - BBSRC,09/12/2020,Fees (Including College Members),Innovation and Skills Group CDSU,Non Employee Expenses Supplier,98868303,170.00,Fees (Including College Members)
BEIS,UKRI - BBSRC,09/12/2020,Fees (Including College Members),Innovation and Skills Group CDSU,Non Employee Expenses Supplier,98868304,170.00,Fees (Including College Members)
BEIS,UKRI - BBSRC,10/12/2020,Unspecified,FG - Estates,Unspecified,98871581,1241.86,Legal & Professional Services
BEIS,UKRI - BBSRC,14/12/2020,Unspecified,Balance Sheet,HM Revenue & Customs,98857353,75076.00,PAYE Payable Salaries
BEIS,UKRI - BBSRC,14/12/2020,Unspecified,Balance Sheet,HM Revenue & Customs,98857354,5312.00,Student Loans
BEIS,UKRI - BBSRC,14/12/2020,Unspecified,Balance Sheet,HM Revenue & Customs,98857355,98093.33,NI Payable Salaries
BEIS,UKRI - BBSRC,14/12/2020,Unspecified,FG - Accounts & Business Planning,HM Revenue & Customs,98857356,2555.00,Apprenticeship Levy
BEIS,UKRI - BBSRC,14/12/2020,Unspecified,Balance Sheet,HM Revenue & Customs,98863043,1887.91,PAYE Payable Salaries
BEIS,UKRI - BBSRC,14/12/2020,Unspecified,Balance Sheet,HM Revenue & Customs,98863044,13.98,NI Payable Salaries
BEIS,UKRI - BBSRC,14/12/2020,Unspecified,FG - Accounts & Business Planning,HM Revenue & Customs,98863045,30.00,Apprenticeship Levy
BEIS,UKRI - BBSRC,14/12/2020,UK - Professional Memberships & Subscriptions,FG - Estates,The Royal Institution of Chartered Surveyors,98872646,1500.00,UK - Professional Memberships & Subscriptions
BEIS,UKRI - BBSRC,14/12/2020,Research Institutes - Capital Grants: Minor Works,JIC,John Innes Centre,98872764,31386.56,Research Institutes - Capital Grants: Minor Works
BEIS,UKRI - BBSRC,14/12/2020,Research Institutes - Capital Grants: Minor Works,JIC,John Innes Centre,98872765,140000.02,Research Institutes - Capital Grants: Minor Works
BEIS,UKRI - BBSRC,14/12/2020,Research Institutes - Capital Grants: Minor Works,JIC,John Innes Centre,98872769,110026.80,Research Institutes - Capital Grants: Minor Works
BEIS,UKRI - BBSRC,14/12/2020,Research Institutes - Capital Grants: Minor Works,JIC,John Innes Centre,98872903,93828.50,Research Institutes - Capital Grants: Minor Works
BEIS,UKRI - BBSRC,14/12/2020,Research Institutes - Capital Grants: Major Works,John Innes Centre (JIC) - WCL 2020 Uplift,John Innes Centre,98872906,81780.00,Research Institutes - Capital Grants: Major Works
BEIS,UKRI - BBSRC,14/12/2020,Research Institutes - Capital Grants: Minor Works,JIC,John Innes Centre,98872913,76117.94,Research Institutes - Capital Grants: Minor Works
BEIS,UKRI - BBSRC,14/12/2020,Research Institutes - Capital Grants: Minor Works,JIC,John Innes Centre,98873566,9819.00,Research Institutes - Capital Grants: Minor Works
BEIS,UKRI - BBSRC,14/12/2020,Research Institutes - Capital Grants: Minor Works,JIC,John Innes Centre,98873570,15958.39,Research Institutes - Capital Grants: Minor Works
BEIS,UKRI - BBSRC,14/12/2020,Research Institutes - Capital Grants: Minor Works,JIC,John Innes Centre,98873572,34180.80,Research Institutes - Capital Grants: Minor Works
BEIS,UKRI - BBSRC,14/12/2020,Fees (Including College Members),Science Group – Admin Function,Non Employee Expenses Supplier,98873721,170.00,Fees (Including College Members)
BEIS,UKRI - BBSRC,14/12/2020,T&S UK - Other Charges,CE - Chief Executive,Unspecified,98873839,7.50,T&S UK - Other Charges
BEIS,UKRI - BBSRC,14/12/2020,T&S UK - Other Charges,CIMG - Programme Office,Unspecified,98873841,11.66,T&S UK - Other Charges
BEIS,UKRI - BBSRC,15/12/2020,Research Grant Expenditure,FG - Accounts & Business Planning,UKRI - Medical Research Council,98838070,-23064.51,Research Grant Expenditure
BEIS,UKRI - BBSRC,15/12/2020,Union Deductions,Balance Sheet,PCS Union,98857357,54.29,Union Deductions
BEIS,UKRI - BBSRC,15/12/2020,Unspecified,Balance Sheet,RCPS Pension,98857359,20517.02,Ees Pension Deductions - JSS
BEIS,UKRI - BBSRC,15/12/2020,Unspecified,Balance Sheet,RCPS Pension,98857360,88154.72,Ers Pension Deductions - JSS
BEIS,UKRI - BBSRC,15/12/2020,Unspecified,Balance Sheet,Scottish Widows Life Assurance,98857361,10.00,Other Pension Deductions
BEIS,UKRI - BBSRC,15/12/2020,Unspecified,Balance Sheet,Cabinet Office RM Shared Services,98857362,16.24,Ers Pension Deductions - JSS
BEIS,UKRI - BBSRC,15/12/2020,Unspecified,Balance Sheet,Cabinet Office RM Shared Services,98857363,9178.70,Ees Pension Deductions - MyCSP
BEIS,UKRI - BBSRC,15/12/2020,Unspecified,Balance Sheet,Cabinet Office RM Shared Services,98857364,46182.02,Ers Pension Deductions - MyCSP
BEIS,UKRI - BBSRC,15/12/2020,Nursery Deductions,Balance Sheet,UKRI - Engineering & Physical Sciences Research Council,98857365,1384.00,Nursery Deductions
BEIS,UKRI - BBSRC,15/12/2020,Compensation Payments,FG - Accounts & Business Planning,JSS Pensions Administration,98857701,506.87,Compensation Payments
BEIS,UKRI - BBSRC,15/12/2020,Voluntary Deductions,Balance Sheet,St Elizabeth’s Centre,98863046,570.83,Voluntary Deductions
BEIS,UKRI - BBSRC,15/12/2020,Research Grant Expenditure,FG - Accounts & Business Planning,University of Bristol GRANT,98864791,411830.66,Research Grant Expenditure
BEIS,UKRI - BBSRC,15/12/2020,Research Grant Expenditure,FG - Accounts & Business Planning,University of Nottingham,98864792,509614.14,Research Grant Expenditure
BEIS,UKRI - BBSRC,15/12/2020,Research Grant Expenditure,FG - Accounts & Business Planning,University of Cambridge,98864793,308696.28,Research Grant Expenditure
BEIS,UKRI - BBSRC,15/12/2020,Research Grant Expenditure,FG - Accounts & Business Planning,University of Sheffield,98864794,46567.57,Research Grant Expenditure
BEIS,UKRI - BBSRC,15/12/2020,Research Grant Expenditure,FG - Accounts & Business Planning,The Pirbright Institute,98864795,15215.47,Research Grant Expenditure
BEIS,UKRI - BBSRC,15/12/2020,Research Grant Expenditure,FG - Accounts & Business Planning,University of Edinburgh,98864796,120092.75,Research Grant Expenditure
BEIS,UKRI - BBSRC,15/12/2020,Research Grant Expenditure,FG - Accounts & Business Planning,University of Warwick,98864797,317939.67,Research Grant Expenditure
BEIS,UKRI - BBSRC,15/12/2020,Research Grant Expenditure,FG - Accounts & Business Planning,The University of Manchester,98864798,283699.75,Research Grant Expenditure
BEIS,UKRI - BBSRC,15/12/2020,Research Grant Expenditure,FG - Accounts & Business Planning,University of Edinburgh,98864799,28203.97,Research Grant Expenditure
BEIS,UKRI - BBSRC,15/12/2020,Research Grant Expenditure,FG - Accounts & Business Planning,University of York,98864800,61359.12,Research Grant Expenditure
BEIS,UKRI - BBSRC,15/12/2020,Research Grant Expenditure,FG - Accounts & Business Planning,University of York,98864801,39068.61,Research Grant Expenditure
BEIS,UKRI - BBSRC,15/12/2020,Research Grant Expenditure,FG - Accounts & Business Planning,London School of Hygiene & Tropical Medicine,98864802,96303.51,Research Grant Expenditure
BEIS,UKRI - BBSRC,15/12/2020,Research Grant Expenditure,FG - Accounts & Business Planning,University of Bristol GRANT,98864803,2655.98,Research Grant Expenditure
BEIS,UKRI - BBSRC,15/12/2020,Research Grant Expenditure,FG - Accounts & Business Planning,University of Reading,98864804,1431.20,Research Grant Expenditure
BEIS,UKRI - BBSRC,15/12/2020,Research Grant Expenditure,FG - Accounts & Business Planning,Rothamsted Research Ltd,98864805,8481.12,Research Grant Expenditure
BEIS,UKRI - BBSRC,15/12/2020,Research Grant Expenditure,FG - Accounts & Business Planning,University of Nottingham,98864806,6493.37,Research Grant Expenditure
BEIS,UKRI - BBSRC,15/12/2020,Research Grant Expenditure,FG - Accounts & Business Planning,University of Reading,98864807,42601.94,Research Grant Expenditure
BEIS,UKRI - BBSRC,15/12/2020,Research Grant Expenditure,FG - Accounts & Business Planning,University of Sheffield,98864808,31940.21,Research Grant Expenditure
BEIS,UKRI - BBSRC,15/12/2020,Research Grant Expenditure,FG - Accounts & Business Planning,University of York,98864809,56515.59,Research Grant Expenditure
BEIS,UKRI - BBSRC,15/12/2020,Research Grant Expenditure,FG - Accounts & Business Planning,University of Cambridge,98864810,10708.15,Research Grant Expenditure
BEIS,UKRI - BBSRC,15/12/2020,Research Grant Expenditure,FG - Accounts & Business Planning,University of Nottingham,98864811,44272.07,Research Grant Expenditure
BEIS,UKRI - BBSRC,15/12/2020,Research Grant Expenditure,FG - Accounts & Business Planning,University of Southampton GRANT,98864812,9542.28,Research Grant Expenditure
BEIS,UKRI - BBSRC,15/12/2020,Research Grant Expenditure,FG - Accounts & Business Planning,University of Leicester,98864813,30845.97,Research Grant Expenditure
BEIS,UKRI - BBSRC,15/12/2020,Research Grant Expenditure,FG - Accounts & Business Planning,University of Leeds,98864814,14681.44,Research Grant Expenditure
BEIS,UKRI - BBSRC,15/12/2020,Research Grant Expenditure,FG - Accounts & Business Planning,University of Bristol GRANT,98864815,12085.17,Research Grant Expenditure
BEIS,UKRI - BBSRC,15/12/2020,Research Grant Expenditure,FG - Accounts & Business Planning,University of Nottingham,98864816,18450.46,Research Grant Expenditure
BEIS,UKRI - BBSRC,15/12/2020,Research Grant Expenditure,FG - Accounts & Business Planning,The University of Manchester,98864817,50909.58,Research Grant Expenditure
BEIS,UKRI - BBSRC,15/12/2020,Research Grant Expenditure,FG - Accounts & Business Planning,University College London,98864818,68512.88,Research Grant Expenditure
BEIS,UKRI - BBSRC,15/12/2020,Research Grant Expenditure,FG - Accounts & Business Planning,University of Nottingham,98864819,80661.54,Research Grant Expenditure
BEIS,UKRI - BBSRC,15/12/2020,Research Grant Expenditure,FG - Accounts & Business Planning,University of Nottingham,98864820,26505.22,Research Grant Expenditure
BEIS,UKRI - BBSRC,15/12/2020,Research Grant Expenditure,FG - Accounts & Business Planning,National Institute For Agricultural Botany (NIAB),98864821,19669.61,Research Grant Expenditure
BEIS,UKRI - BBSRC,15/12/2020,Research Grant Expenditure,FG - Accounts & Business Planning,Earlham Institute,98864822,15437.89,Research Grant Expenditure
BEIS,UKRI - BBSRC,15/12/2020,Research Grant Expenditure,FG - Accounts & Business Planning,Quadram Institute Bioscience,98864823,15306.14,Research Grant Expenditure
BEIS,UKRI - BBSRC,15/12/2020,Research Grant Expenditure,FG - Accounts & Business Planning,The University of Manchester,98864824,19913.84,Research Grant Expenditure
BEIS,UKRI - BBSRC,15/12/2020,Research Grant Expenditure,FG - Accounts & Business Planning,University of Southampton GRANT,98864825,22504.37,Research Grant Expenditure
BEIS,UKRI - BBSRC,15/12/2020,Research Grant Expenditure,FG - Accounts & Business Planning,University College London,98864826,24894.33,Research Grant Expenditure
BEIS,UKRI - BBSRC,15/12/2020,Research Grant Expenditure,FG - Accounts & Business Planning,University of Warwick,98864827,98518.95,Research Grant Expenditure
BEIS,UKRI - BBSRC,15/12/2020,Research Grant Expenditure,FG - Accounts & Business Planning,National Institute For Agricultural Botany (NIAB),98864828,36488.96,Research Grant Expenditure
BEIS,UKRI - BBSRC,15/12/2020,Research Grant Expenditure,FG - Accounts & Business Planning,University of Bath,98864829,74796.40,Research Grant Expenditure
BEIS,UKRI - BBSRC,15/12/2020,Research Grant Expenditure,FG - Accounts & Business Planning,University of Nottingham,98864830,71054.90,Research Grant Expenditure
BEIS,UKRI - BBSRC,15/12/2020,Research Grant Expenditure,FG - Accounts & Business Planning,Birkbeck College,98864831,36800.41,Research Grant Expenditure
BEIS,UKRI - BBSRC,15/12/2020,Research Grant Expenditure,FG - Accounts & Business Planning,Queen Mary University of London,98864832,21277.10,Research Grant Expenditure
BEIS,UKRI - BBSRC,15/12/2020,Research Grant Expenditure,FG - Accounts & Business Planning,University of Liverpool,98864833,40505.83,Research Grant Expenditure
BEIS,UKRI - BBSRC,15/12/2020,Research Grant Expenditure,FG - Accounts & Business Planning,Wellcome Trust Sanger Institute,98864834,18186.05,Research Grant Expenditure
BEIS,UKRI - BBSRC,15/12/2020,Research Grant Expenditure,FG - Accounts & Business Planning,University College London,98864835,44232.65,Research Grant Expenditure
BEIS,UKRI - BBSRC,15/12/2020,Research Grant Expenditure,FG - Accounts & Business Planning,University of Edinburgh,98864836,3104.84,Research Grant Expenditure
BEIS,UKRI - BBSRC,15/12/2020,Research Grant Expenditure,FG - Accounts & Business Planning,University of Exeter,98864837,2717.54,Research Grant Expenditure
BEIS,UKRI - BBSRC,15/12/2020,Research Grant Expenditure,FG - Accounts & Business Planning,King's College London,98864838,1279.70,Research Grant Expenditure
BEIS,UKRI - BBSRC,15/12/2020,Research Grant Expenditure,FG - Accounts & Business Planning,University of Liverpool,98864839,2381.88,Research Grant Expenditure
BEIS,UKRI - BBSRC,15/12/2020,Research Grant Expenditure,FG - Accounts & Business Planning,University of Oxford,98864840,2581.99,Research Grant Expenditure
BEIS,UKRI - BBSRC,15/12/2020,Research Grant Expenditure,FG - Accounts & Business Planning,Rothamsted Research Ltd,98864841,1931.01,Research Grant Expenditure
BEIS,UKRI - BBSRC,15/12/2020,Research Grant Expenditure,FG - Accounts & Business Planning,University of Kent,98864842,1936.49,Research Grant Expenditure
BEIS,UKRI - BBSRC,15/12/2020,Research Grant Expenditure,FG - Accounts & Business Planning,European Bioinformatics Institute,98864843,1933.46,Research Grant Expenditure
BEIS,UKRI - BBSRC,15/12/2020,Research Grant Expenditure,FG - Accounts & Business Planning,University of Dundee,98864844,1936.49,Research Grant Expenditure
BEIS,UKRI - BBSRC,15/12/2020,Research Grant Expenditure,FG - Accounts & Business Planning,The Pirbright Institute,98864845,3195.21,Research Grant Expenditure
BEIS,UKRI - BBSRC,15/12/2020,Research Grant Expenditure,FG - Accounts & Business Planning,University of Warwick,98864846,2607.66,Research Grant Expenditure
BEIS,UKRI - BBSRC,15/12/2020,Research Grant Expenditure,FG - Accounts & Business Planning,University of Exeter,98864847,1936.49,Research Grant Expenditure
BEIS,UKRI - BBSRC,15/12/2020,Research Grant Expenditure,FG - Accounts & Business Planning,University of Aberdeen,98864848,1936.49,Research Grant Expenditure
BEIS,UKRI - BBSRC,15/12/2020,Research Grant Expenditure,FG - Accounts & Business Planning,The University of Manchester,98864849,2517.44,Research Grant Expenditure
BEIS,UKRI - BBSRC,15/12/2020,Research Grant Expenditure,FG - Accounts & Business Planning,University of Stirling,98864850,24996.06,Research Grant Expenditure
BEIS,UKRI - BBSRC,15/12/2020,Research Grant Expenditure,FG - Accounts & Business Planning,University of Sussex,98864851,21586.77,Research Grant Expenditure
BEIS,UKRI - BBSRC,15/12/2020,Research Grant Expenditure,FG - Accounts & Business Planning,University College London,98864852,22483.52,Research Grant Expenditure
BEIS,UKRI - BBSRC,15/12/2020,Research Grant Expenditure,FG - Accounts & Business Planning,University of Surrey,98864853,20892.97,Research Grant Expenditure
BEIS,UKRI - BBSRC,15/12/2020,Research Grant Expenditure,FG - Accounts & Business Planning,The University of Manchester,98864855,17093.17,Research Grant Expenditure
BEIS,UKRI - BBSRC,15/12/2020,Research Grant Expenditure,FG - Accounts & Business Planning,University of Nottingham,98864856,36417.25,Research Grant Expenditure
BEIS,UKRI - BBSRC,15/12/2020,Research Grant Expenditure,FG - Accounts & Business Planning,The University of Manchester,98864857,23393.10,Research Grant Expenditure
BEIS,UKRI - BBSRC,15/12/2020,Research Grant Expenditure,FG - Accounts & Business Planning,King's College London,98864858,27073.82,Research Grant Expenditure
BEIS,UKRI - BBSRC,15/12/2020,Research Grant Expenditure,FG - Accounts & Business Planning,University of Newcastle Upon Tyne,98864859,34473.47,Research Grant Expenditure
BEIS,UKRI - BBSRC,15/12/2020,Research Grant Expenditure,FG - Accounts & Business Planning,Bangor University,98864860,1970.19,Research Grant Expenditure
BEIS,UKRI - BBSRC,15/12/2020,Research Grant Expenditure,FG - Accounts & Business Planning,University of Oxford,98864861,2660.72,Research Grant Expenditure
BEIS,UKRI - BBSRC,15/12/2020,Research Grant Expenditure,FG - Accounts & Business Planning,University of Newcastle Upon Tyne,98864862,16029.92,Research Grant Expenditure
BEIS,UKRI - BBSRC,15/12/2020,Research Grant Expenditure,FG - Accounts & Business Planning,University of Sheffield,98864863,36348.37,Research Grant Expenditure
BEIS,UKRI - BBSRC,15/12/2020,Research Grant Expenditure,FG - Accounts & Business Planning,University of Sheffield,98864864,24153.25,Research Grant Expenditure
BEIS,UKRI - BBSRC,15/12/2020,Research Grant Expenditure,FG - Accounts & Business Planning,The University of Manchester,98864865,13679.17,Research Grant Expenditure
BEIS,UKRI - BBSRC,15/12/2020,Research Grant Expenditure,FG - Accounts & Business Planning,University of Durham,98864866,10343.75,Research Grant Expenditure
BEIS,UKRI - BBSRC,15/12/2020,Research Grant Expenditure,FG - Accounts & Business Planning,John Innes Centre,98864867,9466.87,Research Grant Expenditure
BEIS,UKRI - BBSRC,15/12/2020,Research Grant Expenditure,FG - Accounts & Business Planning,Aberystwyth University,98864868,22016.79,Research Grant Expenditure
BEIS,UKRI - BBSRC,15/12/2020,Research Grant Expenditure,FG - Accounts & Business Planning,The University of Manchester,98864869,5143.15,Research Grant Expenditure
BEIS,UKRI - BBSRC,15/12/2020,Research Grant Expenditure,FG - Accounts & Business Planning,University of Exeter,98864870,32089.59,Research Grant Expenditure
BEIS,UKRI - BBSRC,15/12/2020,Research Grant Expenditure,FG - Accounts & Business Planning,University of Southampton GRANT,98864871,27595.52,Research Grant Expenditure
BEIS,UKRI - BBSRC,15/12/2020,Research Grant Expenditure,FG - Accounts & Business Planning,University of East Anglia,98864872,21783.25,Research Grant Expenditure
BEIS,UKRI - BBSRC,15/12/2020,Research Grant Expenditure,FG - Accounts & Business Planning,The Pirbright Institute,98864874,20000.00,Research Grant Expenditure
BEIS,UKRI - BBSRC,15/12/2020,Research Grant Expenditure,FG - Accounts & Business Planning,University of Oxford,98864875,24773.48,Research Grant Expenditure
BEIS,UKRI - BBSRC,15/12/2020,Research Grant Expenditure,FG - Accounts & Business Planning,University of York,98864876,31895.91,Research Grant Expenditure
BEIS,UKRI - BBSRC,15/12/2020,Research Grant Expenditure,FG - Accounts & Business Planning,University of Edinburgh,98864877,21407.73,Research Grant Expenditure
BEIS,UKRI - BBSRC,15/12/2020,Research Grant Expenditure,FG - Accounts & Business Planning,University of Nottingham,98864878,8938.29,Research Grant Expenditure
BEIS,UKRI - BBSRC,15/12/2020,Research Grant Expenditure,FG - Accounts & Business Planning,Imperial College London,98864879,39683.18,Research Grant Expenditure
BEIS,UKRI - BBSRC,15/12/2020,Research Grant Expenditure,FG - Accounts & Business Planning,University of Southampton GRANT,98864880,25265.76,Research Grant Expenditure
BEIS,UKRI - BBSRC,15/12/2020,Research Grant Expenditure,FG - Accounts & Business Planning,University of Birmingham GRANT,98864881,35517.15,Research Grant Expenditure
BEIS,UKRI - BBSRC,15/12/2020,Research Grant Expenditure,FG - Accounts & Business Planning,University of Nottingham,98864882,42547.98,Research Grant Expenditure
BEIS,UKRI - BBSRC,15/12/2020,Research Grant Expenditure,FG - Accounts & Business Planning,University College London,98864883,34690.51,Research Grant Expenditure
BEIS,UKRI - BBSRC,15/12/2020,Research Grant Expenditure,FG - Accounts & Business Planning,King's College London,98864884,48090.87,Research Grant Expenditure
BEIS,UKRI - BBSRC,15/12/2020,Research Grant Expenditure,FG - Accounts & Business Planning,University of Oxford,98864885,48513.31,Research Grant Expenditure
BEIS,UKRI - BBSRC,15/12/2020,Research Grant Expenditure,FG - Accounts & Business Planning,Imperial College London,98864886,14192.01,Research Grant Expenditure
BEIS,UKRI - BBSRC,15/12/2020,Research Grant Expenditure,FG - Accounts & Business Planning,University of York,98864887,47896.57,Research Grant Expenditure
BEIS,UKRI - BBSRC,15/12/2020,Research Grant Expenditure,FG - Accounts & Business Planning,Birkbeck College,98864888,35153.46,Research Grant Expenditure
BEIS,UKRI - BBSRC,15/12/2020,Research Grant Expenditure,FG - Accounts & Business Planning,University of Cambridge,98864889,6228.20,Research Grant Expenditure
BEIS,UKRI - BBSRC,15/12/2020,Research Grant Expenditure,FG - Accounts & Business Planning,University of Bristol GRANT,98864890,22646.45,Research Grant Expenditure
BEIS,UKRI - BBSRC,15/12/2020,Research Grant Expenditure,FG - Accounts & Business Planning,University of Glasgow,98864891,50663.07,Research Grant Expenditure
BEIS,UKRI - BBSRC,15/12/2020,Research Grant Expenditure,FG - Accounts & Business Planning,Cardiff University,98864892,31149.87,Research Grant Expenditure
BEIS,UKRI - BBSRC,15/12/2020,Research Grant Expenditure,FG - Accounts & Business Planning,King's College London,98864893,29653.04,Research Grant Expenditure
BEIS,UKRI - BBSRC,15/12/2020,Research Grant Expenditure,FG - Accounts & Business Planning,University of Leicester,98864894,24457.21,Research Grant Expenditure
BEIS,UKRI - BBSRC,15/12/2020,Research Grant Expenditure,FG - Accounts & Business Planning,Imperial College London,98864895,3646.94,Research Grant Expenditure
BEIS,UKRI - BBSRC,15/12/2020,Research Grant Expenditure,FG - Accounts & Business Planning,Queen Mary University of London,98864896,2061.29,Research Grant Expenditure
BEIS,UKRI - BBSRC,15/12/2020,Research Grant Expenditure,FG - Accounts & Business Planning,John Innes Centre,98864897,75103.09,Research Grant Expenditure
BEIS,UKRI - BBSRC,15/12/2020,Research Grant Expenditure,FG - Accounts & Business Planning,University of Bristol GRANT,98864898,31566.58,Research Grant Expenditure
BEIS,UKRI - BBSRC,15/12/2020,Research Grant Expenditure,FG - Accounts & Business Planning,University of Exeter,98864899,31712.79,Research Grant Expenditure
BEIS,UKRI - BBSRC,15/12/2020,Research Grant Expenditure,FG - Accounts & Business Planning,University of Glasgow,98864900,41184.84,Research Grant Expenditure
BEIS,UKRI - BBSRC,15/12/2020,Research Grant Expenditure,FG - Accounts & Business Planning,Imperial College London,98864901,32230.69,Research Grant Expenditure
BEIS,UKRI - BBSRC,15/12/2020,Research Grant Expenditure,FG - Accounts & Business Planning,University of Surrey,98864902,19850.53,Research Grant Expenditure
BEIS,UKRI - BBSRC,15/12/2020,Research Grant Expenditure,FG - Accounts & Business Planning,University of Bristol GRANT,98864903,58960.40,Research Grant Expenditure
BEIS,UKRI - BBSRC,15/12/2020,Research Grant Expenditure,FG - Accounts & Business Planning,University of Bristol GRANT,98864904,25547.08,Research Grant Expenditure
BEIS,UKRI - BBSRC,15/12/2020,Research Grant Expenditure,FG - Accounts & Business Planning,Queen Mary University of London,98864905,28046.69,Research Grant Expenditure
BEIS,UKRI - BBSRC,15/12/2020,Research Grant Expenditure,FG - Accounts & Business Planning,Queen's University Belfast GRANT,98864906,26050.24,Research Grant Expenditure
BEIS,UKRI - BBSRC,15/12/2020,Research Grant Expenditure,FG - Accounts & Business Planning,University of Oxford,98864907,54710.89,Research Grant Expenditure
BEIS,UKRI - BBSRC,15/12/2020,Research Grant Expenditure,FG - Accounts & Business Planning,University of York,98864908,43697.73,Research Grant Expenditure
BEIS,UKRI - BBSRC,15/12/2020,Research Grant Expenditure,FG - Accounts & Business Planning,University of Leeds,98864909,69205.78,Research Grant Expenditure
BEIS,UKRI - BBSRC,15/12/2020,Research Grant Expenditure,FG - Accounts & Business Planning,University of Bristol GRANT,98864910,60850.17,Research Grant Expenditure
BEIS,UKRI - BBSRC,15/12/2020,Research Grant Expenditure,FG - Accounts & Business Planning,University of Bristol GRANT,98864911,41960.03,Research Grant Expenditure
BEIS,UKRI - BBSRC,15/12/2020,Research Grant Expenditure,FG - Accounts & Business Planning,University of St Andrews,98864912,33856.05,Research Grant Expenditure
BEIS,UKRI - BBSRC,15/12/2020,Research Grant Expenditure,FG - Accounts & Business Planning,University of Liverpool,98864913,34555.10,Research Grant Expenditure
BEIS,UKRI - BBSRC,15/12/2020,Research Grant Expenditure,FG - Accounts & Business Planning,London School of Hygiene & Tropical Medicine,98864914,31457.68,Research Grant Expenditure
BEIS,UKRI - BBSRC,15/12/2020,Research Grant Expenditure,FG - Accounts & Business Planning,University of Birmingham GRANT,98864915,27265.04,Research Grant Expenditure
BEIS,UKRI - BBSRC,15/12/2020,Research Grant Expenditure,FG - Accounts & Business Planning,University of Glasgow,98864916,39714.99,Research Grant Expenditure
BEIS,UKRI - BBSRC,15/12/2020,Research Grant Expenditure,FG - Accounts & Business Planning,University of Oxford,98864917,26047.96,Research Grant Expenditure
BEIS,UKRI - BBSRC,15/12/2020,Research Grant Expenditure,FG - Accounts & Business Planning,Queen Mary University of London,98864918,39492.46,Research Grant Expenditure
BEIS,UKRI - BBSRC,15/12/2020,Research Grant Expenditure,FG - Accounts & Business Planning,University of Reading,98864919,32701.15,Research Grant Expenditure
BEIS,UKRI - BBSRC,15/12/2020,Research Grant Expenditure,FG - Accounts & Business Planning,Queen Mary University of London,98864920,32189.22,Research Grant Expenditure
BEIS,UKRI - BBSRC,15/12/2020,Research Grant Expenditure,FG - Accounts & Business Planning,The University of Manchester,98864921,62282.29,Research Grant Expenditure
BEIS,UKRI - BBSRC,15/12/2020,Research Grant Expenditure,FG - Accounts & Business Planning,The University of Manchester,98864922,60900.71,Research Grant Expenditure
BEIS,UKRI - BBSRC,15/12/2020,Research Grant Expenditure,FG - Accounts & Business Planning,Queen's University Belfast GRANT,98864923,29111.32,Research Grant Expenditure
BEIS,UKRI - BBSRC,15/12/2020,Research Grant Expenditure,FG - Accounts & Business Planning,University of Warwick,98864924,67668.69,Research Grant Expenditure
BEIS,UKRI - BBSRC,15/12/2020,Research Grant Expenditure,FG - Accounts & Business Planning,University of Cambridge,98864925,32166.47,Research Grant Expenditure
BEIS,UKRI - BBSRC,15/12/2020,Research Grant Expenditure,FG - Accounts & Business Planning,The University of Manchester,98864926,35139.78,Research Grant Expenditure
BEIS,UKRI - BBSRC,15/12/2020,Research Grant Expenditure,FG - Accounts & Business Planning,National Institute For Agricultural Botany (NIAB),98864927,51665.13,Research Grant Expenditure
BEIS,UKRI - BBSRC,15/12/2020,Research Grant Expenditure,FG - Accounts & Business Planning,University College London,98864928,38981.33,Research Grant Expenditure
BEIS,UKRI - BBSRC,15/12/2020,Research Grant Expenditure,FG - Accounts & Business Planning,London School of Hygiene & Tropical Medicine,98864929,38361.14,Research Grant Expenditure
BEIS,UKRI - BBSRC,15/12/2020,Research Grant Expenditure,FG - Accounts & Business Planning,Cardiff University,98864930,81102.27,Research Grant Expenditure
BEIS,UKRI - BBSRC,15/12/2020,Research Grant Expenditure,FG - Accounts & Business Planning,European Bioinformatics Institute,98864931,20354.59,Research Grant Expenditure
BEIS,UKRI - BBSRC,15/12/2020,Research Grant Expenditure,FG - Accounts & Business Planning,University of Dundee,98864932,44839.75,Research Grant Expenditure
BEIS,UKRI - BBSRC,15/12/2020,Research Grant Expenditure,FG - Accounts & Business Planning,University of Liverpool,98864933,32992.55,Research Grant Expenditure
BEIS,UKRI - BBSRC,15/12/2020,Research Grant Expenditure,FG - Accounts & Business Planning,University of Dundee,98864934,40762.40,Research Grant Expenditure
BEIS,UKRI - BBSRC,15/12/2020,Research Grant Expenditure,FG - Accounts & Business Planning,University of Portsmouth,98864935,34713.44,Research Grant Expenditure
BEIS,UKRI - BBSRC,15/12/2020,Research Grant Expenditure,FG - Accounts & Business Planning,National Institute For Agricultural Botany (NIAB),98864936,38965.17,Research Grant Expenditure
BEIS,UKRI - BBSRC,15/12/2020,Research Grant Expenditure,FG - Accounts & Business Planning,University of Liverpool,98864937,48022.30,Research Grant Expenditure
BEIS,UKRI - BBSRC,15/12/2020,Research Grant Expenditure,FG - Accounts & Business Planning,European Bioinformatics Institute,98864938,74907.51,Research Grant Expenditure
BEIS,UKRI - BBSRC,15/12/2020,Research Grant Expenditure,FG - Accounts & Business Planning,University of Edinburgh,98864939,6196.78,Research Grant Expenditure
BEIS,UKRI - BBSRC,15/12/2020,Research Grant Expenditure,FG - Accounts & Business Planning,University of Newcastle Upon Tyne,98864940,6838.28,Research Grant Expenditure
BEIS,UKRI - BBSRC,15/12/2020,Research Grant Expenditure,FG - Accounts & Business Planning,University of York,98864941,38131.37,Research Grant Expenditure
BEIS,UKRI - BBSRC,15/12/2020,Research Grant Expenditure,FG - Accounts & Business Planning,King's College London,98864942,30069.33,Research Grant Expenditure
BEIS,UKRI - BBSRC,15/12/2020,Research Grant Expenditure,FG - Accounts & Business Planning,University College London,98864943,23874.43,Research Grant Expenditure
BEIS,UKRI - BBSRC,15/12/2020,Research Grant Expenditure,FG - Accounts & Business Planning,King's College London,98864944,35542.22,Research Grant Expenditure
BEIS,UKRI - BBSRC,15/12/2020,Research Grant Expenditure,FG - Accounts & Business Planning,University of Leicester,98864945,58544.39,Research Grant Expenditure
BEIS,UKRI - BBSRC,15/12/2020,Research Grant Expenditure,FG - Accounts & Business Planning,University of Cambridge,98864946,42617.24,Research Grant Expenditure
BEIS,UKRI - BBSRC,15/12/2020,Research Grant Expenditure,FG - Accounts & Business Planning,Queen Mary University of London,98864947,64964.08,Research Grant Expenditure
BEIS,UKRI - BBSRC,15/12/2020,Research Grant Expenditure,FG - Accounts & Business Planning,University of Sheffield,98864948,32555.72,Research Grant Expenditure
BEIS,UKRI - BBSRC,15/12/2020,Research Grant Expenditure,FG - Accounts & Business Planning,King's College London,98864949,33516.02,Research Grant Expenditure
BEIS,UKRI - BBSRC,15/12/2020,Research Grant Expenditure,FG - Accounts & Business Planning,University of Cambridge,98864950,36710.89,Research Grant Expenditure
BEIS,UKRI - BBSRC,15/12/2020,Research Grant Expenditure,FG - Accounts & Business Planning,University of Nottingham,98864951,41606.71,Research Grant Expenditure
BEIS,UKRI - BBSRC,15/12/2020,Research Grant Expenditure,FG - Accounts & Business Planning,University of Bristol GRANT,98864952,23161.41,Research Grant Expenditure
BEIS,UKRI - BBSRC,15/12/2020,Research Grant Expenditure,FG - Accounts & Business Planning,University of Nottingham,98864953,40461.88,Research Grant Expenditure
BEIS,UKRI - BBSRC,15/12/2020,Research Grant Expenditure,FG - Accounts & Business Planning,University of Cambridge,98864954,51672.65,Research Grant Expenditure
BEIS,UKRI - BBSRC,15/12/2020,Research Grant Expenditure,FG - Accounts & Business Planning,University College London,98864955,29485.24,Research Grant Expenditure
BEIS,UKRI - BBSRC,15/12/2020,Research Grant Expenditure,FG - Accounts & Business Planning,University College London,98864956,65458.94,Research Grant Expenditure
BEIS,UKRI - BBSRC,15/12/2020,Research Grant Expenditure,FG - Accounts & Business Planning,University of Liverpool,98864957,56124.21,Research Grant Expenditure
BEIS,UKRI - BBSRC,15/12/2020,Research Grant Expenditure,FG - Accounts & Business Planning,University of Cambridge,98864958,42552.86,Research Grant Expenditure
BEIS,UKRI - BBSRC,15/12/2020,Research Grant Expenditure,FG - Accounts & Business Planning,King's College London,98864959,27420.26,Research Grant Expenditure
BEIS,UKRI - BBSRC,15/12/2020,Research Grant Expenditure,FG - Accounts & Business Planning,University of Strathclyde,98864960,30469.58,Research Grant Expenditure
BEIS,UKRI - BBSRC,15/12/2020,Research Grant Expenditure,FG - Accounts & Business Planning,University of Kent,98864961,10818.92,Research Grant Expenditure
BEIS,UKRI - BBSRC,15/12/2020,Research Grant Expenditure,FG - Accounts & Business Planning,The University of Manchester,98864962,44528.20,Research Grant Expenditure
BEIS,UKRI - BBSRC,15/12/2020,Research Grant Expenditure,FG - Accounts & Business Planning,University of Birmingham GRANT,98864963,30201.23,Research Grant Expenditure
BEIS,UKRI - BBSRC,15/12/2020,Research Grant Expenditure,FG - Accounts & Business Planning,University of Cambridge,98864964,30739.28,Research Grant Expenditure
BEIS,UKRI - BBSRC,15/12/2020,Research Grant Expenditure,FG - Accounts & Business Planning,King's College London,98864965,10648.50,Research Grant Expenditure
BEIS,UKRI - BBSRC,15/12/2020,Research Grant Expenditure,FG - Accounts & Business Planning,University of Glasgow,98864966,20787.78,Research Grant Expenditure
BEIS,UKRI - BBSRC,15/12/2020,Research Grant Expenditure,FG - Accounts & Business Planning,Heriot Watt University,98864967,46924.30,Research Grant Expenditure
BEIS,UKRI - BBSRC,15/12/2020,Research Grant Expenditure,FG - Accounts & Business Planning,University of Edinburgh,98864968,27050.55,Research Grant Expenditure
BEIS,UKRI - BBSRC,15/12/2020,Research Grant Expenditure,FG - Accounts & Business Planning,Imperial College London,98864969,16285.74,Research Grant Expenditure
BEIS,UKRI - BBSRC,15/12/2020,Research Grant Expenditure,FG - Accounts & Business Planning,The Pirbright Institute,98864970,37598.08,Research Grant Expenditure
BEIS,UKRI - BBSRC,15/12/2020,Research Grant Expenditure,FG - Accounts & Business Planning,University College London,98864971,45328.16,Research Grant Expenditure
BEIS,UKRI - BBSRC,15/12/2020,Research Grant Expenditure,FG - Accounts & Business Planning,University of Edinburgh,98864972,8882.39,Research Grant Expenditure
BEIS,UKRI - BBSRC,15/12/2020,Research Grant Expenditure,FG - Accounts & Business Planning,University of Edinburgh,98864973,38050.84,Research Grant Expenditure
BEIS,UKRI - BBSRC,15/12/2020,Research Grant Expenditure,FG - Accounts & Business Planning,University of Birmingham,98864974,41964.38,Research Grant Expenditure
BEIS,UKRI - BBSRC,15/12/2020,Research Grant Expenditure,FG - Accounts & Business Planning,The Pirbright Institute,98864975,50847.08,Research Grant Expenditure
BEIS,UKRI - BBSRC,15/12/2020,Research Grant Expenditure,FG - Accounts & Business Planning,University of Liverpool,98864976,23279.75,Research Grant Expenditure
BEIS,UKRI - BBSRC,15/12/2020,Research Grant Expenditure,FG - Accounts & Business Planning,University of Liverpool,98864976,23279.75,Research Grant Expenditure
BEIS,UKRI - BBSRC,15/12/2020,Research Grant Expenditure,FG - Accounts & Business Planning,University of Aberdeen,98864977,20225.91,Research Grant Expenditure
BEIS,UKRI - BBSRC,15/12/2020,Research Grant Expenditure,FG - Accounts & Business Planning,Imperial College London,98864978,57815.04,Research Grant Expenditure
BEIS,UKRI - BBSRC,15/12/2020,Research Grant Expenditure,FG - Accounts & Business Planning,University of Liverpool,98864979,36223.71,Research Grant Expenditure
BEIS,UKRI - BBSRC,15/12/2020,Research Grant Expenditure,FG - Accounts & Business Planning,University of Aberdeen,98864980,34240.99,Research Grant Expenditure
BEIS,UKRI - BBSRC,15/12/2020,Research Grant Expenditure,FG - Accounts & Business Planning,University College London,98864981,25100.71,Research Grant Expenditure
BEIS,UKRI - BBSRC,15/12/2020,Research Grant Expenditure,FG - Accounts & Business Planning,University of East Anglia,98864982,10470.55,Research Grant Expenditure
BEIS,UKRI - BBSRC,15/12/2020,Research Grant Expenditure,FG - Accounts & Business Planning,University of Bristol GRANT,98864983,37994.52,Research Grant Expenditure
BEIS,UKRI - BBSRC,15/12/2020,Research Grant Expenditure,FG - Accounts & Business Planning,Queen's University Belfast GRANT,98864984,28106.51,Research Grant Expenditure
BEIS,UKRI - BBSRC,15/12/2020,Research Grant Expenditure,FG - Accounts & Business Planning,University of Nottingham,98864985,21683.05,Research Grant Expenditure
BEIS,UKRI - BBSRC,15/12/2020,Research Grant Expenditure,FG - Accounts & Business Planning,University of Leeds,98864986,1752.32,Research Grant Expenditure
BEIS,UKRI - BBSRC,15/12/2020,Research Grant Expenditure,FG - Accounts & Business Planning,University of York,98864987,2544.17,Research Grant Expenditure
BEIS,UKRI - BBSRC,15/12/2020,Research Grant Expenditure,FG - Accounts & Business Planning,University of Greenwich,98864988,83136.20,Research Grant Expenditure
BEIS,UKRI - BBSRC,15/12/2020,Research Grant Expenditure,FG - Accounts & Business Planning,University of East Anglia,98864989,126152.54,Research Grant Expenditure
BEIS,UKRI - BBSRC,15/12/2020,Research Grant Expenditure,FG - Accounts & Business Planning,John Innes Centre,98864990,2991.53,Research Grant Expenditure
BEIS,UKRI - BBSRC,15/12/2020,Research Grant Expenditure,FG - Accounts & Business Planning,National Institute For Agricultural Botany (NIAB),98864991,119781.47,Research Grant Expenditure
BEIS,UKRI - BBSRC,15/12/2020,Research Grant Expenditure,FG - Accounts & Business Planning,University of York,98864992,67238.56,Research Grant Expenditure
BEIS,UKRI - BBSRC,15/12/2020,Research Grant Expenditure,FG - Accounts & Business Planning,Keele University,98864993,92779.53,Research Grant Expenditure
BEIS,UKRI - BBSRC,15/12/2020,Research Grant Expenditure,FG - Accounts & Business Planning,Cranfield University,98864994,72812.20,Research Grant Expenditure
BEIS,UKRI - BBSRC,15/12/2020,Research Grant Expenditure,FG - Accounts & Business Planning,University of Edinburgh,98864995,80912.36,Research Grant Expenditure
BEIS,UKRI - BBSRC,15/12/2020,Research Grant Expenditure,FG - Accounts & Business Planning,John Innes Centre,98864996,106152.34,Research Grant Expenditure
BEIS,UKRI - BBSRC,15/12/2020,Research Grant Expenditure,FG - Accounts & Business Planning,The Pirbright Institute,98864997,25000.00,Research Grant Expenditure
BEIS,UKRI - BBSRC,15/12/2020,Research Grant Expenditure,FG - Accounts & Business Planning,The University of Manchester,98864998,25000.00,Research Grant Expenditure
BEIS,UKRI - BBSRC,15/12/2020,Research Grant Expenditure,FG - Accounts & Business Planning,University of Birmingham GRANT,98864999,25000.00,Research Grant Expenditure
BEIS,UKRI - BBSRC,15/12/2020,Research Grant Expenditure,FG - Accounts & Business Planning,University of Cambridge,98865000,25000.00,Research Grant Expenditure
BEIS,UKRI - BBSRC,15/12/2020,Research Grant Expenditure,FG - Accounts & Business Planning,University of Oxford,98865001,25000.00,Research Grant Expenditure
BEIS,UKRI - BBSRC,15/12/2020,Research Grant Expenditure,FG - Accounts & Business Planning,University of Warwick,98865002,25000.00,Research Grant Expenditure
BEIS,UKRI - BBSRC,15/12/2020,Research Grant Expenditure,FG - Accounts & Business Planning,University of Sheffield,98865003,25000.00,Research Grant Expenditure
BEIS,UKRI - BBSRC,15/12/2020,Research Grant Expenditure,FG - Accounts & Business Planning,University of York,98865004,25000.00,Research Grant Expenditure
BEIS,UKRI - BBSRC,15/12/2020,Research Grant Expenditure,FG - Accounts & Business Planning,University of Oxford,98865005,40400.14,Research Grant Expenditure
BEIS,UKRI - BBSRC,15/12/2020,Research Grant Expenditure,FG - Accounts & Business Planning,The University of Manchester,98865006,44385.18,Research Grant Expenditure
BEIS,UKRI - BBSRC,15/12/2020,Research Grant Expenditure,FG - Accounts & Business Planning,University of Newcastle Upon Tyne,98865007,31908.41,Research Grant Expenditure
BEIS,UKRI - BBSRC,15/12/2020,Research Grant Expenditure,FG - Accounts & Business Planning,University of Bristol GRANT,98865008,41050.71,Research Grant Expenditure
BEIS,UKRI - BBSRC,15/12/2020,Research Grant Expenditure,FG - Accounts & Business Planning,University of Leeds,98865009,46913.35,Research Grant Expenditure
BEIS,UKRI - BBSRC,15/12/2020,Research Grant Expenditure,FG - Accounts & Business Planning,Imperial College London,98865010,32742.49,Research Grant Expenditure
BEIS,UKRI - BBSRC,15/12/2020,Research Grant Expenditure,FG - Accounts & Business Planning,Imperial College London,98865011,34826.89,Research Grant Expenditure
BEIS,UKRI - BBSRC,15/12/2020,Research Grant Expenditure,FG - Accounts & Business Planning,University of Birmingham GRANT,98865012,39911.48,Research Grant Expenditure
BEIS,UKRI - BBSRC,15/12/2020,Research Grant Expenditure,FG - Accounts & Business Planning,University of Glasgow,98865013,39505.11,Research Grant Expenditure
BEIS,UKRI - BBSRC,15/12/2020,Research Grant Expenditure,FG - Accounts & Business Planning,University of St Andrews,98865014,17314.50,Research Grant Expenditure
BEIS,UKRI - BBSRC,15/12/2020,Research Grant Expenditure,FG - Accounts & Business Planning,University of Birmingham GRANT,98865015,44220.59,Research Grant Expenditure
BEIS,UKRI - BBSRC,15/12/2020,Research Grant Expenditure,FG - Accounts & Business Planning,University of Aberdeen,98865016,37156.55,Research Grant Expenditure
BEIS,UKRI - BBSRC,15/12/2020,Research Grant Expenditure,FG - Accounts & Business Planning,Imperial College London,98865017,32719.91,Research Grant Expenditure
BEIS,UKRI - BBSRC,15/12/2020,Research Grant Expenditure,FG - Accounts & Business Planning,Aberystwyth University,98865018,39884.87,Research Grant Expenditure
BEIS,UKRI - BBSRC,15/12/2020,Research Grant Expenditure,FG - Accounts & Business Planning,University College London,98865019,38869.68,Research Grant Expenditure
BEIS,UKRI - BBSRC,15/12/2020,Research Grant Expenditure,FG - Accounts & Business Planning,Cardiff University,98865020,10733.08,Research Grant Expenditure
BEIS,UKRI - BBSRC,15/12/2020,Capital Grants & Equipment to HEIs,FG - Accounts & Business Planning,University of Sheffield,98865021,3436.77,Capital Grants & Equipment to HEIs
BEIS,UKRI - BBSRC,15/12/2020,Research Grant Expenditure,FG - Accounts & Business Planning,University of Sheffield,98865021,26361.66,Research Grant Expenditure
BEIS,UKRI - BBSRC,15/12/2020,Research Grant Expenditure,FG - Accounts & Business Planning,University of Leeds,98865022,40017.85,Research Grant Expenditure
BEIS,UKRI - BBSRC,15/12/2020,Research Grant Expenditure,FG - Accounts & Business Planning,University of Cambridge,98865023,33806.32,Research Grant Expenditure
BEIS,UKRI - BBSRC,15/12/2020,Research Grant Expenditure,FG - Accounts & Business Planning,University of Leicester,98865024,35847.47,Research Grant Expenditure
BEIS,UKRI - BBSRC,15/12/2020,Research Grant Expenditure,FG - Accounts & Business Planning,University of Birmingham GRANT,98865025,40763.50,Research Grant Expenditure
BEIS,UKRI - BBSRC,15/12/2020,Research Grant Expenditure,FG - Accounts & Business Planning,University of Bristol GRANT,98865026,42090.92,Research Grant Expenditure
BEIS,UKRI - BBSRC,15/12/2020,Research Grant Expenditure,FG - Accounts & Business Planning,University of Edinburgh,98865027,33083.91,Research Grant Expenditure
BEIS,UKRI - BBSRC,15/12/2020,Research Grant Expenditure,FG - Accounts & Business Planning,Babraham Institute,98865028,30654.11,Research Grant Expenditure
BEIS,UKRI - BBSRC,15/12/2020,Research Grant Expenditure,FG - Accounts & Business Planning,University of Sheffield,98865029,5336.85,Research Grant Expenditure
BEIS,UKRI - BBSRC,15/12/2020,Research Grant Expenditure,FG - Accounts & Business Planning,Aston University,98865030,2351.45,Research Grant Expenditure
BEIS,UKRI - BBSRC,15/12/2020,Research Grant Expenditure,FG - Accounts & Business Planning,The University of Manchester,98865031,62431.66,Research Grant Expenditure
BEIS,UKRI - BBSRC,15/12/2020,Research Grant Expenditure,FG - Accounts & Business Planning,Coventry University,98865032,31593.24,Research Grant Expenditure
BEIS,UKRI - BBSRC,15/12/2020,Research Grant Expenditure,FG - Accounts & Business Planning,University of Oxford,98865033,32013.54,Research Grant Expenditure
BEIS,UKRI - BBSRC,15/12/2020,Research Grant Expenditure,FG - Accounts & Business Planning,University of Newcastle Upon Tyne,98865034,34725.19,Research Grant Expenditure
BEIS,UKRI - BBSRC,15/12/2020,Research Grant Expenditure,FG - Accounts & Business Planning,University of Liverpool,98865035,34598.38,Research Grant Expenditure
BEIS,UKRI - BBSRC,15/12/2020,Research Grant Expenditure,FG - Accounts & Business Planning,University of Bath,98865036,46852.73,Research Grant Expenditure
BEIS,UKRI - BBSRC,15/12/2020,Research Grant Expenditure,FG - Accounts & Business Planning,University of Oxford,98865037,35589.81,Research Grant Expenditure
BEIS,UKRI - BBSRC,15/12/2020,Research Grant Expenditure,FG - Accounts & Business Planning,University of Bristol GRANT,98865038,22761.00,Research Grant Expenditure
BEIS,UKRI - BBSRC,15/12/2020,Research Grant Expenditure,FG - Accounts & Business Planning,University of East Anglia,98865039,39850.84,Research Grant Expenditure
BEIS,UKRI - BBSRC,15/12/2020,Research Grant Expenditure,FG - Accounts & Business Planning,University of Birmingham GRANT,98865040,3238.72,Research Grant Expenditure
BEIS,UKRI - BBSRC,15/12/2020,Research Grant Expenditure,FG - Accounts & Business Planning,University of Edinburgh,98865041,35695.56,Research Grant Expenditure
BEIS,UKRI - BBSRC,15/12/2020,Research Grant Expenditure,FG - Accounts & Business Planning,Queen Mary University of London,98865042,40877.86,Research Grant Expenditure
BEIS,UKRI - BBSRC,15/12/2020,Research Grant Expenditure,FG - Accounts & Business Planning,Imperial College London,98865043,37818.56,Research Grant Expenditure
BEIS,UKRI - BBSRC,15/12/2020,Research Grant Expenditure,FG - Accounts & Business Planning,University of Sussex,98865044,36035.82,Research Grant Expenditure
BEIS,UKRI - BBSRC,15/12/2020,Research Grant Expenditure,FG - Accounts & Business Planning,King's College London,98865045,57789.85,Research Grant Expenditure
BEIS,UKRI - BBSRC,15/12/2020,Research Grant Expenditure,FG - Accounts & Business Planning,University of Cambridge,98865046,6595.25,Research Grant Expenditure
BEIS,UKRI - BBSRC,15/12/2020,Research Grant Expenditure,FG - Accounts & Business Planning,The Pirbright Institute,98865047,63173.46,Research Grant Expenditure
BEIS,UKRI - BBSRC,15/12/2020,Research Grant Expenditure,FG - Accounts & Business Planning,University of Edinburgh,98865048,49110.10,Research Grant Expenditure
BEIS,UKRI - BBSRC,15/12/2020,Research Grant Expenditure,FG - Accounts & Business Planning,Cardiff University,98865049,39193.15,Research Grant Expenditure
BEIS,UKRI - BBSRC,15/12/2020,Research Grant Expenditure,FG - Accounts & Business Planning,University of Dundee,98865050,62549.19,Research Grant Expenditure
BEIS,UKRI - BBSRC,15/12/2020,Research Grant Expenditure,FG - Accounts & Business Planning,John Innes Centre,98865051,43830.64,Research Grant Expenditure
BEIS,UKRI - BBSRC,15/12/2020,Research Grant Expenditure,FG - Accounts & Business Planning,University College London,98865052,75480.55,Research Grant Expenditure
BEIS,UKRI - BBSRC,15/12/2020,Research Grant Expenditure,FG - Accounts & Business Planning,The Francis Crick Institute,98865053,32879.76,Research Grant Expenditure
BEIS,UKRI - BBSRC,15/12/2020,Research Grant Expenditure,FG - Accounts & Business Planning,University of Nottingham,98865054,38289.78,Research Grant Expenditure
BEIS,UKRI - BBSRC,15/12/2020,Research Grant Expenditure,FG - Accounts & Business Planning,University of Bristol GRANT,98865055,39889.64,Research Grant Expenditure
BEIS,UKRI - BBSRC,15/12/2020,Research Grant Expenditure,FG - Accounts & Business Planning,University of Cambridge,98865056,30868.82,Research Grant Expenditure
BEIS,UKRI - BBSRC,15/12/2020,Research Grant Expenditure,FG - Accounts & Business Planning,University of Glasgow,98865057,48744.92,Research Grant Expenditure
BEIS,UKRI - BBSRC,15/12/2020,Research Grant Expenditure,FG - Accounts & Business Planning,Imperial College London,98865058,44193.90,Research Grant Expenditure
BEIS,UKRI - BBSRC,15/12/2020,Research Grant Expenditure,FG - Accounts & Business Planning,University of East Anglia,98865059,40004.39,Research Grant Expenditure
BEIS,UKRI - BBSRC,15/12/2020,Research Grant Expenditure,FG - Accounts & Business Planning,Cardiff University,98865060,34706.61,Research Grant Expenditure
BEIS,UKRI - BBSRC,15/12/2020,Research Grant Expenditure,FG - Accounts & Business Planning,University of Kent,98865061,31924.77,Research Grant Expenditure
BEIS,UKRI - BBSRC,15/12/2020,Research Grant Expenditure,FG - Accounts & Business Planning,University of Warwick,98865062,42289.34,Research Grant Expenditure
BEIS,UKRI - BBSRC,15/12/2020,Research Grant Expenditure,FG - Accounts & Business Planning,University of Warwick,98865063,12650.01,Research Grant Expenditure
BEIS,UKRI - BBSRC,15/12/2020,Research Grant Expenditure,FG - Accounts & Business Planning,University of Bristol GRANT,98865064,50765.66,Research Grant Expenditure
BEIS,UKRI - BBSRC,15/12/2020,Research Grant Expenditure,FG - Accounts & Business Planning,University of Nottingham,98865065,34838.30,Research Grant Expenditure
BEIS,UKRI - BBSRC,15/12/2020,Research Grant Expenditure,FG - Accounts & Business Planning,King's College London,98865066,28850.06,Research Grant Expenditure
BEIS,UKRI - BBSRC,15/12/2020,Research Grant Expenditure,FG - Accounts & Business Planning,University of East Anglia,98865067,30900.22,Research Grant Expenditure
BEIS,UKRI - BBSRC,15/12/2020,Research Grant Expenditure,FG - Accounts & Business Planning,University of Leeds,98865068,28790.07,Research Grant Expenditure
BEIS,UKRI - BBSRC,15/12/2020,Research Grant Expenditure,FG - Accounts & Business Planning,University of Sheffield,98865069,37375.87,Research Grant Expenditure
BEIS,UKRI - BBSRC,15/12/2020,Research Grant Expenditure,FG - Accounts & Business Planning,University of Cambridge,98865070,38137.29,Research Grant Expenditure
BEIS,UKRI - BBSRC,15/12/2020,Research Grant Expenditure,FG - Accounts & Business Planning,University College London,98865071,38515.31,Research Grant Expenditure
BEIS,UKRI - BBSRC,15/12/2020,Research Grant Expenditure,FG - Accounts & Business Planning,University of Kent,98865072,30516.65,Research Grant Expenditure
BEIS,UKRI - BBSRC,15/12/2020,Research Grant Expenditure,FG - Accounts & Business Planning,The University of Manchester,98865073,42498.35,Research Grant Expenditure
BEIS,UKRI - BBSRC,15/12/2020,Research Grant Expenditure,FG - Accounts & Business Planning,University of Bristol GRANT,98865074,30360.17,Research Grant Expenditure
BEIS,UKRI - BBSRC,15/12/2020,Research Grant Expenditure,FG - Accounts & Business Planning,King's College London,98865075,28628.04,Research Grant Expenditure
BEIS,UKRI - BBSRC,15/12/2020,Research Grant Expenditure,FG - Accounts & Business Planning,University of Sussex,98865076,25485.47,Research Grant Expenditure
BEIS,UKRI - BBSRC,15/12/2020,Research Grant Expenditure,FG - Accounts & Business Planning,Royal Botanic Gardens Kew,98865077,22105.23,Research Grant Expenditure
BEIS,UKRI - BBSRC,15/12/2020,Research Grant Expenditure,FG - Accounts & Business Planning,University of Oxford,98865078,29037.28,Research Grant Expenditure
BEIS,UKRI - BBSRC,15/12/2020,Research Grant Expenditure,FG - Accounts & Business Planning,Queen Mary University of London,98865079,31390.95,Research Grant Expenditure
BEIS,UKRI - BBSRC,15/12/2020,Research Grant Expenditure,FG - Accounts & Business Planning,St George's University of London,98865080,50757.42,Research Grant Expenditure
BEIS,UKRI - BBSRC,15/12/2020,Research Grant Expenditure,FG - Accounts & Business Planning,University of Edinburgh,98865081,50124.64,Research Grant Expenditure
BEIS,UKRI - BBSRC,15/12/2020,Research Grant Expenditure,FG - Accounts & Business Planning,Cardiff University,98865082,46490.48,Research Grant Expenditure
BEIS,UKRI - BBSRC,15/12/2020,Research Grant Expenditure,FG - Accounts & Business Planning,University of Dundee,98865083,34268.71,Research Grant Expenditure
BEIS,UKRI - BBSRC,15/12/2020,Research Grant Expenditure,FG - Accounts & Business Planning,University of Essex,98865084,70645.12,Research Grant Expenditure
BEIS,UKRI - BBSRC,15/12/2020,Research Grant Expenditure,FG - Accounts & Business Planning,University College London,98865085,33124.26,Research Grant Expenditure
BEIS,UKRI - BBSRC,15/12/2020,Research Grant Expenditure,FG - Accounts & Business Planning,University of Nottingham,98865086,38852.36,Research Grant Expenditure
BEIS,UKRI - BBSRC,15/12/2020,Research Grant Expenditure,FG - Accounts & Business Planning,University of Edinburgh,98865087,44515.91,Research Grant Expenditure
BEIS,UKRI - BBSRC,15/12/2020,Research Grant Expenditure,FG - Accounts & Business Planning,Royal Veterinary College,98865088,1475.19,Research Grant Expenditure
BEIS,UKRI - BBSRC,15/12/2020,Research Grant Expenditure,FG - Accounts & Business Planning,University of Oxford,98865089,36082.24,Research Grant Expenditure
BEIS,UKRI - BBSRC,15/12/2020,Research Grant Expenditure,FG - Accounts & Business Planning,King's College London,98865090,46392.87,Research Grant Expenditure
BEIS,UKRI - BBSRC,15/12/2020,Research Grant Expenditure,FG - Accounts & Business Planning,University of Cambridge,98865091,27224.15,Research Grant Expenditure
BEIS,UKRI - BBSRC,15/12/2020,Research Grant Expenditure,FG - Accounts & Business Planning,University of Glasgow,98865092,42655.77,Research Grant Expenditure
BEIS,UKRI - BBSRC,15/12/2020,Research Grant Expenditure,FG - Accounts & Business Planning,Imperial College London,98865093,38957.72,Research Grant Expenditure
BEIS,UKRI - BBSRC,15/12/2020,Research Grant Expenditure,FG - Accounts & Business Planning,University of Edinburgh,98865094,44143.38,Research Grant Expenditure
BEIS,UKRI - BBSRC,15/12/2020,Research Grant Expenditure,FG - Accounts & Business Planning,University of Exeter,98865095,25295.65,Research Grant Expenditure
BEIS,UKRI - BBSRC,15/12/2020,Research Grant Expenditure,FG - Accounts & Business Planning,University of Cambridge,98865096,49184.52,Research Grant Expenditure
BEIS,UKRI - BBSRC,15/12/2020,Research Grant Expenditure,FG - Accounts & Business Planning,University of Edinburgh,98865097,35406.09,Research Grant Expenditure
BEIS,UKRI - BBSRC,15/12/2020,Research Grant Expenditure,FG - Accounts & Business Planning,University of Oxford,98865098,46383.83,Research Grant Expenditure
BEIS,UKRI - BBSRC,15/12/2020,Research Grant Expenditure,FG - Accounts & Business Planning,University of Liverpool,98865099,33109.08,Research Grant Expenditure
BEIS,UKRI - BBSRC,15/12/2020,Research Grant Expenditure,FG - Accounts & Business Planning,Imperial College London,98865100,34264.39,Research Grant Expenditure
BEIS,UKRI - BBSRC,15/12/2020,Research Grant Expenditure,FG - Accounts & Business Planning,University of the West of England,98865101,3031.26,Research Grant Expenditure
BEIS,UKRI - BBSRC,15/12/2020,Research Grant Expenditure,FG - Accounts & Business Planning,SRUC,98865102,6814.28,Research Grant Expenditure
BEIS,UKRI - BBSRC,15/12/2020,Research Grant Expenditure,FG - Accounts & Business Planning,University of Edinburgh,98865103,44036.95,Research Grant Expenditure
BEIS,UKRI - BBSRC,15/12/2020,Research Grant Expenditure,FG - Accounts & Business Planning,University of Nottingham,98865104,21061.97,Research Grant Expenditure
BEIS,UKRI - BBSRC,15/12/2020,Research Grant Expenditure,FG - Accounts & Business Planning,University of Liverpool,98865105,24346.29,Research Grant Expenditure
BEIS,UKRI - BBSRC,15/12/2020,Research Grant Expenditure,FG - Accounts & Business Planning,SRUC,98865106,27668.24,Research Grant Expenditure
BEIS,UKRI - BBSRC,15/12/2020,Research Grant Expenditure,FG - Accounts & Business Planning,University of Sussex,98865107,43798.00,Research Grant Expenditure
BEIS,UKRI - BBSRC,15/12/2020,Research Grant Expenditure,FG - Accounts & Business Planning,Queen Mary University of London,98865108,43181.44,Research Grant Expenditure
BEIS,UKRI - BBSRC,15/12/2020,Research Grant Expenditure,FG - Accounts & Business Planning,Aston University,98865109,61118.03,Research Grant Expenditure
BEIS,UKRI - BBSRC,15/12/2020,Research Grant Expenditure,FG - Accounts & Business Planning,University of Bristol GRANT,98865110,42769.75,Research Grant Expenditure
BEIS,UKRI - BBSRC,15/12/2020,Research Grant Expenditure,FG - Accounts & Business Planning,Royal Veterinary College,98865111,27352.15,Research Grant Expenditure
BEIS,UKRI - BBSRC,15/12/2020,Research Grant Expenditure,FG - Accounts & Business Planning,University of Birmingham GRANT,98865112,48592.35,Research Grant Expenditure
BEIS,UKRI - BBSRC,15/12/2020,Research Grant Expenditure,FG - Accounts & Business Planning,Lancaster University,98865113,70279.58,Research Grant Expenditure
BEIS,UKRI - BBSRC,15/12/2020,Research Grant Expenditure,FG - Accounts & Business Planning,Robert Gordon University,98865115,25680.66,Research Grant Expenditure
BEIS,UKRI - BBSRC,15/12/2020,Research Grant Expenditure,FG - Accounts & Business Planning,University of St Andrews,98865116,29556.98,Research Grant Expenditure
BEIS,UKRI - BBSRC,15/12/2020,Research Grant Expenditure,FG - Accounts & Business Planning,University of Nottingham,98865117,8648.26,Research Grant Expenditure
BEIS,UKRI - BBSRC,15/12/2020,Research Grant Expenditure,FG - Accounts & Business Planning,University of Leeds,98865118,37441.12,Research Grant Expenditure
BEIS,UKRI - BBSRC,15/12/2020,Research Grant Expenditure,FG - Accounts & Business Planning,University of Cambridge,98865119,45937.98,Research Grant Expenditure
BEIS,UKRI - BBSRC,15/12/2020,Research Grant Expenditure,FG - Accounts & Business Planning,University of Newcastle Upon Tyne,98865120,28919.54,Research Grant Expenditure
BEIS,UKRI - BBSRC,15/12/2020,Research Grant Expenditure,FG - Accounts & Business Planning,University of Warwick,98865121,32837.93,Research Grant Expenditure
BEIS,UKRI - BBSRC,15/12/2020,Research Grant Expenditure,FG - Accounts & Business Planning,University of Dundee,98865122,37981.56,Research Grant Expenditure
BEIS,UKRI - BBSRC,15/12/2020,Research Grant Expenditure,FG - Accounts & Business Planning,University of Exeter,98865123,30948.21,Research Grant Expenditure
BEIS,UKRI - BBSRC,15/12/2020,Research Grant Expenditure,FG - Accounts & Business Planning,University of Dundee,98865124,55623.53,Research Grant Expenditure
BEIS,UKRI - BBSRC,15/12/2020,Research Grant Expenditure,FG - Accounts & Business Planning,University of Oxford,98865125,44343.84,Research Grant Expenditure
BEIS,UKRI - BBSRC,15/12/2020,Research Grant Expenditure,FG - Accounts & Business Planning,University of Oxford,98865126,79763.47,Research Grant Expenditure
BEIS,UKRI - BBSRC,15/12/2020,Research Grant Expenditure,FG - Accounts & Business Planning,University of Sussex,98865127,27052.42,Research Grant Expenditure
BEIS,UKRI - BBSRC,15/12/2020,Research Grant Expenditure,FG - Accounts & Business Planning,University of Birmingham GRANT,98865128,39948.17,Research Grant Expenditure
BEIS,UKRI - BBSRC,15/12/2020,Research Grant Expenditure,FG - Accounts & Business Planning,Cardiff University,98865129,34395.45,Research Grant Expenditure
BEIS,UKRI - BBSRC,15/12/2020,Research Grant Expenditure,FG - Accounts & Business Planning,John Innes Centre,98865130,35405.12,Research Grant Expenditure
BEIS,UKRI - BBSRC,15/12/2020,Research Grant Expenditure,FG - Accounts & Business Planning,John Innes Centre,98865131,61650.47,Research Grant Expenditure
BEIS,UKRI - BBSRC,15/12/2020,Research Grant Expenditure,FG - Accounts & Business Planning,University of Warwick,98865132,30117.58,Research Grant Expenditure
BEIS,UKRI - BBSRC,15/12/2020,Research Grant Expenditure,FG - Accounts & Business Planning,University of Leeds,98865133,142512.17,Research Grant Expenditure
BEIS,UKRI - BBSRC,15/12/2020,Research Grant Expenditure,FG - Accounts & Business Planning,University of Sheffield,98865134,67020.93,Research Grant Expenditure
BEIS,UKRI - BBSRC,15/12/2020,Research Grant Expenditure,FG - Accounts & Business Planning,University of Sheffield,98865135,45084.80,Research Grant Expenditure
BEIS,UKRI - BBSRC,15/12/2020,Research Grant Expenditure,FG - Accounts & Business Planning,University of Nottingham,98865136,42122.51,Research Grant Expenditure
BEIS,UKRI - BBSRC,15/12/2020,Research Grant Expenditure,FG - Accounts & Business Planning,Rothamsted Research Ltd,98865137,43052.82,Research Grant Expenditure
BEIS,UKRI - BBSRC,15/12/2020,Research Grant Expenditure,FG - Accounts & Business Planning,University of Nottingham,98865138,46198.06,Research Grant Expenditure
BEIS,UKRI - BBSRC,15/12/2020,Research Grant Expenditure,FG - Accounts & Business Planning,University of Newcastle Upon Tyne,98865139,30112.12,Research Grant Expenditure
BEIS,UKRI - BBSRC,15/12/2020,Research Grant Expenditure,FG - Accounts & Business Planning,University of Cambridge,98865140,43568.45,Research Grant Expenditure
BEIS,UKRI - BBSRC,15/12/2020,Research Grant Expenditure,FG - Accounts & Business Planning,University of Surrey,98865141,33577.27,Research Grant Expenditure
BEIS,UKRI - BBSRC,15/12/2020,Research Grant Expenditure,FG - Accounts & Business Planning,University of Sheffield,98865142,49229.71,Research Grant Expenditure
BEIS,UKRI - BBSRC,15/12/2020,Research Grant Expenditure,FG - Accounts & Business Planning,University of Bristol GRANT,98865143,2021.94,Research Grant Expenditure
BEIS,UKRI - BBSRC,15/12/2020,Research Grant Expenditure,FG - Accounts & Business Planning,University of Nottingham,98865144,31218.19,Research Grant Expenditure
BEIS,UKRI - BBSRC,15/12/2020,Research Grant Expenditure,FG - Accounts & Business Planning,University of Newcastle Upon Tyne,98865145,38778.57,Research Grant Expenditure
BEIS,UKRI - BBSRC,15/12/2020,Research Grant Expenditure,FG - Accounts & Business Planning,University of Sheffield,98865146,33360.92,Research Grant Expenditure
BEIS,UKRI - BBSRC,15/12/2020,Research Grant Expenditure,FG - Accounts & Business Planning,University of Cambridge,98865147,25943.20,Research Grant Expenditure
BEIS,UKRI - BBSRC,15/12/2020,Research Grant Expenditure,FG - Accounts & Business Planning,University of Oxford,98865148,32434.49,Research Grant Expenditure
BEIS,UKRI - BBSRC,15/12/2020,Research Grant Expenditure,FG - Accounts & Business Planning,University of Glasgow,98865149,39183.27,Research Grant Expenditure
BEIS,UKRI - BBSRC,15/12/2020,Research Grant Expenditure,FG - Accounts & Business Planning,University of Leeds,98865150,61450.87,Research Grant Expenditure
BEIS,UKRI - BBSRC,15/12/2020,Research Grant Expenditure,FG - Accounts & Business Planning,University of Durham,98865151,21107.95,Research Grant Expenditure
BEIS,UKRI - BBSRC,15/12/2020,Research Grant Expenditure,FG - Accounts & Business Planning,University of Newcastle Upon Tyne,98865152,46087.08,Research Grant Expenditure
BEIS,UKRI - BBSRC,15/12/2020,Research Grant Expenditure,FG - Accounts & Business Planning,University of Cambridge,98865153,31866.18,Research Grant Expenditure
BEIS,UKRI - BBSRC,15/12/2020,Research Grant Expenditure,FG - Accounts & Business Planning,University of Greenwich,98865154,26890.13,Research Grant Expenditure
BEIS,UKRI - BBSRC,15/12/2020,Research Grant Expenditure,FG - Accounts & Business Planning,John Innes Centre,98865155,42410.34,Research Grant Expenditure
BEIS,UKRI - BBSRC,15/12/2020,Research Grant Expenditure,FG - Accounts & Business Planning,The University of Manchester,98865156,9042.22,Research Grant Expenditure
BEIS,UKRI - BBSRC,15/12/2020,Research Grant Expenditure,FG - Accounts & Business Planning,University of Dundee,98865157,35931.50,Research Grant Expenditure
BEIS,UKRI - BBSRC,15/12/2020,Research Grant Expenditure,FG - Accounts & Business Planning,National Institute For Agricultural Botany (NIAB),98865158,31616.38,Research Grant Expenditure
BEIS,UKRI - BBSRC,15/12/2020,Research Grant Expenditure,FG - Accounts & Business Planning,King's College London,98865159,33381.59,Research Grant Expenditure
BEIS,UKRI - BBSRC,15/12/2020,Research Grant Expenditure,FG - Accounts & Business Planning,University of Exeter,98865160,36448.14,Research Grant Expenditure
BEIS,UKRI - BBSRC,15/12/2020,Research Grant Expenditure,FG - Accounts & Business Planning,University of Oxford,98865161,50429.30,Research Grant Expenditure
BEIS,UKRI - BBSRC,15/12/2020,Research Grant Expenditure,FG - Accounts & Business Planning,University of Edinburgh,98865162,24116.18,Research Grant Expenditure
BEIS,UKRI - BBSRC,15/12/2020,Research Grant Expenditure,FG - Accounts & Business Planning,Queen's University Belfast GRANT,98865163,36926.39,Research Grant Expenditure
BEIS,UKRI - BBSRC,15/12/2020,Research Grant Expenditure,FG - Accounts & Business Planning,University of Cambridge,98865164,43081.82,Research Grant Expenditure
BEIS,UKRI - BBSRC,15/12/2020,Research Grant Expenditure,FG - Accounts & Business Planning,University of Cambridge,98865165,40657.27,Research Grant Expenditure
BEIS,UKRI - BBSRC,15/12/2020,Research Grant Expenditure,FG - Accounts & Business Planning,University of Newcastle Upon Tyne,98865166,33480.09,Research Grant Expenditure
BEIS,UKRI - BBSRC,15/12/2020,Research Grant Expenditure,FG - Accounts & Business Planning,University of Liverpool,98865167,28843.46,Research Grant Expenditure
BEIS,UKRI - BBSRC,15/12/2020,Research Grant Expenditure,FG - Accounts & Business Planning,University of Oxford,98865168,37121.52,Research Grant Expenditure
BEIS,UKRI - BBSRC,15/12/2020,Research Grant Expenditure,FG - Accounts & Business Planning,University of Leicester,98865169,46983.85,Research Grant Expenditure
BEIS,UKRI - BBSRC,15/12/2020,Research Grant Expenditure,FG - Accounts & Business Planning,University of Cambridge,98865170,49735.66,Research Grant Expenditure
BEIS,UKRI - BBSRC,15/12/2020,Research Grant Expenditure,FG - Accounts & Business Planning,Imperial College London,98865171,45250.93,Research Grant Expenditure
BEIS,UKRI - BBSRC,15/12/2020,Research Grant Expenditure,FG - Accounts & Business Planning,University of East Anglia,98865172,26469.51,Research Grant Expenditure
BEIS,UKRI - BBSRC,15/12/2020,Research Grant Expenditure,FG - Accounts & Business Planning,SRUC,98865173,32577.86,Research Grant Expenditure
BEIS,UKRI - BBSRC,15/12/2020,Research Grant Expenditure,FG - Accounts & Business Planning,University of Glasgow,98865174,36391.99,Research Grant Expenditure
BEIS,UKRI - BBSRC,15/12/2020,Research Grant Expenditure,FG - Accounts & Business Planning,University of Edinburgh,98865175,24409.16,Research Grant Expenditure
BEIS,UKRI - BBSRC,15/12/2020,Research Grant Expenditure,FG - Accounts & Business Planning,University of Edinburgh,98865176,34718.96,Research Grant Expenditure
BEIS,UKRI - BBSRC,15/12/2020,Research Grant Expenditure,FG - Accounts & Business Planning,University of Newcastle Upon Tyne,98865177,1267.50,Research Grant Expenditure
BEIS,UKRI - BBSRC,15/12/2020,Research Grant Expenditure,FG - Accounts & Business Planning,University of Glasgow,98865178,35501.89,Research Grant Expenditure
BEIS,UKRI - BBSRC,15/12/2020,Research Grant Expenditure,FG - Accounts & Business Planning,University of Sheffield,98865179,42513.99,Research Grant Expenditure
BEIS,UKRI - BBSRC,15/12/2020,Research Grant Expenditure,FG - Accounts & Business Planning,University of Cambridge,98865180,57405.68,Research Grant Expenditure
BEIS,UKRI - BBSRC,15/12/2020,Research Grant Expenditure,FG - Accounts & Business Planning,University of Oxford,98865181,31856.62,Research Grant Expenditure
BEIS,UKRI - BBSRC,15/12/2020,Research Grant Expenditure,FG - Accounts & Business Planning,University College London,98865182,42134.32,Research Grant Expenditure
BEIS,UKRI - BBSRC,15/12/2020,Research Grant Expenditure,FG - Accounts & Business Planning,University of Oxford,98865183,58633.74,Research Grant Expenditure
BEIS,UKRI - BBSRC,15/12/2020,Research Grant Expenditure,FG - Accounts & Business Planning,University of Oxford,98865184,71285.64,Research Grant Expenditure
BEIS,UKRI - BBSRC,15/12/2020,Research Grant Expenditure,FG - Accounts & Business Planning,John Innes Centre,98865185,58938.68,Research Grant Expenditure
BEIS,UKRI - BBSRC,15/12/2020,Research Grant Expenditure,FG - Accounts & Business Planning,Cardiff University,98865186,37549.68,Research Grant Expenditure
BEIS,UKRI - BBSRC,15/12/2020,Research Grant Expenditure,FG - Accounts & Business Planning,University of Plymouth,98865187,24581.22,Research Grant Expenditure
BEIS,UKRI - BBSRC,15/12/2020,Research Grant Expenditure,FG - Accounts & Business Planning,Cranfield University,98865188,47963.99,Research Grant Expenditure
BEIS,UKRI - BBSRC,15/12/2020,Research Grant Expenditure,FG - Accounts & Business Planning,University of Warwick,98865189,30065.16,Research Grant Expenditure
BEIS,UKRI - BBSRC,15/12/2020,Research Grant Expenditure,FG - Accounts & Business Planning,University of Edinburgh,98865190,2489.35,Research Grant Expenditure
BEIS,UKRI - BBSRC,15/12/2020,Research Grant Expenditure,FG - Accounts & Business Planning,Aberystwyth University,98865191,49459.20,Research Grant Expenditure
BEIS,UKRI - BBSRC,15/12/2020,Research Grant Expenditure,FG - Accounts & Business Planning,University of Surrey,98865192,22835.50,Research Grant Expenditure
BEIS,UKRI - BBSRC,15/12/2020,Research Grant Expenditure,FG - Accounts & Business Planning,University of Edinburgh,98865193,37264.69,Research Grant Expenditure
BEIS,UKRI - BBSRC,15/12/2020,Research Grant Expenditure,FG - Accounts & Business Planning,University of Southampton GRANT,98865194,42491.99,Research Grant Expenditure
BEIS,UKRI - BBSRC,15/12/2020,Research Grant Expenditure,FG - Accounts & Business Planning,European Bioinformatics Institute,98865195,50522.81,Research Grant Expenditure
BEIS,UKRI - BBSRC,15/12/2020,Research Grant Expenditure,FG - Accounts & Business Planning,The University of Manchester,98865196,27339.77,Research Grant Expenditure
BEIS,UKRI - BBSRC,15/12/2020,Research Grant Expenditure,FG - Accounts & Business Planning,University of Cambridge,98865197,1698.20,Research Grant Expenditure
BEIS,UKRI - BBSRC,15/12/2020,Research Grant Expenditure,FG - Accounts & Business Planning,Imperial College London,98865198,76497.76,Research Grant Expenditure
BEIS,UKRI - BBSRC,15/12/2020,Research Grant Expenditure,FG - Accounts & Business Planning,University of Stirling,98865199,37369.27,Research Grant Expenditure
BEIS,UKRI - BBSRC,15/12/2020,Research Grant Expenditure,FG - Accounts & Business Planning,University of Sheffield,98865200,51973.66,Research Grant Expenditure
BEIS,UKRI - BBSRC,15/12/2020,Research Grant Expenditure,FG - Accounts & Business Planning,John Innes Centre,98865201,52274.67,Research Grant Expenditure
BEIS,UKRI - BBSRC,15/12/2020,Research Grant Expenditure,FG - Accounts & Business Planning,University of Oxford,98865202,50436.73,Research Grant Expenditure
BEIS,UKRI - BBSRC,15/12/2020,Research Grant Expenditure,FG - Accounts & Business Planning,Rothamsted Research Ltd,98865203,17553.15,Research Grant Expenditure
BEIS,UKRI - BBSRC,15/12/2020,Research Grant Expenditure,FG - Accounts & Business Planning,Lancaster University,98865204,28097.40,Research Grant Expenditure
BEIS,UKRI - BBSRC,15/12/2020,Research Grant Expenditure,FG - Accounts & Business Planning,University of Aberdeen,98865205,49137.10,Research Grant Expenditure
BEIS,UKRI - BBSRC,15/12/2020,Research Grant Expenditure,FG - Accounts & Business Planning,University of Bristol GRANT,98865206,61611.62,Research Grant Expenditure
BEIS,UKRI - BBSRC,15/12/2020,Research Grant Expenditure,FG - Accounts & Business Planning,University of Birmingham GRANT,98865207,41977.81,Research Grant Expenditure
BEIS,UKRI - BBSRC,15/12/2020,Research Grant Expenditure,FG - Accounts & Business Planning,"Royal Holloway, University of London",98865208,33872.31,Research Grant Expenditure
BEIS,UKRI - BBSRC,15/12/2020,Research Grant Expenditure,FG - Accounts & Business Planning,John Innes Centre,98865209,10121.49,Research Grant Expenditure
BEIS,UKRI - BBSRC,15/12/2020,Research Grant Expenditure,FG - Accounts & Business Planning,University of Nottingham,98865210,27670.79,Research Grant Expenditure
BEIS,UKRI - BBSRC,15/12/2020,Research Grant Expenditure,FG - Accounts & Business Planning,National Institute For Agricultural Botany (NIAB),98865211,69451.85,Research Grant Expenditure
BEIS,UKRI - BBSRC,15/12/2020,Research Grant Expenditure,FG - Accounts & Business Planning,Rothamsted Research Ltd,98865212,35484.97,Research Grant Expenditure
BEIS,UKRI - BBSRC,15/12/2020,Research Grant Expenditure,FG - Accounts & Business Planning,Robert Gordon University,98865213,79548.92,Research Grant Expenditure
BEIS,UKRI - BBSRC,15/12/2020,Research Grant Expenditure,FG - Accounts & Business Planning,Queen Mary University of London,98865214,247541.12,Research Grant Expenditure
BEIS,UKRI - BBSRC,15/12/2020,Research Grant Expenditure,FG - Accounts & Business Planning,University of Kent,98865215,189748.72,Research Grant Expenditure
BEIS,UKRI - BBSRC,15/12/2020,Research Grant Expenditure,FG - Accounts & Business Planning,University of Cambridge,98865216,101885.86,Research Grant Expenditure
BEIS,UKRI - BBSRC,15/12/2020,Research Grant Expenditure,FG - Accounts & Business Planning,Quadram Institute Bioscience,98865217,124295.39,Research Grant Expenditure
BEIS,UKRI - BBSRC,15/12/2020,Research Grant Expenditure,FG - Accounts & Business Planning,University of York,98865218,46516.24,Research Grant Expenditure
BEIS,UKRI - BBSRC,15/12/2020,Research Grant Expenditure,FG - Accounts & Business Planning,University of York,98865219,68027.38,Research Grant Expenditure
BEIS,UKRI - BBSRC,15/12/2020,Research Grant Expenditure,FG - Accounts & Business Planning,University of Durham,98865220,34449.60,Research Grant Expenditure
BEIS,UKRI - BBSRC,15/12/2020,Research Grant Expenditure,FG - Accounts & Business Planning,University of Southampton GRANT,98865221,67067.94,Research Grant Expenditure
BEIS,UKRI - BBSRC,15/12/2020,Research Grant Expenditure,FG - Accounts & Business Planning,University College London,98865222,36475.94,Research Grant Expenditure
BEIS,UKRI - BBSRC,15/12/2020,Research Grant Expenditure,FG - Accounts & Business Planning,University of Nottingham,98865223,41385.07,Research Grant Expenditure
BEIS,UKRI - BBSRC,15/12/2020,Research Grant Expenditure,FG - Accounts & Business Planning,University of Central Lancashire,98865224,70876.65,Research Grant Expenditure
BEIS,UKRI - BBSRC,15/12/2020,Research Grant Expenditure,FG - Accounts & Business Planning,University of Reading,98865225,64781.35,Research Grant Expenditure
BEIS,UKRI - BBSRC,15/12/2020,Research Grant Expenditure,FG - Accounts & Business Planning,Queen's University Belfast GRANT,98865226,80125.21,Research Grant Expenditure
BEIS,UKRI - BBSRC,15/12/2020,Research Grant Expenditure,FG - Accounts & Business Planning,Coventry University,98865227,43041.73,Research Grant Expenditure
BEIS,UKRI - BBSRC,15/12/2020,Research Grant Expenditure,FG - Accounts & Business Planning,University of Greenwich,98865228,172852.32,Research Grant Expenditure
BEIS,UKRI - BBSRC,15/12/2020,Research Grant Expenditure,FG - Accounts & Business Planning,University of Newcastle Upon Tyne,98865229,74349.74,Research Grant Expenditure
BEIS,UKRI - BBSRC,15/12/2020,Research Grant Expenditure,FG - Accounts & Business Planning,Royal Botanic Gardens Kew,98865230,154455.53,Research Grant Expenditure
BEIS,UKRI - BBSRC,15/12/2020,Research Grant Expenditure,FG - Accounts & Business Planning,Lancaster University,98865231,144487.09,Research Grant Expenditure
BEIS,UKRI - BBSRC,15/12/2020,Research Grant Expenditure,FG - Accounts & Business Planning,University of Exeter,98865232,64239.99,Research Grant Expenditure
BEIS,UKRI - BBSRC,15/12/2020,Research Grant Expenditure,FG - Accounts & Business Planning,University of Bristol GRANT,98865233,37514.13,Research Grant Expenditure
BEIS,UKRI - BBSRC,15/12/2020,Research Grant Expenditure,FG - Accounts & Business Planning,Manchester Metropolitan University,98865234,44003.38,Research Grant Expenditure
BEIS,UKRI - BBSRC,15/12/2020,Research Grant Expenditure,FG - Accounts & Business Planning,Keele University,98865235,30690.26,Research Grant Expenditure
BEIS,UKRI - BBSRC,15/12/2020,Research Grant Expenditure,FG - Accounts & Business Planning,University of Stirling,98865236,32864.69,Research Grant Expenditure
BEIS,UKRI - BBSRC,15/12/2020,Fellowships,FG - Accounts & Business Planning,University of Leeds,98865704,53523.17,Fellowships
BEIS,UKRI - BBSRC,15/12/2020,Fellowships,FG - Accounts & Business Planning,University of Bristol GRANT,98865705,24465.46,Fellowships
BEIS,UKRI - BBSRC,15/12/2020,Fellowships,FG - Accounts & Business Planning,The University of Manchester,98865706,21248.16,Fellowships
BEIS,UKRI - BBSRC,15/12/2020,Fellowships,FG - Accounts & Business Planning,University of Oxford,98865707,-60143.84,Fellowships
BEIS,UKRI - BBSRC,15/12/2020,Research Grant Expenditure,FG - Accounts & Business Planning,Quadram Institute Bioscience,98866237,39522.69,Research Grant Expenditure
BEIS,UKRI - BBSRC,15/12/2020,Research Grant Expenditure,FG - Accounts & Business Planning,Aberystwyth University,98866238,69804.83,Research Grant Expenditure
BEIS,UKRI - BBSRC,15/12/2020,Research Grant Expenditure,FG - Accounts & Business Planning,University of Edinburgh,98866239,15000.00,Research Grant Expenditure
BEIS,UKRI - BBSRC,15/12/2020,Research Grant Expenditure,FG - Accounts & Business Planning,The Pirbright Institute,98866240,18750.00,Research Grant Expenditure
BEIS,UKRI - BBSRC,15/12/2020,Research Grant Expenditure,FG - Accounts & Business Planning,University of Bristol GRANT,98866241,32873.70,Research Grant Expenditure
BEIS,UKRI - BBSRC,15/12/2020,Research Grant Expenditure,FG - Accounts & Business Planning,University of Cambridge,98866242,9000.00,Research Grant Expenditure
BEIS,UKRI - BBSRC,15/12/2020,Research Grant Expenditure,FG - Accounts & Business Planning,University of Warwick,98866243,18000.00,Research Grant Expenditure
BEIS,UKRI - BBSRC,15/12/2020,Research Grant Expenditure,FG - Accounts & Business Planning,University of Nottingham,98866244,9375.00,Research Grant Expenditure
BEIS,UKRI - BBSRC,15/12/2020,Research Grant Expenditure,FG - Accounts & Business Planning,University of York,98866245,41704.57,Research Grant Expenditure
BEIS,UKRI - BBSRC,15/12/2020,Research Grant Expenditure,FG - Accounts & Business Planning,University of Portsmouth,98866246,15218.44,Research Grant Expenditure
BEIS,UKRI - BBSRC,15/12/2020,Research Grant Expenditure,FG - Accounts & Business Planning,University of Reading,98866247,37349.67,Research Grant Expenditure
BEIS,UKRI - BBSRC,15/12/2020,Research Grant Expenditure,FG - Accounts & Business Planning,University of Bristol GRANT,98866248,10000.00,Research Grant Expenditure
BEIS,UKRI - BBSRC,15/12/2020,Research Grant Expenditure,FG - Accounts & Business Planning,John Innes Centre,98866249,24000.00,Research Grant Expenditure
BEIS,UKRI - BBSRC,15/12/2020,Research Grant Expenditure,FG - Accounts & Business Planning,The University of Manchester,98866250,20590.51,Research Grant Expenditure
BEIS,UKRI - BBSRC,15/12/2020,Research Grant Expenditure,FG - Accounts & Business Planning,Imperial College London,98866251,10000.00,Research Grant Expenditure
BEIS,UKRI - BBSRC,15/12/2020,Research Grant Expenditure,FG - Accounts & Business Planning,University of Edinburgh,98866252,15000.00,Research Grant Expenditure
BEIS,UKRI - BBSRC,15/12/2020,Research Grant Expenditure,FG - Accounts & Business Planning,The University of Manchester,98866253,27726.72,Research Grant Expenditure
BEIS,UKRI - BBSRC,15/12/2020,Research Grant Expenditure,FG - Accounts & Business Planning,University of Southampton GRANT,98866254,18750.00,Research Grant Expenditure
BEIS,UKRI - BBSRC,15/12/2020,Research Grant Expenditure,FG - Accounts & Business Planning,Imperial College London,98866255,1905.50,Research Grant Expenditure
BEIS,UKRI - BBSRC,15/12/2020,Research Grant Expenditure,FG - Accounts & Business Planning,University College London,98866256,855.36,Research Grant Expenditure
BEIS,UKRI - BBSRC,15/12/2020,Research Grant Expenditure,FG - Accounts & Business Planning,University of Edinburgh,98866257,2675.63,Research Grant Expenditure
BEIS,UKRI - BBSRC,15/12/2020,Research Grant Expenditure,FG - Accounts & Business Planning,University of Liverpool,98866258,28841.79,Research Grant Expenditure
BEIS,UKRI - BBSRC,15/12/2020,Research Grant Expenditure,FG - Accounts & Business Planning,University of Edinburgh,98866259,1848.33,Research Grant Expenditure
BEIS,UKRI - BBSRC,15/12/2020,Research Grant Expenditure,FG - Accounts & Business Planning,University of Reading,98866260,36572.44,Research Grant Expenditure
BEIS,UKRI - BBSRC,15/12/2020,Research Grant Expenditure,FG - Accounts & Business Planning,European Bioinformatics Institute,98866261,9821.70,Research Grant Expenditure
BEIS,UKRI - BBSRC,15/12/2020,Research Grant Expenditure,FG - Accounts & Business Planning,Rothamsted Research Ltd,98866262,2540.66,Research Grant Expenditure
BEIS,UKRI - BBSRC,15/12/2020,Research Grant Expenditure,FG - Accounts & Business Planning,University College London,98866263,11021.37,Research Grant Expenditure
BEIS,UKRI - BBSRC,15/12/2020,Research Grant Expenditure,FG - Accounts & Business Planning,University of Edinburgh,98866264,41209.73,Research Grant Expenditure
BEIS,UKRI - BBSRC,15/12/2020,Research Grant Expenditure,FG - Accounts & Business Planning,The University of Manchester,98866265,25664.83,Research Grant Expenditure
BEIS,UKRI - BBSRC,15/12/2020,Research Grant Expenditure,FG - Accounts & Business Planning,European Bioinformatics Institute,98866266,42619.95,Research Grant Expenditure
BEIS,UKRI - BBSRC,15/12/2020,Research Grant Expenditure,FG - Accounts & Business Planning,European Bioinformatics Institute,98866267,51052.97,Research Grant Expenditure
BEIS,UKRI - BBSRC,15/12/2020,Research Grant Expenditure,FG - Accounts & Business Planning,University College London,98866268,25970.73,Research Grant Expenditure
BEIS,UKRI - BBSRC,15/12/2020,Research Grant Expenditure,FG - Accounts & Business Planning,European Bioinformatics Institute,98866269,50778.38,Research Grant Expenditure
BEIS,UKRI - BBSRC,15/12/2020,Research Grant Expenditure,FG - Accounts & Business Planning,Imperial College London,98866270,2506.79,Research Grant Expenditure
BEIS,UKRI - BBSRC,15/12/2020,Research Grant Expenditure,FG - Accounts & Business Planning,The Pirbright Institute,98866271,2096.05,Research Grant Expenditure
BEIS,UKRI - BBSRC,15/12/2020,Research Grant Expenditure,FG - Accounts & Business Planning,University of Birmingham GRANT,98866272,2489.85,Research Grant Expenditure
BEIS,UKRI - BBSRC,15/12/2020,Research Grant Expenditure,FG - Accounts & Business Planning,University of Nottingham,98866273,3175.83,Research Grant Expenditure
BEIS,UKRI - BBSRC,15/12/2020,Research Grant Expenditure,FG - Accounts & Business Planning,University of Exeter,98866274,4231.48,Research Grant Expenditure
BEIS,UKRI - BBSRC,15/12/2020,Research Grant Expenditure,FG - Accounts & Business Planning,King's College London,98866275,3150.42,Research Grant Expenditure
BEIS,UKRI - BBSRC,15/12/2020,Research Grant Expenditure,FG - Accounts & Business Planning,University of Cambridge,98866276,1417.69,Research Grant Expenditure
BEIS,UKRI - BBSRC,15/12/2020,Research Grant Expenditure,FG - Accounts & Business Planning,Rothamsted Research Ltd,98866277,52698.18,Research Grant Expenditure
BEIS,UKRI - BBSRC,15/12/2020,Research Grant Expenditure,FG - Accounts & Business Planning,The James Hutton Institute,98866278,39457.16,Research Grant Expenditure
BEIS,UKRI - BBSRC,15/12/2020,Research Grant Expenditure,FG - Accounts & Business Planning,University of Liverpool,98866279,3123.81,Research Grant Expenditure
BEIS,UKRI - BBSRC,15/12/2020,Research Grant Expenditure,FG - Accounts & Business Planning,University of Edinburgh,98866280,30737.31,Research Grant Expenditure
BEIS,UKRI - BBSRC,15/12/2020,Research Grant Expenditure,FG - Accounts & Business Planning,European Bioinformatics Institute,98866281,31534.73,Research Grant Expenditure
BEIS,UKRI - BBSRC,15/12/2020,Research Grant Expenditure,FG - Accounts & Business Planning,University of Liverpool,98866282,34154.93,Research Grant Expenditure
BEIS,UKRI - BBSRC,15/12/2020,Research Grant Expenditure,FG - Accounts & Business Planning,The University of Manchester,98866283,14357.01,Research Grant Expenditure
BEIS,UKRI - BBSRC,15/12/2020,Research Grant Expenditure,FG - Accounts & Business Planning,University of Stirling,98866284,3808.46,Research Grant Expenditure
BEIS,UKRI - BBSRC,15/12/2020,Research Grant Expenditure,FG - Accounts & Business Planning,University of East Anglia,98866285,23166.34,Research Grant Expenditure
BEIS,UKRI - BBSRC,15/12/2020,Research Grant Expenditure,FG - Accounts & Business Planning,University of Leicester,98866286,3048.79,Research Grant Expenditure
BEIS,UKRI - BBSRC,15/12/2020,Research Grant Expenditure,FG - Accounts & Business Planning,University of Leicester,98866287,1080.10,Research Grant Expenditure
BEIS,UKRI - BBSRC,15/12/2020,Research Grant Expenditure,FG - Accounts & Business Planning,University of Aberdeen,98866288,1010.37,Research Grant Expenditure
BEIS,UKRI - BBSRC,15/12/2020,Research Grant Expenditure,FG - Accounts & Business Planning,University of Liverpool,98866289,3159.32,Research Grant Expenditure
BEIS,UKRI - BBSRC,15/12/2020,Research Grant Expenditure,FG - Accounts & Business Planning,Quadram Institute Bioscience,98866290,1905.50,Research Grant Expenditure
BEIS,UKRI - BBSRC,15/12/2020,Research Grant Expenditure,FG - Accounts & Business Planning,Rothamsted Research Ltd,98866291,2041.00,Research Grant Expenditure
BEIS,UKRI - BBSRC,15/12/2020,Research Grant Expenditure,FG - Accounts & Business Planning,Imperial College London,98866292,3087.31,Research Grant Expenditure
BEIS,UKRI - BBSRC,15/12/2020,Research Grant Expenditure,FG - Accounts & Business Planning,University of Warwick,98866293,2506.79,Research Grant Expenditure
BEIS,UKRI - BBSRC,15/12/2020,Research Grant Expenditure,FG - Accounts & Business Planning,Cardiff University,98866294,68018.52,Research Grant Expenditure
BEIS,UKRI - BBSRC,15/12/2020,Research Grant Expenditure,FG - Accounts & Business Planning,Robert Gordon University,98866295,135085.52,Research Grant Expenditure
BEIS,UKRI - BBSRC,15/12/2020,Research Grant Expenditure,FG - Accounts & Business Planning,National Institute For Agricultural Botany (NIAB),98866296,1905.50,Research Grant Expenditure
BEIS,UKRI - BBSRC,15/12/2020,Research Grant Expenditure,FG - Accounts & Business Planning,University of Newcastle Upon Tyne,98866297,16447.21,Research Grant Expenditure
BEIS,UKRI - BBSRC,15/12/2020,Research Grant Expenditure,FG - Accounts & Business Planning,The Scottish Association for Marine Science (SAMS Group),98866298,25828.04,Research Grant Expenditure
BEIS,UKRI - BBSRC,15/12/2020,Research Grant Expenditure,FG - Accounts & Business Planning,Lancaster University,98866299,83711.94,Research Grant Expenditure
BEIS,UKRI - BBSRC,15/12/2020,Research Grant Expenditure,FG - Accounts & Business Planning,Cardiff University,98866300,60776.13,Research Grant Expenditure
BEIS,UKRI - BBSRC,15/12/2020,Research Grant Expenditure,FG - Accounts & Business Planning,The University of Manchester,98866301,20519.06,Research Grant Expenditure
BEIS,UKRI - BBSRC,15/12/2020,Research Grant Expenditure,FG - Accounts & Business Planning,University of Greenwich,98866302,20787.46,Research Grant Expenditure
BEIS,UKRI - BBSRC,15/12/2020,Research Grant Expenditure,FG - Accounts & Business Planning,University of Bristol GRANT,98866303,8499.67,Research Grant Expenditure
BEIS,UKRI - BBSRC,15/12/2020,Research Grant Expenditure,FG - Accounts & Business Planning,UNIVERSITY OF ULSTER,98866304,17378.00,Research Grant Expenditure
BEIS,UKRI - BBSRC,15/12/2020,Research Grant Expenditure,FG - Accounts & Business Planning,King's College London,98866305,25641.02,Research Grant Expenditure
BEIS,UKRI - BBSRC,15/12/2020,Research Grant Expenditure,FG - Accounts & Business Planning,London School of Hygiene & Tropical Medicine,98866306,86438.66,Research Grant Expenditure
BEIS,UKRI - BBSRC,15/12/2020,Research Grant Expenditure,FG - Accounts & Business Planning,University of Leeds,98866307,37049.69,Research Grant Expenditure
BEIS,UKRI - BBSRC,15/12/2020,Research Grant Expenditure,FG - Accounts & Business Planning,University of Exeter,98866308,6812.82,Research Grant Expenditure
BEIS,UKRI - BBSRC,15/12/2020,Research Grant Expenditure,FG - Accounts & Business Planning,University of Nottingham,98866309,30978.13,Research Grant Expenditure
BEIS,UKRI - BBSRC,15/12/2020,Capital Grants & Equipment to HEIs,FG - Accounts & Business Planning,Lancaster University,98866310,312.50,Capital Grants & Equipment to HEIs
BEIS,UKRI - BBSRC,15/12/2020,Research Grant Expenditure,FG - Accounts & Business Planning,Lancaster University,98866310,36739.04,Research Grant Expenditure
BEIS,UKRI - BBSRC,15/12/2020,Research Grant Expenditure,FG - Accounts & Business Planning,University of Edinburgh,98866311,44012.03,Research Grant Expenditure
BEIS,UKRI - BBSRC,15/12/2020,Research Grant Expenditure,FG - Accounts & Business Planning,Earlham Institute,98866312,26609.53,Research Grant Expenditure
BEIS,UKRI - BBSRC,15/12/2020,Research Grant Expenditure,FG - Accounts & Business Planning,Moredun Research Institute,98866313,59835.98,Research Grant Expenditure
BEIS,UKRI - BBSRC,15/12/2020,Research Grant Expenditure,FG - Accounts & Business Planning,University of Warwick,98866314,30459.29,Research Grant Expenditure
BEIS,UKRI - BBSRC,15/12/2020,Research Grant Expenditure,FG - Accounts & Business Planning,University of Cambridge,98866315,52087.65,Research Grant Expenditure
BEIS,UKRI - BBSRC,15/12/2020,Capital Grants & Equipment to HEIs,FG - Accounts & Business Planning,University of Exeter,98866316,12293.34,Capital Grants & Equipment to HEIs
BEIS,UKRI - BBSRC,15/12/2020,Research Grant Expenditure,FG - Accounts & Business Planning,University of Exeter,98866316,45127.18,Research Grant Expenditure
BEIS,UKRI - BBSRC,15/12/2020,Research Grant Expenditure,FG - Accounts & Business Planning,University of Sussex,98866317,50442.98,Research Grant Expenditure
BEIS,UKRI - BBSRC,15/12/2020,Research Grant Expenditure,FG - Accounts & Business Planning,University of Surrey,98866318,61055.47,Research Grant Expenditure
BEIS,UKRI - BBSRC,15/12/2020,Research Grant Expenditure,FG - Accounts & Business Planning,University of Glasgow,98866319,40903.12,Research Grant Expenditure
BEIS,UKRI - BBSRC,15/12/2020,Research Grant Expenditure,FG - Accounts & Business Planning,University of Stirling,98866320,59584.15,Research Grant Expenditure
BEIS,UKRI - BBSRC,15/12/2020,Research Grant Expenditure,FG - Accounts & Business Planning,University of St Andrews,98866321,31676.73,Research Grant Expenditure
BEIS,UKRI - BBSRC,15/12/2020,Research Grant Expenditure,FG - Accounts & Business Planning,University of Oxford,98866322,48578.34,Research Grant Expenditure
BEIS,UKRI - BBSRC,15/12/2020,Research Grant Expenditure,FG - Accounts & Business Planning,University of Sheffield,98866323,38720.32,Research Grant Expenditure
BEIS,UKRI - BBSRC,15/12/2020,Research Grant Expenditure,FG - Accounts & Business Planning,University of York,98866324,38158.86,Research Grant Expenditure
BEIS,UKRI - BBSRC,15/12/2020,Research Grant Expenditure,FG - Accounts & Business Planning,University of Edinburgh,98866325,45735.20,Research Grant Expenditure
BEIS,UKRI - BBSRC,15/12/2020,Research Grant Expenditure,FG - Accounts & Business Planning,University of Dundee,98866326,37720.89,Research Grant Expenditure
BEIS,UKRI - BBSRC,15/12/2020,Research Grant Expenditure,FG - Accounts & Business Planning,John Innes Centre,98866327,44844.54,Research Grant Expenditure
BEIS,UKRI - BBSRC,15/12/2020,Research Grant Expenditure,FG - Accounts & Business Planning,"Royal Holloway, University of London",98866328,23289.08,Research Grant Expenditure
BEIS,UKRI - BBSRC,15/12/2020,Research Grant Expenditure,FG - Accounts & Business Planning,Aberystwyth University,98866329,1853.58,Research Grant Expenditure
BEIS,UKRI - BBSRC,15/12/2020,Research Grant Expenditure,FG - Accounts & Business Planning,Edge Hill University College,98866330,34522.36,Research Grant Expenditure
BEIS,UKRI - BBSRC,15/12/2020,Research Grant Expenditure,FG - Accounts & Business Planning,King's College London,98866331,34209.39,Research Grant Expenditure
BEIS,UKRI - BBSRC,15/12/2020,Research Grant Expenditure,FG - Accounts & Business Planning,John Innes Centre,98866332,45502.62,Research Grant Expenditure
BEIS,UKRI - BBSRC,15/12/2020,Research Grant Expenditure,FG - Accounts & Business Planning,University of Glasgow,98866333,50830.08,Research Grant Expenditure
BEIS,UKRI - BBSRC,15/12/2020,Research Grant Expenditure,FG - Accounts & Business Planning,University of Birmingham GRANT,98866334,40284.47,Research Grant Expenditure
BEIS,UKRI - BBSRC,15/12/2020,Research Grant Expenditure,FG - Accounts & Business Planning,University of Liverpool,98866335,49437.92,Research Grant Expenditure
BEIS,UKRI - BBSRC,15/12/2020,Research Grant Expenditure,FG - Accounts & Business Planning,University of Edinburgh,98866336,32230.85,Research Grant Expenditure
BEIS,UKRI - BBSRC,15/12/2020,Research Grant Expenditure,FG - Accounts & Business Planning,University of Birmingham GRANT,98866337,54382.66,Research Grant Expenditure
BEIS,UKRI - BBSRC,15/12/2020,Research Grant Expenditure,FG - Accounts & Business Planning,University of Nottingham,98866338,55139.96,Research Grant Expenditure
BEIS,UKRI - BBSRC,15/12/2020,Research Grant Expenditure,FG - Accounts & Business Planning,Keele University,98866339,23339.66,Research Grant Expenditure
BEIS,UKRI - BBSRC,15/12/2020,Research Grant Expenditure,FG - Accounts & Business Planning,Loughborough University,98866340,37082.46,Research Grant Expenditure
BEIS,UKRI - BBSRC,15/12/2020,Research Grant Expenditure,FG - Accounts & Business Planning,University of Glasgow,98866341,46103.76,Research Grant Expenditure
BEIS,UKRI - BBSRC,15/12/2020,Research Grant Expenditure,FG - Accounts & Business Planning,University College London,98866342,30858.56,Research Grant Expenditure
BEIS,UKRI - BBSRC,15/12/2020,Research Grant Expenditure,FG - Accounts & Business Planning,University of Kent,98866343,26864.10,Research Grant Expenditure
BEIS,UKRI - BBSRC,15/12/2020,Research Grant Expenditure,FG - Accounts & Business Planning,University College London,98866344,44773.17,Research Grant Expenditure
BEIS,UKRI - BBSRC,15/12/2020,Research Grant Expenditure,FG - Accounts & Business Planning,The University of Manchester,98866345,38067.23,Research Grant Expenditure
BEIS,UKRI - BBSRC,15/12/2020,Research Grant Expenditure,FG - Accounts & Business Planning,University of Sheffield,98866346,31789.36,Research Grant Expenditure
BEIS,UKRI - BBSRC,15/12/2020,Research Grant Expenditure,FG - Accounts & Business Planning,University of Edinburgh,98866347,35295.27,Research Grant Expenditure
BEIS,UKRI - BBSRC,15/12/2020,Research Grant Expenditure,FG - Accounts & Business Planning,University of Cambridge,98866348,42370.11,Research Grant Expenditure
BEIS,UKRI - BBSRC,15/12/2020,Research Grant Expenditure,FG - Accounts & Business Planning,University of Bath,98866349,78014.77,Research Grant Expenditure
BEIS,UKRI - BBSRC,15/12/2020,Research Grant Expenditure,FG - Accounts & Business Planning,Cardiff University,98866350,40730.19,Research Grant Expenditure
BEIS,UKRI - BBSRC,15/12/2020,Research Grant Expenditure,FG - Accounts & Business Planning,University of Surrey,98866351,24132.49,Research Grant Expenditure
BEIS,UKRI - BBSRC,15/12/2020,Research Grant Expenditure,FG - Accounts & Business Planning,University College London,98866352,37358.74,Research Grant Expenditure
BEIS,UKRI - BBSRC,15/12/2020,Research Grant Expenditure,FG - Accounts & Business Planning,University of Birmingham GRANT,98866353,52021.76,Research Grant Expenditure
BEIS,UKRI - BBSRC,15/12/2020,Research Grant Expenditure,FG - Accounts & Business Planning,University of Exeter,98866354,49020.40,Research Grant Expenditure
BEIS,UKRI - BBSRC,15/12/2020,Research Grant Expenditure,FG - Accounts & Business Planning,University of Cambridge,98866355,47309.58,Research Grant Expenditure
BEIS,UKRI - BBSRC,15/12/2020,Research Grant Expenditure,FG - Accounts & Business Planning,The University of Manchester,98866356,38619.33,Research Grant Expenditure
BEIS,UKRI - BBSRC,15/12/2020,Research Grant Expenditure,FG - Accounts & Business Planning,University of Durham,98866357,64270.02,Research Grant Expenditure
BEIS,UKRI - BBSRC,15/12/2020,Research Grant Expenditure,FG - Accounts & Business Planning,University of Birmingham GRANT,98866358,36108.78,Research Grant Expenditure
BEIS,UKRI - BBSRC,15/12/2020,Research Grant Expenditure,FG - Accounts & Business Planning,The University of Manchester,98866359,37787.91,Research Grant Expenditure
BEIS,UKRI - BBSRC,15/12/2020,Research Grant Expenditure,FG - Accounts & Business Planning,University of Leeds,98866360,50326.09,Research Grant Expenditure
BEIS,UKRI - BBSRC,15/12/2020,Research Grant Expenditure,FG - Accounts & Business Planning,University of Cambridge,98866361,36620.33,Research Grant Expenditure
BEIS,UKRI - BBSRC,15/12/2020,Research Grant Expenditure,FG - Accounts & Business Planning,University College London,98866362,28448.05,Research Grant Expenditure
BEIS,UKRI - BBSRC,15/12/2020,Research Grant Expenditure,FG - Accounts & Business Planning,University of Edinburgh,98866363,34457.10,Research Grant Expenditure
BEIS,UKRI - BBSRC,15/12/2020,Research Grant Expenditure,FG - Accounts & Business Planning,The University of Manchester,98866364,44225.57,Research Grant Expenditure
BEIS,UKRI - BBSRC,15/12/2020,Research Grant Expenditure,FG - Accounts & Business Planning,University of Liverpool,98866365,25873.05,Research Grant Expenditure
BEIS,UKRI - BBSRC,15/12/2020,Research Grant Expenditure,FG - Accounts & Business Planning,Babraham Institute,98866366,29019.93,Research Grant Expenditure
BEIS,UKRI - BBSRC,15/12/2020,Research Grant Expenditure,FG - Accounts & Business Planning,European Bioinformatics Institute,98866367,28120.49,Research Grant Expenditure
BEIS,UKRI - BBSRC,15/12/2020,Research Grant Expenditure,FG - Accounts & Business Planning,University of Leeds,98866368,38159.87,Research Grant Expenditure
BEIS,UKRI - BBSRC,15/12/2020,Research Grant Expenditure,FG - Accounts & Business Planning,University of Birmingham GRANT,98866369,43292.28,Research Grant Expenditure
BEIS,UKRI - BBSRC,15/12/2020,Research Grant Expenditure,FG - Accounts & Business Planning,University College London,98866370,47297.58,Research Grant Expenditure
BEIS,UKRI - BBSRC,15/12/2020,Research Grant Expenditure,FG - Accounts & Business Planning,University of Surrey,98866371,32987.05,Research Grant Expenditure
BEIS,UKRI - BBSRC,15/12/2020,Research Grant Expenditure,FG - Accounts & Business Planning,European Bioinformatics Institute,98866372,33048.49,Research Grant Expenditure
BEIS,UKRI - BBSRC,15/12/2020,Research Grant Expenditure,FG - Accounts & Business Planning,King's College London,98866373,31056.23,Research Grant Expenditure
BEIS,UKRI - BBSRC,15/12/2020,Research Grant Expenditure,FG - Accounts & Business Planning,University of Leeds,98866374,35138.29,Research Grant Expenditure
BEIS,UKRI - BBSRC,15/12/2020,Research Grant Expenditure,FG - Accounts & Business Planning,Imperial College London,98866375,15884.36,Research Grant Expenditure
BEIS,UKRI - BBSRC,15/12/2020,Research Grant Expenditure,FG - Accounts & Business Planning,The University of Manchester,98866376,17170.56,Research Grant Expenditure
BEIS,UKRI - BBSRC,15/12/2020,Research Grant Expenditure,FG - Accounts & Business Planning,University of Liverpool,98866377,76413.43,Research Grant Expenditure
BEIS,UKRI - BBSRC,15/12/2020,Research Grant Expenditure,FG - Accounts & Business Planning,University of Edinburgh,98866378,32340.86,Research Grant Expenditure
BEIS,UKRI - BBSRC,15/12/2020,Research Grant Expenditure,FG - Accounts & Business Planning,University of Leicester,98866379,30609.99,Research Grant Expenditure
BEIS,UKRI - BBSRC,15/12/2020,Research Grant Expenditure,FG - Accounts & Business Planning,Earlham Institute,98866380,23314.79,Research Grant Expenditure
BEIS,UKRI - BBSRC,15/12/2020,Research Grant Expenditure,FG - Accounts & Business Planning,The Pirbright Institute,98866381,44777.70,Research Grant Expenditure
BEIS,UKRI - BBSRC,15/12/2020,Research Grant Expenditure,FG - Accounts & Business Planning,The Pirbright Institute,98866382,40998.78,Research Grant Expenditure
BEIS,UKRI - BBSRC,15/12/2020,Research Grant Expenditure,FG - Accounts & Business Planning,The Pirbright Institute,98866383,40483.05,Research Grant Expenditure
